{"text_format":"1","workbook":"xlsx","n_sheets":3,"sheets":["Info","Report Index","Grade Structure Report"],"not_rendered":{"charts":0,"images":0,"macros":1,"external_links":0,"defined_names":1,"comments":0,"pivot_tables":0},"unopened":[],"bounds":{"document_bytes":16777216,"sheet_cells":100000,"rows_first":2000,"rows_last":500,"rows_between":2000,"halvings":0,"cell_chars":16384,"cell_head_chars":4096},"cells_cut":0,"cells_raw":0,"read":"whole","date_system":"1900"}

{"sheet":"Info","index":0,"n_rows":15,"n_cols":2,"rows_kept":15,"cut":false,"hidden":false,"merged":[]}
["FORM E145 INFORMATION "]
[]
[null,"This form was designed to consolidate the information on forms 043, Inspector's Grade Report; 114, PC"]
[null,"Concrete Beam Record; and 115, Air and Slump Tests; on a single form for weekly submittal to the DME"]
[null,"for Structures Projects. Placing the cursor on the Report Index tab in the lower left hand corner of this "]
[null,"screen, and clicking the left mouse button will bring up a sheet with 50 report buttons. Placing the cursor"]
[null,"on a report button and clicking the left mouse button will take you to the area in the Grade Structural Report"]
[null,"that contains that report. Start with report one and continue on through subsequently weekly reports. There"]
[null,"are 50 reports available in this file. The total of the plan quantity placed per report and total plan quantity"]
[null,"to date are calculated automatically for each report. The computation factor and modulus of rupture for beam"]
[null,"breaks are also calculated automatically. The name of the Contractor, Report No., Contract ID, County, "]
[null,"Project No., and Design No. will need to be typed on the first report. This information will be transferred "]
[null,"automatically to the subsequent forms on the file. A blank copy of the form can be printed out by clicking"]
[null,"on the appropriate button on the Report Index sheet. The print button at the top of each report will print out"]
[null,"the report associated with the button."]

{"sheet":"Report Index","index":1,"n_rows":1,"n_cols":1,"rows_kept":1,"cut":false,"hidden":false,"merged":[[0,0,0,10]]}
["Report Index"]

{"sheet":"Grade Structure Report","index":2,"n_rows":2351,"n_cols":236,"rows_kept":2351,"cut":false,"hidden":false,"merged":[[2340,2,2340,3],[2341,2,2341,3],[2342,2,2342,3],[2343,2,2343,3],[2344,2,2344,3],[2345,2,2345,3],[2346,2,2346,3],[2347,2,2347,3],[2323,2,2323,3],[2323,4,2323,6],[2323,7,2323,9],[2323,10,2323,11],[2323,12,2323,13],[2323,14,2323,15],[2326,1,2326,14],[2326,16,2326,18],[2327,1,2327,14],[2327,16,2327,18],[2328,1,2328,14],[2329,1,2329,14],[2330,1,2330,14],[2331,1,2331,14],[2332,1,2332,14],[2333,1,2333,14],[2339,2,2339,3],[2320,2,2320,3],[2320,4,2320,6],[2320,7,2320,9],[2320,10,2320,11],[2320,12,2320,13],[2320,14,2320,15],[2321,2,2321,3],[2321,4,2321,6],[2321,7,2321,9],[2321,10,2321,11],[2321,12,2321,13],[2321,14,2321,15],[2322,2,2322,3],[2322,4,2322,6],[2322,7,2322,9],[2322,10,2322,11],[2322,12,2322,13],[2322,14,2322,15],[2317,2,2317,3],[2317,4,2317,6],[2317,7,2317,9],[2317,10,2317,11],[2317,12,2317,13],[2317,14,2317,15],[2318,2,2318,3],[2318,4,2318,6],[2318,7,2318,9],[2318,10,2318,11],[2318,12,2318,13],[2318,14,2318,15],[2319,2,2319,3],[2319,4,2319,6],[2319,7,2319,9],[2319,10,2319,11],[2319,12,2319,13],[2319,14,2319,15],[2307,9,2307,11],[2308,2,2308,6],[2308,15,2308,18],[2309,2,2309,6],[2309,15,2309,18],[2310,2,2310,6],[2310,15,2310,18],[2312,14,2312,15],[2313,14,2313,15],[2314,14,2314,15],[2315,14,2315,15],[2316,2,2316,3],[2316,4,2316,6],[2316,7,2316,9],[2316,10,2316,11],[2316,12,2316,13],[2316,14,2316,15],[391,16,391,18],[392,16,392,18],[420,15,420,18],[426,14,426,15],[575,16,575,18],[576,16,576,18],[605,15,605,18],[608,14,608,15],[609,14,609,15],[611,14,611,15],[659,14,659,15],[753,14,753,15],[394,1,394,14],[404,2,404,3],[405,2,405,3],[1130,16,1130,18],[1131,16,1131,18],[406,2,406,3],[407,2,407,3],[432,2,432,3],[444,1,444,14],[542,2,542,3],[543,2,543,3],[544,2,544,3],[545,2,545,3],[496,2,496,3],[497,2,497,3],[498,2,498,3],[499,2,499,3],[500,2,500,3],[501,2,501,3],[634,2,634,3],[588,2,588,3],[589,2,589,3],[590,2,590,3],[591,2,591,3],[616,2,616,3],[628,1,628,14],[420,2,420,6],[425,14,425,15],[427,14,427,15],[429,12,429,13],[429,14,429,15],[465,15,465,18],[454,2,454,3],[455,2,455,3],[456,2,456,3],[427,4,427,6],[427,7,427,9],[63,4,63,6],[65,12,65,13],[65,4,65,6],[89,2,89,3],[34,2,34,3],[35,2,35,3],[37,2,37,3],[38,2,38,3],[64,2,64,3],[63,2,63,3],[65,2,65,3],[83,2,83,3],[81,2,81,3],[179,2,179,3],[180,2,180,3],[84,2,84,3],[85,2,85,3],[86,2,86,3],[174,2,174,3],[128,2,128,3],[129,2,129,3],[88,2,88,3],[175,2,175,3],[176,2,176,3],[177,2,177,3],[178,2,178,3],[110,10,110,11],[108,12,108,13],[136,2,136,3],[142,9,142,11],[151,10,151,11],[151,12,151,13],[4,15,4,18],[5,15,5,18],[65,7,65,9],[65,10,65,11],[65,14,65,15],[64,14,64,15],[62,12,62,13],[62,14,62,15],[63,12,63,13],[63,14,63,15],[2,9,2,11],[52,2,52,6],[52,15,52,18],[57,14,57,15],[21,16,21,18],[22,16,22,18],[3,2,3,6],[4,2,4,6],[5,2,5,6],[3,15,3,18],[8,14,8,15],[55,14,55,15],[56,14,56,15],[11,14,11,15],[12,14,12,15],[13,14,13,15],[14,14,14,15],[15,14,15,15],[16,14,16,15],[10,14,10,15],[9,14,9,15],[64,4,64,6],[13,7,13,9],[14,7,14,9],[15,7,15,9],[16,7,16,9],[18,7,18,9],[60,2,60,3],[60,4,60,6],[60,7,60,9],[60,10,60,11],[60,12,60,13],[60,14,60,15],[61,2,61,3],[61,4,61,6],[61,12,61,13],[61,14,61,15],[61,7,61,9],[61,10,61,11],[26,1,26,14],[27,1,27,14],[40,2,40,3],[41,2,41,3],[42,2,42,3],[49,9,49,11],[28,1,28,14],[17,12,17,13],[18,12,18,13],[17,14,17,15],[18,14,18,15],[36,2,36,3],[21,1,21,14],[22,1,22,14],[23,1,23,14],[11,12,11,13],[12,12,12,13],[13,12,13,13],[14,12,14,13],[15,12,15,13],[16,12,16,13],[18,4,18,6],[12,2,12,3],[13,2,13,3],[11,10,11,11],[12,10,12,11],[13,10,13,11],[14,10,14,11],[17,10,17,11],[18,10,18,11],[12,7,12,9],[11,2,11,3],[11,4,11,6],[11,7,11,9],[18,2,18,3],[12,4,12,6],[13,4,13,6],[14,4,14,6],[15,4,15,6],[16,4,16,6],[15,10,15,11],[16,10,16,11],[14,2,14,3],[15,2,15,3],[17,2,17,3],[16,2,16,3],[17,4,17,6],[24,1,24,14],[25,1,25,14],[17,7,17,9],[96,9,96,11],[97,2,97,6],[97,15,97,18],[70,1,70,14],[71,1,71,14],[72,1,72,14],[73,1,73,14],[74,1,74,14],[75,1,75,14],[87,2,87,3],[58,14,58,15],[59,2,59,3],[50,15,50,18],[51,2,51,6],[51,15,51,18],[50,2,50,6],[58,4,58,6],[58,7,58,9],[58,10,58,11],[58,12,58,13],[82,2,82,3],[63,7,63,9],[63,10,63,11],[62,2,62,3],[62,4,62,6],[62,7,62,9],[62,10,62,11],[68,1,68,14],[69,1,69,14],[106,2,106,3],[106,4,106,6],[106,7,106,9],[107,2,107,3],[107,4,107,6],[107,7,107,9],[64,7,64,9],[99,15,99,18],[102,14,102,15],[103,14,103,15],[107,12,107,13],[107,14,107,15],[107,10,107,11],[106,10,106,11],[106,12,106,13],[106,14,106,15],[98,2,98,6],[98,15,98,18],[104,14,104,15],[105,2,105,3],[105,4,105,6],[105,7,105,9],[105,10,105,11],[105,12,105,13],[105,14,105,15],[99,2,99,6],[64,10,64,11],[64,12,64,13],[68,16,68,18],[69,16,69,18],[120,1,120,14],[121,1,121,14],[122,1,122,14],[108,14,108,15],[109,12,109,13],[109,14,109,15],[110,12,110,13],[110,14,110,15],[108,2,108,3],[108,4,108,6],[108,7,108,9],[108,10,108,11],[109,2,109,3],[109,4,109,6],[109,7,109,9],[109,10,109,11],[111,12,111,13],[111,14,111,15],[110,2,110,3],[110,4,110,6],[111,2,111,3],[111,4,111,6],[111,7,111,9],[111,10,111,11],[110,7,110,9],[182,2,182,3],[188,9,188,11],[189,2,189,6],[165,1,165,14],[166,1,166,14],[156,10,156,11],[156,12,156,13],[156,14,156,15],[155,2,155,3],[189,15,189,18],[161,16,161,18],[162,16,162,18],[158,2,158,3],[158,4,158,6],[158,7,158,9],[156,2,156,3],[156,4,156,6],[161,1,161,14],[157,7,157,9],[157,10,157,11],[156,7,156,9],[181,2,181,3],[155,7,155,9],[155,10,155,11],[155,12,155,13],[155,14,155,15],[163,1,163,14],[164,1,164,14],[157,12,157,13],[157,14,157,15],[157,2,157,3],[157,4,157,6],[198,2,198,3],[198,4,198,6],[198,7,198,9],[199,2,199,3],[199,4,199,6],[199,7,199,9],[199,10,199,11],[198,10,198,11],[198,12,198,13],[198,14,198,15],[191,15,191,18],[194,14,194,15],[195,14,195,15],[197,14,197,15],[199,12,199,13],[199,14,199,15],[190,2,190,6],[190,15,190,18],[196,14,196,15],[197,2,197,3],[197,4,197,6],[197,7,197,9],[197,10,197,11],[197,12,197,13],[191,2,191,6],[201,10,201,11],[201,12,201,13],[209,1,209,14],[203,12,203,13],[203,14,203,15],[203,2,203,3],[203,4,203,6],[203,7,203,9],[203,10,203,11],[208,1,208,14],[202,2,202,3],[202,4,202,6],[200,2,200,3],[200,4,200,6],[201,4,201,6],[201,7,201,9],[200,7,200,9],[200,10,200,11],[228,2,228,3],[234,9,234,11],[235,2,235,6],[235,15,235,18],[236,2,236,6],[236,15,236,18],[222,2,222,3],[223,2,223,3],[224,2,224,3],[225,2,225,3],[226,2,226,3],[227,2,227,3],[207,16,207,18],[208,16,208,18],[204,2,204,3],[204,4,204,6],[204,7,204,9],[204,10,204,11],[204,12,204,13],[204,14,204,15],[207,1,207,14],[220,2,220,3],[221,2,221,3],[210,1,210,14],[211,1,211,14],[212,1,212,14],[213,1,213,14],[214,1,214,14],[245,2,245,3],[245,4,245,6],[245,7,245,9],[237,2,237,6],[237,15,237,18],[240,14,240,15],[241,14,241,15],[245,12,245,13],[245,14,245,15],[245,10,245,11],[244,10,244,11],[244,12,244,13],[244,14,244,15],[242,14,242,15],[243,2,243,3],[243,4,243,6],[243,7,243,9],[243,10,243,11],[243,12,243,13],[243,14,243,15],[274,2,274,3],[280,9,280,11],[281,2,281,6],[281,15,281,18],[282,2,282,6],[282,15,282,18],[268,2,268,3],[269,2,269,3],[270,2,270,3],[271,2,271,3],[272,2,272,3],[273,2,273,3],[253,16,253,18],[254,16,254,18],[250,2,250,3],[250,4,250,6],[250,7,250,9],[250,10,250,11],[250,12,250,13],[250,14,250,15],[253,1,253,14],[256,1,256,14],[254,1,254,14],[266,2,266,3],[267,2,267,3],[255,1,255,14],[283,2,283,6],[283,15,283,18],[286,14,286,15],[287,14,287,15],[291,14,291,15],[291,10,291,11],[290,10,290,11],[290,12,290,13],[290,14,290,15],[288,14,288,15],[289,4,289,6],[289,7,289,9],[289,10,289,11],[289,12,289,13],[289,14,289,15],[291,2,291,3],[292,2,292,3],[289,2,289,3],[290,2,290,3],[295,12,295,13],[295,14,295,15],[295,2,295,3],[295,4,295,6],[295,7,295,9],[295,10,295,11],[292,4,292,6],[292,7,292,9],[293,7,293,9],[293,10,293,11],[293,12,293,13],[293,14,293,15],[292,14,292,15],[292,10,292,11],[294,12,294,13],[292,12,292,13],[290,4,290,6],[290,7,290,9],[291,4,291,6],[291,7,291,9],[291,12,291,13],[294,4,294,6],[294,7,294,9],[293,2,293,3],[294,2,294,3],[294,10,294,11],[294,14,294,15],[293,4,293,6],[320,2,320,3],[326,9,326,11],[327,2,327,6],[327,15,327,18],[328,2,328,6],[328,15,328,18],[314,2,314,3],[315,2,315,3],[316,2,316,3],[317,2,317,3],[318,2,318,3],[319,2,319,3],[300,16,300,18],[299,1,299,14],[300,1,300,14],[296,2,296,3],[296,4,296,6],[296,7,296,9],[296,10,296,11],[312,2,312,3],[313,2,313,3],[305,1,305,14],[306,1,306,14],[296,12,296,13],[296,14,296,15],[299,16,299,18],[338,4,338,6],[338,7,338,9],[338,10,338,11],[339,12,339,13],[339,14,339,15],[336,2,336,3],[336,4,336,6],[336,7,336,9],[337,2,337,3],[337,4,337,6],[337,7,337,9],[329,2,329,6],[329,15,329,18],[332,14,332,15],[333,14,333,15],[337,12,337,13],[337,14,337,15],[337,10,337,11],[336,10,336,11],[336,12,336,13],[336,14,336,15],[334,14,334,15],[335,2,335,3],[335,4,335,6],[335,7,335,9],[335,10,335,11],[335,12,335,13],[335,14,335,15],[366,2,366,3],[372,9,372,11],[373,2,373,6],[383,12,383,13],[383,14,383,15],[374,2,374,6],[374,15,374,18],[380,14,380,15],[381,2,381,3],[342,12,342,13],[342,14,342,15],[373,15,373,18],[362,2,362,3],[363,2,363,3],[364,2,364,3],[365,2,365,3],[347,1,347,14],[348,1,348,14],[349,1,349,14],[345,16,345,18],[346,16,346,18],[342,2,342,3],[342,4,342,6],[342,7,342,9],[342,10,342,11],[346,1,346,14],[345,1,345,14],[358,2,358,3],[359,2,359,3],[360,2,360,3],[361,2,361,3],[384,2,384,3],[384,4,384,6],[385,4,385,6],[385,7,385,9],[385,2,385,3],[382,2,382,3],[382,4,382,6],[382,7,382,9],[383,2,383,3],[383,4,383,6],[383,7,383,9],[375,15,375,18],[378,14,378,15],[379,14,379,15],[381,14,381,15],[384,7,384,9],[384,10,384,11],[383,10,383,11],[382,10,382,11],[381,4,381,6],[381,7,381,9],[381,10,381,11],[381,12,381,13],[382,12,382,13],[382,14,382,15],[375,2,375,6],[388,2,388,3],[388,4,388,6],[388,7,388,9],[388,10,388,11],[388,12,388,13],[388,14,388,15],[391,1,391,14],[385,10,385,11],[385,12,385,13],[393,1,393,14],[387,12,387,13],[387,14,387,15],[387,2,387,3],[387,4,387,6],[387,7,387,9],[387,10,387,11],[392,1,392,14],[386,2,386,3],[386,4,386,6],[427,10,427,11],[427,12,427,13],[419,15,419,18],[408,2,408,3],[409,2,409,3],[410,2,410,3],[411,2,411,3],[421,2,421,6],[412,2,412,3],[418,9,418,11],[419,2,419,6],[431,7,431,9],[431,10,431,11],[430,7,430,9],[430,10,430,11],[428,2,428,3],[428,4,428,6],[428,7,428,9],[429,2,429,3],[429,4,429,6],[429,7,429,9],[429,10,429,11],[428,10,428,11],[428,12,428,13],[428,14,428,15],[421,15,421,18],[424,14,424,15],[457,2,457,3],[467,2,467,6],[458,2,458,3],[464,9,464,11],[465,2,465,6],[437,16,437,18],[438,16,438,18],[434,2,434,3],[434,4,434,6],[434,7,434,9],[434,10,434,11],[434,12,434,13],[434,14,434,15],[437,1,437,14],[440,1,440,14],[438,1,438,14],[450,2,450,3],[451,2,451,3],[452,2,452,3],[453,2,453,3],[474,2,474,3],[474,4,474,6],[474,7,474,9],[475,2,475,3],[475,4,475,6],[475,7,475,9],[475,10,475,11],[474,10,474,11],[474,12,474,13],[474,14,474,15],[467,15,467,18],[470,14,470,15],[471,14,471,15],[473,14,473,15],[475,12,475,13],[475,14,475,15],[466,2,466,6],[466,15,466,18],[472,14,472,15],[473,2,473,3],[473,4,473,6],[473,7,473,9],[473,10,473,11],[473,12,473,13],[479,2,479,3],[479,4,479,6],[479,7,479,9],[479,10,479,11],[478,7,478,9],[478,10,478,11],[477,7,477,9],[477,10,477,11],[476,12,476,13],[476,14,476,15],[479,12,479,13],[479,14,479,15],[478,12,478,13],[478,14,478,15],[477,12,477,13],[477,14,477,15],[478,2,478,3],[478,4,478,6],[476,2,476,3],[476,4,476,6],[477,2,477,3],[477,4,477,6],[476,7,476,9],[476,10,476,11],[512,2,512,6],[512,15,512,18],[518,14,518,15],[519,2,519,3],[519,4,519,6],[519,7,519,9],[519,10,519,11],[519,12,519,13],[519,14,519,15],[513,2,513,6],[502,2,502,3],[503,2,503,3],[504,2,504,3],[510,9,510,11],[511,2,511,6],[511,15,511,18],[480,12,480,13],[480,14,480,15],[483,16,483,18],[484,16,484,18],[483,1,483,14],[484,1,484,14],[480,2,480,3],[480,4,480,6],[480,7,480,9],[480,10,480,11],[522,7,522,9],[522,10,522,11],[523,12,523,13],[523,14,523,15],[520,2,520,3],[520,4,520,6],[520,7,520,9],[521,2,521,3],[521,4,521,6],[521,7,521,9],[513,15,513,18],[516,14,516,15],[517,14,517,15],[521,12,521,13],[521,14,521,15],[521,10,521,11],[520,10,520,11],[520,12,520,13],[520,14,520,15],[550,2,550,3],[556,9,556,11],[557,2,557,6],[567,12,567,13],[567,14,567,15],[558,2,558,6],[558,15,558,18],[564,14,564,15],[565,2,565,3],[526,14,526,15],[529,1,529,14],[557,15,557,18],[546,2,546,3],[547,2,547,3],[548,2,548,3],[549,2,549,3],[531,1,531,14],[532,1,532,14],[533,1,533,14],[529,16,529,18],[530,16,530,18],[526,2,526,3],[526,4,526,6],[526,7,526,9],[526,10,526,11],[530,1,530,14],[526,12,526,13],[568,2,568,3],[568,4,568,6],[569,4,569,6],[569,7,569,9],[569,2,569,3],[566,2,566,3],[566,4,566,6],[566,7,566,9],[567,2,567,3],[567,4,567,6],[567,7,567,9],[559,15,559,18],[562,14,562,15],[563,14,563,15],[565,14,565,15],[568,7,568,9],[568,10,568,11],[567,10,567,11],[566,10,566,11],[565,4,565,6],[565,7,565,9],[565,10,565,11],[565,12,565,13],[566,12,566,13],[566,14,566,15],[559,2,559,6],[572,2,572,3],[572,4,572,6],[572,7,572,9],[572,10,572,11],[572,12,572,13],[572,14,572,15],[575,1,575,14],[569,10,569,11],[569,12,569,13],[577,1,577,14],[571,12,571,13],[571,14,571,15],[571,2,571,3],[571,4,571,6],[571,7,571,9],[571,10,571,11],[576,1,576,14],[570,2,570,3],[570,4,570,6],[613,7,613,9],[613,10,613,11],[612,10,612,11],[612,12,612,13],[612,14,612,15],[613,12,613,13],[613,14,613,15],[604,2,604,6],[604,15,604,18],[610,14,610,15],[611,2,611,3],[611,4,611,6],[611,7,611,9],[611,10,611,11],[611,12,611,13],[603,15,603,18],[592,2,592,3],[593,2,593,3],[594,2,594,3],[595,2,595,3],[605,2,605,6],[596,2,596,3],[602,9,602,11],[603,2,603,6],[649,2,649,6],[649,15,649,18],[650,2,650,6],[650,15,650,18],[656,14,656,15],[657,2,657,3],[657,4,657,6],[657,7,657,9],[657,10,657,11],[651,2,651,6],[638,2,638,3],[639,2,639,3],[640,2,640,3],[641,2,641,3],[642,2,642,3],[648,9,648,11],[621,16,621,18],[622,16,622,18],[621,1,621,14],[624,1,624,14],[635,2,635,3],[636,2,636,3],[637,2,637,3],[622,1,622,14],[658,2,658,3],[658,4,658,6],[658,7,658,9],[659,2,659,3],[659,4,659,6],[659,7,659,9],[651,15,651,18],[654,14,654,15],[655,14,655,15],[657,12,657,13],[657,14,657,15],[659,10,659,11],[658,10,658,11],[658,12,658,13],[658,14,658,15],[659,12,659,13],[662,2,662,3],[662,4,662,6],[663,2,663,3],[663,4,663,6],[663,7,663,9],[663,10,663,11],[662,7,662,9],[662,10,662,11],[660,12,660,13],[660,14,660,15],[661,12,661,13],[661,14,661,15],[663,12,663,13],[663,14,663,15],[660,2,660,3],[660,4,660,6],[660,7,660,9],[660,10,660,11],[662,12,662,13],[662,14,662,15],[661,2,661,3],[661,4,661,6],[661,7,661,9],[661,10,661,11],[684,2,684,3],[685,2,685,3],[1096,2,1096,3],[1097,2,1097,3],[686,2,686,3],[687,2,687,3],[688,2,688,3],[703,2,703,3],[704,2,704,3],[730,2,730,3],[664,12,664,13],[664,14,664,15],[667,16,667,18],[668,16,668,18],[667,1,667,14],[668,1,668,14],[664,2,664,3],[664,4,664,6],[664,7,664,9],[664,10,664,11],[704,10,704,11],[704,12,704,13],[704,14,704,15],[703,4,703,6],[703,7,703,9],[703,10,703,11],[703,12,703,13],[703,14,703,15],[697,2,697,6],[697,15,697,18],[700,14,700,15],[701,14,701,15]],"merged_total":3978,"flags":["merged_cut"]}
["Rev 10/26/18",null,null,null,null,null,null,"STRUCTURES WEEKLY GRADE REPORT",null,null,null,null,null,null,null,null,null,null,"E145"]
[null,null,null,null,null,null,null,null,null,null,null,null,null,null,null,null,null,"FORM 830242E"]
[null,null,null,null,null,null,null,null,"Contract ID:"]
[null,"Contractor:",null,null,null,null,null,null,null,null,null,null,null,null,"County:"]
[null,"Date:",null,null,null,null,null,null,null,null,null,null,null,null,"Project No:"]
[null,"Report No.:",1,null,null,null,null,null,null,null,null,null,null,null,"Design No:"]
[]
[null,null,null,null,null,null,null,null,null,null,"           Plan",null,"             Actual",null,"Plan",null,"Concrete","Air"]
[null,"Date","                 Mix",null,null,"Unit",null,null,"Plant",null,"           Today",null,"              Used",null,"Total",null,"Treatment","Content","Slump"]
[null,"Poured","                  No",null,null,"Poured",null,null,"Name",null,"            (CY)",null,"               (CY)",null,"(CY)",null,null,"%","In."]
[null,null,null,null,null,null,null,null,null,null,null,null,null,null,"This Report"]
[null,null,null,null,null,null,null,null,null,null,null,null,null,null,{"$f":"IF(K12>0,K12,\"\")","v":""}]
[null,null,null,null,null,null,null,null,null,null,null,null,null,null,{"$f":"IF(K13>0,O12+K13,\"\")","v":""}]
[null,null,null,null,null,null,null,null,null,null,null,null,null,null,{"$f":"IF(K14>0,O13+K14,\"\")","v":""}]
[null,null,null,null,null,null,null,null,null,null,null,null,null,null,""]
[null,null,null,null,null,null,null,null,null,null,null,null,null,null,""]
[null,null,null,null,null,null,null,null,null,null,null,null,null,null,""]
[null,null,null,null,null,null,null,null,null,null,null,null,null,null,""]
[null,null,null,null,null,null,null,null,null,null,null,null,null,null,""]
[]
[null,"Additional Slump Tests, Air Tests, Beam Numbers of Beams Made & Remarks"]
[null,null,null,null,null,null,null,null,null,null,null,null,null,null,null,null,"Total Plan CY to Date"]
[null,null,null,null,null,null,null,null,null,null,null,null,null,null,null,null,{"$f":"IF((SUM(K12:L19)>0),(SUM(K12:L19)),\"\")","v":""}]
[]
[]
[]
[]
[]
[]
[null,"Note:","Concrete Treatments",null,null,1,"Heated water only with no protection",null,null,null,null,6,"Ice added"]
[null,null,null,null,null,2,"Heated materials with no protection",null,null,null,null,7,"Nitrogen added"]
[null,"Indicate Number/s of the Concrete Treatment/s",null,null,null,3,"Protected concrete but did not heat materials",null,null,null,null,8,"Superplasticizer added"]
[null,"in the Column Provided Above",null,null,null,4,"Heated materials and protected concrete",null,null,null,null,9,"Microsilica added"]
[null,null,null,null,null,5,"Retarder used in concrete"]
[null,"Date","Mix",null,"Beam","Time","Slump","%","Age","W/C","Depth","Width","*Length","Indicated","Actual","Comp","Mod of","Location"]
[null,"Made","Number",null,"Number",null,null,"Air","Days",null,"Inches","Inches","Inches","Load (lbs)","Load (lbs)","Factor","Rupture","Inches"]
[null,null,null,null,null,null,null,null,null,null,null,null,null,null,null,{"$f":"IF(AND(K37>0,L37>0),3*M37/(2*L37*(K37*K37)),\"\")","v":""},{"$f":"IF(O37>0,O37*P37,\" \")","v":" "}]
[null,null,null,null,null,null,null,null,null,null,null,null,null,null,null,{"$f":"IF(AND(K38>0,L38>0),3*M38/(2*L38*(K38*K38)),\"\")","v":""},{"$f":"IF(O38>0,O38*P38,\" \")","v":" "}]
[null,null,null,null,null,null,null,null,null,null,null,null,null,null,null,""," "]
[null,null,null,null,null,null,null,null,null,null,null,null,null,null,null,""," "]
[null,null,null,null,null,null,null,null,null,null,null,null,null,null,null,""," "]
[null,null,null,null,null,null,null,null,null,null,null,null,null,null,null,""," "]
[null,null,null,null,null,null,null,null,null,null,null,null,null,null,null,""," "]
[]
["Distribution:",null," 1 copy to","Materials Engineer",null,"1 copy to ","RCE"]
[null,null,null,null,null,null,null,null,null,null,null,null,null,null,null,"  Structures Inspector"]
[]
[{"$f":"A1","v":"Rev 10/26/18"},null,null,null,null,null,null,"STRUCTURES WEEKLY GRADE REPORT",null,null,null,null,null,null,null,null,null,null,"E145"]
[null,null,null,null,null,null,null,null,null,null,null,null,null,null,null,null,null,"FORM 830242E"]
[null,null,null,null,null,null,null,null,"Contract ID:",{"$f":"$J$3","v":0}]
[null,"Contractor:",{"$f":"$C$4","v":0},null,null,null,null,null,null,null,null,null,null,null,"County:",{"$f":"$P$4","v":0}]
[null,"Date:",null,null,null,null,null,null,null,null,null,null,null,null,"Project No:",{"$f":"$P$5","v":0}]
[null,"Report No.:",{"$f":"$C$6+1","v":2},null,null,null,null,null,null,null,null,null,null,null,"Design No:",{"$f":"$P$6","v":0}]
[]
[null,null,null,null,null,null,null,null,null,null,"           Plan",null,"             Actual",null,"Plan",null,"Concrete","Air"]
[null,"Date","                 Mix",null,null,"Unit",null,null,"Plant",null,"           Today",null,"              Used",null,"Total",null,"Treatment","Content","Slump"]
[null,"Poured","                  No",null,null,"Poured",null,null,"Name",null,"            (CY)",null,"               (CY)",null,"(CY)",null,null,"%","In."]
[null,null,null,null,null,null,null,null,null,null,null,null,null,null,"This Report"]
[null,null,null,null,null,null,null,null,null,null,null,null,null,null,{"$f":"IF(K59>0,K59,\"\")","v":""}]
[null,null,null,null,null,null,null,null,null,null,null,null,null,null,{"$f":"IF(K60>0,O59+K60,\"\")","v":""}]
[null,null,null,null,null,null,null,null,null,null,null,null,null,null,{"$f":"IF(K61>0,O60+K61,\"\")","v":""}]
[null,null,null,null,null,null,null,null,null,null,null,null,null,null,""]
[null,null,null,null,null,null,null,null,null,null,null,null,null,null,""]
[null,null,null,null,null,null,null,null,null,null,null,null,null,null,""]
[null,null,null,null,null,null,null,null,null,null,null,null,null,null,""]
[null,null,null,null,null,null,null,null,null,null,null,null,null,null,""]
[]
[null,"Additional Slump Tests, Air Tests, Beam Numbers of Beams Made & Remarks"]
[null,null,null,null,null,null,null,null,null,null,null,null,null,null,null,null,"Total Plan CY to Date"]
[null,null,null,null,null,null,null,null,null,null,null,null,null,null,null,null,{"$f":"IF(Q23=\"\",\"\",SUM(K59:L66,Q23))","v":""}]
[]
[]
[]
[]
[]
[]
[null,"Note:","Concrete Treatments",null,null,1,"Heated water only with no protection",null,null,null,null,6,"Ice added"]
[null,null,null,null,null,2,"Heated materials with no protection",null,null,null,null,7,"Nitrogen added"]
[null,"Indicate Number/s of the Concrete Treatment/s",null,null,null,3,"Protected concrete but did not heat materials",null,null,null,null,8,"Superplasticizer added"]
[null,"in the Column Provided Above",null,null,null,4,"Heated materials and protected concrete",null,null,null,null,9,"Microsilica added"]
[null,null,null,null,null,5,"Retarder used in concrete"]
[null,"Date","Mix",null,"Beam","Time","Slump","%","Age","W/C","Depth","Width","*Length","Indicated","Actual","Comp","Mod of","Location"]
[null,"Made","Number",null,"Number",null,null,"Air","Days",null,"Inches","Inches","Inches","Load (lbs)","Load (lbs)","Factor","Rupture","Inches"]
[null,null,null,null,null,null,null,null,null,null,null,null,null,null,null,{"$f":"IF(AND(K84>0,L84>0),3*M84/(2*L84*(K84*K84)),\"\")","v":""},{"$f":"IF(O84>0,O84*P84,\" \")","v":" "}]
[null,null,null,null,null,null,null,null,null,null,null,null,null,null,null,{"$f":"IF(AND(K85>0,L85>0),3*M85/(2*L85*(K85*K85)),\"\")","v":""},{"$f":"IF(O85>0,O85*P85,\" \")","v":" "}]
[null,null,null,null,null,null,null,null,null,null,null,null,null,null,null,""," "]
[null,null,null,null,null,null,null,null,null,null,null,null,null,null,null,""," "]
[null,null,null,null,null,null,null,null,null,null,null,null,null,null,null,""," "]
[null,null,null,null,null,null,null,null,null,null,null,null,null,null,null,""," "]
[null,null,null,null,null,null,null,null,null,null,null,null,null,null,null,""," "]
[]
["Distribution:",null," 1 copy to","Materials Engineer",null,"1 copy to ","RCE"]
[null,null,null,null,null,null,null,null,null,null,null,null,null,null,null,"  Structures Inspector"]
[null,null,null,null,null,null,null,null,null,null,null,null,null,null,null,null,null,null,null,null,null,null,null,null,null,null,null,null,null,null,null,null,null,null,null,null,null,null,null,null,null,null,null,null,null,null,null,null,null,null,null,null,null,null,null,null,null,null,null,null,null,null,null,null,null,null,null,null,null,null,null,null,null,null,null,null,null,null,null,null,null,null,null,null,null,null,null,null,null,null,null,null,null,null,null,null,null,null,null,null,null,null,null,null,null,null,null,null,null,null,null,null,null,null,null,null,null,null,null,null,null,null,null,null,null,null,null,null,null,null,null,null,null,null,null,null,null,null,null,null,null,null,null,null,null,null,null,null,null,null,null,null,null,null,null,null,null,null,null,null,null,null,null,null,null,null,null,null,null,"  Structures Inspector",null,null,null,null,null,null,null,null,null,null,null,null,null,null,null,null,null,null,null,null,null,"  Structures Inspector",null,null,null,null,null,null,null,null,null,null,null,null,null,null,null,null,null,null,null,null,null,"  Structures Inspector",null,null,null,null,null,null,null,null,null,null,null,null,null,null,null,null,null,null,null,null,null,"  Structures Inspector"]
[{"$f":"A1","v":"Rev 10/26/18"},null,null,null,null,null,null,"STRUCTURES WEEKLY GRADE REPORT",null,null,null,null,null,null,null,null,null,null,"E145"]
[null,null,null,null,null,null,null,null,null,null,null,null,null,null,null,null,null,"FORM 830242E"]
[null,null,null,null,null,null,null,null,"Contract ID:",{"$f":"$J$3","v":0}]
[null,"Contractor:",{"$f":"$C$4","v":0},null,null,null,null,null,null,null,null,null,null,null,"County:",{"$f":"$P$4","v":0}]
[null,"Date:",null,null,null,null,null,null,null,null,null,null,null,null,"Project No:",{"$f":"$P$5","v":0}]
[null,"Report No.:",{"$f":"$C$6+2","v":3},null,null,null,null,null,null,null,null,null,null,null,"Design No:",{"$f":"$P$6","v":0}]
[]
[null,null,null,null,null,null,null,null,null,null,"           Plan",null,"             Actual",null,"Plan",null,"Concrete","Air"]
[null,"Date","                 Mix",null,null,"Unit",null,null,"Plant",null,"           Today",null,"              Used",null,"Total",null,"Treatment","Content","Slump"]
[null,"Poured","                  No",null,null,"Poured",null,null,"Name",null,"            (CY)",null,"               (CY)",null,"(CY)",null,null,"%","In."]
[null,null,null,null,null,null,null,null,null,null,null,null,null,null,"This Report"]
[null,null,null,null,null,null,null,null,null,null,null,null,null,null,{"$f":"IF(K106>0,K106,\"\")","v":""}]
[null,null,null,null,null,null,null,null,null,null,null,null,null,null,{"$f":"IF(K107>0,O106+K107,\"\")","v":""}]
[null,null,null,null,null,null,null,null,null,null,null,null,null,null,{"$f":"IF(K108>0,O107+K108,\"\")","v":""}]
[null,null,null,null,null,null,null,null,null,null,null,null,null,null,""]
[null,null,null,null,null,null,null,null,null,null,null,null,null,null,""]
[null,null,null,null,null,null,null,null,null,null,null,null,null,null,""]
[null,null,null,null,null,null,null,null,null,null,null,null,null,null,""]
[null,null,null,null,null,null,null,null,null,null,null,null,null,null,""]
[]
[null,"Additional Slump Tests, Air Tests, Beam Numbers of Beams Made & Remarks"]
[null,null,null,null,null,null,null,null,null,null,null,null,null,null,null,null,"Total Plan CY to Date"]
[null,null,null,null,null,null,null,null,null,null,null,null,null,null,null,null,{"$f":"IF(Q70=\"\",\"\",SUM(K106:L113,Q70))","v":""}]
[]
[]
[]
[]
[]
[]
[null,"Note:","Concrete Treatments",null,null,1,"Heated water only with no protection",null,null,null,null,6,"Ice added"]
[null,null,null,null,null,2,"Heated materials with no protection",null,null,null,null,7,"Nitrogen added"]
[null,"Indicate Number/s of the Concrete Treatment/s",null,null,null,3,"Protected concrete but did not heat materials",null,null,null,null,8,"Superplasticizer added"]
[null,"in the Column Provided Above",null,null,null,4,"Heated materials and protected concrete",null,null,null,null,9,"Microsilica added"]
[null,null,null,null,null,5,"Retarder used in concrete"]
[null,"Date","Mix",null,"Beam","Time","Slump","%","Age","W/C","Depth","Width","*Length","Indicated","Actual","Comp","Mod of","Location"]
[null,"Made","Number",null,"Number",null,null,"Air","Days",null,"Inches","Inches","Inches","Load (lbs)","Load (lbs)","Factor","Rupture","Inches"]
[null,null,null,null,null,null,null,null,null,null,null,null,null,null,null,{"$f":"IF(AND(K131>0,L131>0),3*M131/(2*L131*(K131*K131)),\"\")","v":""},{"$f":"IF(O131>0,O131*P131,\" \")","v":" "}]
[null,null,null,null,null,null,null,null,null,null,null,null,null,null,null,{"$f":"IF(AND(K132>0,L132>0),3*M132/(2*L132*(K132*K132)),\"\")","v":""},{"$f":"IF(O132>0,O132*P132,\" \")","v":" "}]
[null,null,null,null,null,null,null,null,null,null,null,null,null,null,null,""," "]
[null,null,null,null,null,null,null,null,null,null,null,null,null,null,null,""," "]
[null,null,null,null,null,null,null,null,null,null,null,null,null,null,null,""," "]
[null,null,null,null,null,null,null,null,null,null,null,null,null,null,null,""," "]
[null,null,null,null,null,null,null,null,null,null,null,null,null,null,null,""," "]
[]
["Distribution:",null," 1 copy to","Materials Engineer",null,"1 copy to ","RCE"]
[null,null,null,null,null,null,null,null,null,null,null,null,null,null,null,"  Structures Inspector"]
[{"$f":"A1","v":"Rev 10/26/18"},null,null,null,null,null,null,"STRUCTURES WEEKLY GRADE REPORT",null,null,null,null,null,null,null,null,null,null,"E145"]
[null,null,null,null,null,null,null,null,null,null,null,null,null,null,null,null,null,"FORM 830242E"]
[null,null,null,null,null,null,null,null,"Contract ID:",{"$f":"$J$3","v":0}]
[null,"Contractor:",{"$f":"$C$4","v":0},null,null,null,null,null,null,null,null,null,null,null,"County:",{"$f":"$P$4","v":0}]
[null,"Date:",null,null,null,null,null,null,null,null,null,null,null,null,"Project No:",{"$f":"$P$5","v":0}]
[null,"Report No.:",{"$f":"$C$6+3","v":4},null,null,null,null,null,null,null,null,null,null,null,"Design No:",{"$f":"$P$6","v":0}]
[]
[null,null,null,null,null,null,null,null,null,null,"           Plan",null,"             Actual",null,"Plan",null,"Concrete","Air"]
[null,"Date","                 Mix",null,null,"Unit",null,null,"Plant",null,"           Today",null,"              Used",null,"Total",null,"Treatment","Content","Slump"]
[null,"Poured","                  No",null,null,"Poured",null,null,"Name",null,"            (CY)",null,"               (CY)",null,"(CY)",null,null,"%","In."]
[null,null,null,null,null,null,null,null,null,null,null,null,null,null,"This Report"]
[null,null,null,null,null,null,null,null,null,null,null,null,null,null,{"$f":"IF(K152>0,K152,\"\")","v":""}]
[null,null,null,null,null,null,null,null,null,null,null,null,null,null,{"$f":"IF(K153>0,O152+K153,\"\")","v":""}]
[null,null,null,null,null,null,null,null,null,null,null,null,null,null,{"$f":"IF(K154>0,O153+K154,\"\")","v":""}]
[null,null,null,null,null,null,null,null,null,null,null,null,null,null,""]
[null,null,null,null,null,null,null,null,null,null,null,null,null,null,""]
[null,null,null,null,null,null,null,null,null,null,null,null,null,null,""]
[null,null,null,null,null,null,null,null,null,null,null,null,null,null,""]
[null,null,null,null,null,null,null,null,null,null,null,null,null,null,""]
[]
[null,"Additional Slump Tests, Air Tests, Beam Numbers of Beams Made & Remarks"]
[null,null,null,null,null,null,null,null,null,null,null,null,null,null,null,null,"Total Plan CY to Date"]
[null,null,null,null,null,null,null,null,null,null,null,null,null,null,null,null,{"$f":"IF(Q117=\"\",\"\",SUM(K152:L159,Q117))","v":""}]
[]
[]
[]
[]
[]
[]
[null,"Note:","Concrete Treatments",null,null,1,"Heated water only with no protection",null,null,null,null,6,"Ice added"]
[null,null,null,null,null,2,"Heated materials with no protection",null,null,null,null,7,"Nitrogen added"]
[null,"Indicate Number/s of the Concrete Treatment/s",null,null,null,3,"Protected concrete but did not heat materials",null,null,null,null,8,"Superplasticizer added"]
[null,"in the Column Provided Above",null,null,null,4,"Heated materials and protected concrete",null,null,null,null,9,"Microsilica added"]
[null,null,null,null,null,5,"Retarder used in concrete"]
[null,"Date","Mix",null,"Beam","Time","Slump","%","Age","W/C","Depth","Width","*Length","Indicated","Actual","Comp","Mod of","Location"]
[null,"Made","Number",null,"Number",null,null,"Air","Days",null,"Inches","Inches","Inches","Load (lbs)","Load (lbs)","Factor","Rupture","Inches"]
[null,null,null,null,null,null,null,null,null,null,null,null,null,null,null,{"$f":"IF(AND(K177>0,L177>0),3*M177/(2*L177*(K177*K177)),\"\")","v":""},{"$f":"IF(O177>0,O177*P177,\" \")","v":" "}]
[null,null,null,null,null,null,null,null,null,null,null,null,null,null,null,{"$f":"IF(AND(K178>0,L178>0),3*M178/(2*L178*(K178*K178)),\"\")","v":""},{"$f":"IF(O178>0,O178*P178,\" \")","v":" "}]
[null,null,null,null,null,null,null,null,null,null,null,null,null,null,null,""," "]
[null,null,null,null,null,null,null,null,null,null,null,null,null,null,null,""," "]
[null,null,null,null,null,null,null,null,null,null,null,null,null,null,null,""," "]
[null,null,null,null,null,null,null,null,null,null,null,null,null,null,null,""," "]
[null,null,null,null,null,null,null,null,null,null,null,null,null,null,null,""," "]
[]
["Distribution:",null," 1 copy to","Materials Engineer",null,"1 copy to ","RCE"]
[null,null,null,null,null,null,null,null,null,null,null,null,null,null,null,"  Structures Inspector"]
[{"$f":"A1","v":"Rev 10/26/18"},null,null,null,null,null,null,"STRUCTURES WEEKLY GRADE REPORT",null,null,null,null,null,null,null,null,null,null,"E145"]
[null,null,null,null,null,null,null,null,null,null,null,null,null,null,null,null,null,"FORM 830242E"]
[null,null,null,null,null,null,null,null,"Contract ID:",{"$f":"$J$3","v":0}]
[null,"Contractor:",{"$f":"$C$4","v":0},null,null,null,null,null,null,null,null,null,null,null,"County:",{"$f":"$P$4","v":0}]
[null,"Date:",null,null,null,null,null,null,null,null,null,null,null,null,"Project No:",{"$f":"$P$5","v":0}]
[null,"Report No.:",{"$f":"$C$6+4","v":5},null,null,null,null,null,null,null,null,null,null,null,"Design No:",{"$f":"$P$6","v":0}]
[]
[null,null,null,null,null,null,null,null,null,null,"           Plan",null,"             Actual",null,"Plan",null,"Concrete","Air"]
[null,"Date","                 Mix",null,null,"Unit",null,null,"Plant",null,"           Today",null,"              Used",null,"Total",null,"Treatment","Content","Slump"]
[null,"Poured","                  No",null,null,"Poured",null,null,"Name",null,"            (CY)",null,"               (CY)",null,"(CY)",null,null,"%","In."]
[null,null,null,null,null,null,null,null,null,null,null,null,null,null,"This Report"]
[null,null,null,null,null,null,null,null,null,null,null,null,null,null,{"$f":"IF(K198>0,K198,\"\")","v":""}]
[null,null,null,null,null,null,null,null,null,null,null,null,null,null,{"$f":"IF(K199>0,O198+K199,\"\")","v":""}]
[null,null,null,null,null,null,null,null,null,null,null,null,null,null,{"$f":"IF(K200>0,O199+K200,\"\")","v":""}]
[null,null,null,null,null,null,null,null,null,null,null,null,null,null,""]
[null,null,null,null,null,null,null,null,null,null,null,null,null,null,""]
[null,null,null,null,null,null,null,null,null,null,null,null,null,null,""]
[null,null,null,null,null,null,null,null,null,null,null,null,null,null,""]
[null,null,null,null,null,null,null,null,null,null,null,null,null,null,""]
[]
[null,"Additional Slump Tests, Air Tests, Beam Numbers of Beams Made & Remarks"]
[null,null,null,null,null,null,null,null,null,null,null,null,null,null,null,null,"Total Plan CY to Date"]
[null,null,null,null,null,null,null,null,null,null,null,null,null,null,null,null,{"$f":"IF(Q163=\"\",\"\",SUM(K198:L205,Q163))","v":""}]
[]
[]
[]
[]
[]
[]
[null,"Note:","Concrete Treatments",null,null,1,"Heated water only with no protection",null,null,null,null,6,"Ice added"]
[null,null,null,null,null,2,"Heated materials with no protection",null,null,null,null,7,"Nitrogen added"]
[null,"Indicate Number/s of the Concrete Treatment/s",null,null,null,3,"Protected concrete but did not heat materials",null,null,null,null,8,"Superplasticizer added"]
[null,"in the Column Provided Above",null,null,null,4,"Heated materials and protected concrete",null,null,null,null,9,"Microsilica added"]
[null,null,null,null,null,5,"Retarder used in concrete"]
[null,"Date","Mix",null,"Beam","Time","Slump","%","Age","W/C","Depth","Width","*Length","Indicated","Actual","Comp","Mod of","Location"]
[null,"Made","Number",null,"Number",null,null,"Air","Days",null,"Inches","Inches","Inches","Load (lbs)","Load (lbs)","Factor","Rupture","Inches"]
[null,null,null,null,null,null,null,null,null,null,null,null,null,null,null,{"$f":"IF(AND(K223>0,L223>0),3*M223/(2*L223*(K223*K223)),\"\")","v":""},{"$f":"IF(O223>0,O223*P223,\" \")","v":" "}]
[null,null,null,null,null,null,null,null,null,null,null,null,null,null,null,{"$f":"IF(AND(K224>0,L224>0),3*M224/(2*L224*(K224*K224)),\"\")","v":""},{"$f":"IF(O224>0,O224*P224,\" \")","v":" "}]
[null,null,null,null,null,null,null,null,null,null,null,null,null,null,null,""," "]
[null,null,null,null,null,null,null,null,null,null,null,null,null,null,null,""," "]
[null,null,null,null,null,null,null,null,null,null,null,null,null,null,null,""," "]
[null,null,null,null,null,null,null,null,null,null,null,null,null,null,null,""," "]
[null,null,null,null,null,null,null,null,null,null,null,null,null,null,null,""," "]
[]
["Distribution:",null," 1 copy to","Materials Engineer",null,"1 copy to ","RCE"]
[null,null,null,null,null,null,null,null,null,null,null,null,null,null,null,"  Structures Inspector"]
[{"$f":"A1","v":"Rev 10/26/18"},null,null,null,null,null,null,"STRUCTURES WEEKLY GRADE REPORT",null,null,null,null,null,null,null,null,null,null,"E145"]
[null,null,null,null,null,null,null,null,null,null,null,null,null,null,null,null,null,"FORM 830242E"]
[null,null,null,null,null,null,null,null,"Contract ID:",{"$f":"$J$3","v":0}]
[null,"Contractor:",{"$f":"$C$4","v":0},null,null,null,null,null,null,null,null,null,null,null,"County:",{"$f":"$P$4","v":0}]
[null,"Date:",null,null,null,null,null,null,null,null,null,null,null,null,"Project No:",{"$f":"$P$5","v":0}]
[null,"Report No.:",{"$f":"$C$6+5","v":6},null,null,null,null,null,null,null,null,null,null,null,"Design No:",{"$f":"$P$6","v":0}]
[]
[null,null,null,null,null,null,null,null,null,null,"           Plan",null,"             Actual",null,"Plan",null,"Concrete","Air"]
[null,"Date","                 Mix",null,null,"Unit",null,null,"Plant",null,"           Today",null,"              Used",null,"Total",null,"Treatment","Content","Slump"]
[null,"Poured","                  No",null,null,"Poured",null,null,"Name",null,"            (CY)",null,"               (CY)",null,"(CY)",null,null,"%","In."]
[null,null,null,null,null,null,null,null,null,null,null,null,null,null,"This Report"]
[null,null,null,null,null,null,null,null,null,null,null,null,null,null,{"$f":"IF(K244>0,K244,\"\")","v":""}]
[null,null,null,null,null,null,null,null,null,null,null,null,null,null,{"$f":"IF(K245>0,O244+K245,\"\")","v":""}]
[null,null,null,null,null,null,null,null,null,null,null,null,null,null,{"$f":"IF(K246>0,O245+K246,\"\")","v":""}]
[null,null,null,null,null,null,null,null,null,null,null,null,null,null,""]
[null,null,null,null,null,null,null,null,null,null,null,null,null,null,""]
[null,null,null,null,null,null,null,null,null,null,null,null,null,null,""]
[null,null,null,null,null,null,null,null,null,null,null,null,null,null,""]
[null,null,null,null,null,null,null,null,null,null,null,null,null,null,""]
[]
[null,"Additional Slump Tests, Air Tests, Beam Numbers of Beams Made & Remarks"]
[null,null,null,null,null,null,null,null,null,null,null,null,null,null,null,null,"Total Plan CY to Date"]
[null,null,null,null,null,null,null,null,null,null,null,null,null,null,null,null,{"$f":"IF(Q209=\"\",\"\",SUM(K244:L251,Q209))","v":""}]
[]
[]
[]
[]
[]
[]
[null,"Note:","Concrete Treatments",null,null,1,"Heated water only with no protection",null,null,null,null,6,"Ice added"]
[null,null,null,null,null,2,"Heated materials with no protection",null,null,null,null,7,"Nitrogen added"]
[null,"Indicate Number/s of the Concrete Treatment/s",null,null,null,3,"Protected concrete but did not heat materials",null,null,null,null,8,"Superplasticizer added"]
[null,"in the Column Provided Above",null,null,null,4,"Heated materials and protected concrete",null,null,null,null,9,"Microsilica added"]
[null,null,null,null,null,5,"Retarder used in concrete"]
[null,"Date","Mix",null,"Beam","Time","Slump","%","Age","W/C","Depth","Width","*Length","Indicated","Actual","Comp","Mod of","Location"]
[null,"Made","Number",null,"Number",null,null,"Air","Days",null,"Inches","Inches","Inches","Load (lbs)","Load (lbs)","Factor","Rupture","Inches"]
[null,null,null,null,null,null,null,null,null,null,null,null,null,null,null,{"$f":"IF(AND(K269>0,L269>0),3*M269/(2*L269*(K269*K269)),\"\")","v":""},{"$f":"IF(O269>0,O269*P269,\" \")","v":" "}]
[null,null,null,null,null,null,null,null,null,null,null,null,null,null,null,{"$f":"IF(AND(K270>0,L270>0),3*M270/(2*L270*(K270*K270)),\"\")","v":""},{"$f":"IF(O270>0,O270*P270,\" \")","v":" "}]
[null,null,null,null,null,null,null,null,null,null,null,null,null,null,null,""," "]
[null,null,null,null,null,null,null,null,null,null,null,null,null,null,null,""," "]
[null,null,null,null,null,null,null,null,null,null,null,null,null,null,null,""," "]
[null,null,null,null,null,null,null,null,null,null,null,null,null,null,null,""," "]
[null,null,null,null,null,null,null,null,null,null,null,null,null,null,null,""," "]
[]
["Distribution:",null," 1 copy to","Materials Engineer",null,"1 copy to ","RCE"]
[null,null,null,null,null,null,null,null,null,null,null,null,null,null,null,"  Structures Inspector"]
[{"$f":"A1","v":"Rev 10/26/18"},null,null,null,null,null,null,"STRUCTURES WEEKLY GRADE REPORT",null,null,null,null,null,null,null,null,null,null,"E145"]
[null,null,null,null,null,null,null,null,null,null,null,null,null,null,null,null,null,"FORM 830242E"]
[null,null,null,null,null,null,null,null,"Contract ID:",{"$f":"$J$3","v":0}]
[null,"Contractor:",{"$f":"$C$4","v":0},null,null,null,null,null,null,null,null,null,null,null,"County:",{"$f":"$P$4","v":0}]
[null,"Date:",null,null,null,null,null,null,null,null,null,null,null,null,"Project No:",{"$f":"$P$5","v":0}]
[null,"Report No.:",{"$f":"$C$6+6","v":7},null,null,null,null,null,null,null,null,null,null,null,"Design No:",{"$f":"$P$6","v":0}]
[]
[null,null,null,null,null,null,null,null,null,null,"           Plan",null,"             Actual",null,"Plan",null,"Concrete","Air"]
[null,"Date","                 Mix",null,null,"Unit",null,null,"Plant",null,"           Today",null,"              Used",null,"Total",null,"Treatment","Content","Slump"]
[null,"Poured","                  No",null,null,"Poured",null,null,"Name",null,"            (CY)",null,"               (CY)",null,"(CY)",null,null,"%","In."]
[null,null,null,null,null,null,null,null,null,null,null,null,null,null,"This Report"]
[null,null,null,null,null,null,null,null,null,null,null,null,null,null,{"$f":"IF(K290>0,K290,\"\")","v":""}]
[null,null,null,null,null,null,null,null,null,null,null,null,null,null,{"$f":"IF(K291>0,O290+K291,\"\")","v":""}]
[null,null,null,null,null,null,null,null,null,null,null,null,null,null,{"$f":"IF(K292>0,O291+K292,\"\")","v":""}]
[null,null,null,null,null,null,null,null,null,null,null,null,null,null,""]
[null,null,null,null,null,null,null,null,null,null,null,null,null,null,""]
[null,null,null,null,null,null,null,null,null,null,null,null,null,null,""]
[null,null,null,null,null,null,null,null,null,null,null,null,null,null,""]
[null,null,null,null,null,null,null,null,null,null,null,null,null,null,""]
[]
[null,"Additional Slump Tests, Air Tests, Beam Numbers of Beams Made & Remarks"]
[null,null,null,null,null,null,null,null,null,null,null,null,null,null,null,null,"Total Plan CY to Date"]
[null,null,null,null,null,null,null,null,null,null,null,null,null,null,null,null,{"$f":"IF(Q255=\"\",\"\",SUM(K290:L297,Q255))","v":""}]
[]
[]
[]
[]
[]
[]
[null,"Note:","Concrete Treatments",null,null,1,"Heated water only with no protection",null,null,null,null,6,"Ice added"]
[null,null,null,null,null,2,"Heated materials with no protection",null,null,null,null,7,"Nitrogen added"]
[null,"Indicate Number/s of the Concrete Treatment/s",null,null,null,3,"Protected concrete but did not heat materials",null,null,null,null,8,"Superplasticizer added"]
[null,"in the Column Provided Above",null,null,null,4,"Heated materials and protected concrete",null,null,null,null,9,"Microsilica added"]
[null,null,null,null,null,5,"Retarder used in concrete"]
[null,"Date","Mix",null,"Beam","Time","Slump","%","Age","W/C","Depth","Width","*Length","Indicated","Actual","Comp","Mod of","Location"]
[null,"Made","Number",null,"Number",null,null,"Air","Days",null,"Inches","Inches","Inches","Load (lbs)","Load (lbs)","Factor","Rupture","Inches"]
[null,null,null,null,null,null,null,null,null,null,null,null,null,null,null,{"$f":"IF(AND(K315>0,L315>0),3*M315/(2*L315*(K315*K315)),\"\")","v":""},{"$f":"IF(O315>0,O315*P315,\" \")","v":" "}]
[null,null,null,null,null,null,null,null,null,null,null,null,null,null,null,{"$f":"IF(AND(K316>0,L316>0),3*M316/(2*L316*(K316*K316)),\"\")","v":""},{"$f":"IF(O316>0,O316*P316,\" \")","v":" "}]
[null,null,null,null,null,null,null,null,null,null,null,null,null,null,null,""," "]
[null,null,null,null,null,null,null,null,null,null,null,null,null,null,null,""," "]
[null,null,null,null,null,null,null,null,null,null,null,null,null,null,null,""," "]
[null,null,null,null,null,null,null,null,null,null,null,null,null,null,null,""," "]
[null,null,null,null,null,null,null,null,null,null,null,null,null,null,null,""," "]
[]
["Distribution:",null," 1 copy to","Materials Engineer",null,"1 copy to ","RCE"]
[null,null,null,null,null,null,null,null,null,null,null,null,null,null,null,"  Structures Inspector"]
[{"$f":"A1","v":"Rev 10/26/18"},null,null,null,null,null,null,"STRUCTURES WEEKLY GRADE REPORT",null,null,null,null,null,null,null,null,null,null,"E145"]
[null,null,null,null,null,null,null,null,null,null,null,null,null,null,null,null,null,"FORM 830242E"]
[null,null,null,null,null,null,null,null,"Contract ID:",{"$f":"$J$3","v":0}]
[null,"Contractor:",{"$f":"$C$4","v":0},null,null,null,null,null,null,null,null,null,null,null,"County:",{"$f":"$P$4","v":0}]
[null,"Date:",null,null,null,null,null,null,null,null,null,null,null,null,"Project No:",{"$f":"$P$5","v":0}]
[null,"Report No.:",{"$f":"$C$6+7","v":8},null,null,null,null,null,null,null,null,null,null,null,"Design No:",{"$f":"$P$6","v":0}]
[]
[null,null,null,null,null,null,null,null,null,null,"           Plan",null,"             Actual",null,"Plan",null,"Concrete","Air"]
[null,"Date","                 Mix",null,null,"Unit",null,null,"Plant",null,"           Today",null,"              Used",null,"Total",null,"Treatment","Content","Slump"]
[null,"Poured","                  No",null,null,"Poured",null,null,"Name",null,"            (CY)",null,"               (CY)",null,"(CY)",null,null,"%","In."]
[null,null,null,null,null,null,null,null,null,null,null,null,null,null,"This Report"]
[null,null,null,null,null,null,null,null,null,null,null,null,null,null,{"$f":"IF(K336>0,K336,\"\")","v":""}]
[null,null,null,null,null,null,null,null,null,null,null,null,null,null,{"$f":"IF(K337>0,O336+K337,\"\")","v":""}]
[null,null,null,null,null,null,null,null,null,null,null,null,null,null,{"$f":"IF(K338>0,O337+K338,\"\")","v":""}]
[null,null,null,null,null,null,null,null,null,null,null,null,null,null,""]
[null,null,null,null,null,null,null,null,null,null,null,null,null,null,""]
[null,null,null,null,null,null,null,null,null,null,null,null,null,null,""]
[null,null,null,null,null,null,null,null,null,null,null,null,null,null,""]
[null,null,null,null,null,null,null,null,null,null,null,null,null,null,""]
[]
[null,"Additional Slump Tests, Air Tests, Beam Numbers of Beams Made & Remarks"]
[null,null,null,null,null,null,null,null,null,null,null,null,null,null,null,null,"Total Plan CY to Date"]
[null,null,null,null,null,null,null,null,null,null,null,null,null,null,null,null,{"$f":"IF(Q301=\"\",\"\",SUM(K336:L343,Q301))","v":""}]
[]
[]
[]
[]
[]
[]
[null,"Note:","Concrete Treatments",null,null,1,"Heated water only with no protection",null,null,null,null,6,"Ice added"]
[null,null,null,null,null,2,"Heated materials with no protection",null,null,null,null,7,"Nitrogen added"]
[null,"Indicate Number/s of the Concrete Treatment/s",null,null,null,3,"Protected concrete but did not heat materials",null,null,null,null,8,"Superplasticizer added"]
[null,"in the Column Provided Above",null,null,null,4,"Heated materials and protected concrete",null,null,null,null,9,"Microsilica added"]
[null,null,null,null,null,5,"Retarder used in concrete"]
[null,"Date","Mix",null,"Beam","Time","Slump","%","Age","W/C","Depth","Width","*Length","Indicated","Actual","Comp","Mod of","Location"]
[null,"Made","Number",null,"Number",null,null,"Air","Days",null,"Inches","Inches","Inches","Load (lbs)","Load (lbs)","Factor","Rupture","Inches"]
[null,null,null,null,null,null,null,null,null,null,null,null,null,null,null,{"$f":"IF(AND(K361>0,L361>0),3*M361/(2*L361*(K361*K361)),\"\")","v":""},{"$f":"IF(O361>0,O361*P361,\" \")","v":" "}]
[null,null,null,null,null,null,null,null,null,null,null,null,null,null,null,{"$f":"IF(AND(K362>0,L362>0),3*M362/(2*L362*(K362*K362)),\"\")","v":""},{"$f":"IF(O362>0,O362*P362,\" \")","v":" "}]
[null,null,null,null,null,null,null,null,null,null,null,null,null,null,null,""," "]
[null,null,null,null,null,null,null,null,null,null,null,null,null,null,null,""," "]
[null,null,null,null,null,null,null,null,null,null,null,null,null,null,null,""," "]
[null,null,null,null,null,null,null,null,null,null,null,null,null,null,null,""," "]
[null,null,null,null,null,null,null,null,null,null,null,null,null,null,null,""," "]
[]
["Distribution:",null," 1 copy to","Materials Engineer",null,"1 copy to ","RCE"]
[null,null,null,null,null,null,null,null,null,null,null,null,null,null,null,"  Structures Inspector"]
[{"$f":"A1","v":"Rev 10/26/18"},null,null,null,null,null,null,"STRUCTURES WEEKLY GRADE REPORT",null,null,null,null,null,null,null,null,null,null,"E145"]
[null,null,null,null,null,null,null,null,null,null,null,null,null,null,null,null,null,"FORM 830242E"]
[null,null,null,null,null,null,null,null,"Contract ID:",{"$f":"$J$3","v":0}]
[null,"Contractor:",{"$f":"$C$4","v":0},null,null,null,null,null,null,null,null,null,null,null,"County:",{"$f":"$P$4","v":0}]
[null,"Date:",null,null,null,null,null,null,null,null,null,null,null,null,"Project No:",{"$f":"$P$5","v":0}]
[null,"Report No.:",{"$f":"$C$6+8","v":9},null,null,null,null,null,null,null,null,null,null,null,"Design No:",{"$f":"$P$6","v":0}]
[]
[null,null,null,null,null,null,null,null,null,null,"           Plan",null,"             Actual",null,"Plan",null,"Concrete","Air"]
[null,"Date","                 Mix",null,null,"Unit",null,null,"Plant",null,"           Today",null,"              Used",null,"Total",null,"Treatment","Content","Slump"]
[null,"Poured","                  No",null,null,"Poured",null,null,"Name",null,"            (CY)",null,"               (CY)",null,"(CY)",null,null,"%","In."]
[null,null,null,null,null,null,null,null,null,null,null,null,null,null,"This Report"]
[null,null,null,null,null,null,null,null,null,null,null,null,null,null,{"$f":"IF(K382>0,K382,\"\")","v":""}]
[null,null,null,null,null,null,null,null,null,null,null,null,null,null,{"$f":"IF(K383>0,O382+K383,\"\")","v":""}]
[null,null,null,null,null,null,null,null,null,null,null,null,null,null,{"$f":"IF(K384>0,O383+K384,\"\")","v":""}]
[null,null,null,null,null,null,null,null,null,null,null,null,null,null,""]
[null,null,null,null,null,null,null,null,null,null,null,null,null,null,""]
[null,null,null,null,null,null,null,null,null,null,null,null,null,null,""]
[null,null,null,null,null,null,null,null,null,null,null,null,null,null,""]
[null,null,null,null,null,null,null,null,null,null,null,null,null,null,""]
[]
[null,"Additional Slump Tests, Air Tests, Beam Numbers of Beams Made & Remarks"]
[null,null,null,null,null,null,null,null,null,null,null,null,null,null,null,null,"Total Plan CY to Date"]
[null,null,null,null,null,null,null,null,null,null,null,null,null,null,null,null,{"$f":"IF(Q347=\"\",\"\",SUM(K382:L389,Q347))","v":""}]
[]
[]
[]
[]
[]
[]
[null,"Note:","Concrete Treatments",null,null,1,"Heated water only with no protection",null,null,null,null,6,"Ice added"]
[null,null,null,null,null,2,"Heated materials with no protection",null,null,null,null,7,"Nitrogen added"]
[null,"Indicate Number/s of the Concrete Treatment/s",null,null,null,3,"Protected concrete but did not heat materials",null,null,null,null,8,"Superplasticizer added"]
[null,"in the Column Provided Above",null,null,null,4,"Heated materials and protected concrete",null,null,null,null,9,"Microsilica added"]
[null,null,null,null,null,5,"Retarder used in concrete"]
[null,"Date","Mix",null,"Beam","Time","Slump","%","Age","W/C","Depth","Width","*Length","Indicated","Actual","Comp","Mod of","Location"]
[null,"Made","Number",null,"Number",null,null,"Air","Days",null,"Inches","Inches","Inches","Load (lbs)","Load (lbs)","Factor","Rupture","Inches"]
[null,null,null,null,null,null,null,null,null,null,null,null,null,null,null,{"$f":"IF(AND(K407>0,L407>0),3*M407/(2*L407*(K407*K407)),\"\")","v":""},{"$f":"IF(O407>0,O407*P407,\" \")","v":" "}]
[null,null,null,null,null,null,null,null,null,null,null,null,null,null,null,{"$f":"IF(AND(K408>0,L408>0),3*M408/(2*L408*(K408*K408)),\"\")","v":""},{"$f":"IF(O408>0,O408*P408,\" \")","v":" "}]
[null,null,null,null,null,null,null,null,null,null,null,null,null,null,null,""," "]
[null,null,null,null,null,null,null,null,null,null,null,null,null,null,null,""," "]
[null,null,null,null,null,null,null,null,null,null,null,null,null,null,null,""," "]
[null,null,null,null,null,null,null,null,null,null,null,null,null,null,null,""," "]
[null,null,null,null,null,null,null,null,null,null,null,null,null,null,null,""," "]
[]
["Distribution:",null," 1 copy to","Materials Engineer",null,"1 copy to ","RCE"]
[null,null,null,null,null,null,null,null,null,null,null,null,null,null,null,"  Structures Inspector"]
[{"$f":"A1","v":"Rev 10/26/18"},null,null,null,null,null,null,"STRUCTURES WEEKLY GRADE REPORT",null,null,null,null,null,null,null,null,null,null,"E145"]
[null,null,null,null,null,null,null,null,null,null,null,null,null,null,null,null,null,"FORM 830242E"]
[null,null,null,null,null,null,null,null,"Contract ID:",{"$f":"$J$3","v":0}]
[null,"Contractor:",{"$f":"$C$4","v":0},null,null,null,null,null,null,null,null,null,null,null,"County:",{"$f":"$P$4","v":0}]
[null,"Date:",null,null,null,null,null,null,null,null,null,null,null,null,"Project No:",{"$f":"$P$5","v":0}]
[null,"Report No.:",{"$f":"$C$6+9","v":10},null,null,null,null,null,null,null,null,null,null,null,"Design No:",{"$f":"$P$6","v":0}]
[]
[null,null,null,null,null,null,null,null,null,null,"           Plan",null,"             Actual",null,"Plan",null,"Concrete","Air"]
[null,"Date","                 Mix",null,null,"Unit",null,null,"Plant",null,"           Today",null,"              Used",null,"Total",null,"Treatment","Content","Slump"]
[null,"Poured","                  No",null,null,"Poured",null,null,"Name",null,"            (CY)",null,"               (CY)",null,"(CY)",null,null,"%","In."]
[null,null,null,null,null,null,null,null,null,null,null,null,null,null,"This Report"]
[null,null,null,null,null,null,null,null,null,null,null,null,null,null,{"$f":"IF(K428>0,K428,\"\")","v":""}]
[null,null,null,null,null,null,null,null,null,null,null,null,null,null,{"$f":"IF(K429>0,O428+K429,\"\")","v":""}]
[null,null,null,null,null,null,null,null,null,null,null,null,null,null,{"$f":"IF(K430>0,O429+K430,\"\")","v":""}]
[null,null,null,null,null,null,null,null,null,null,null,null,null,null,""]
[null,null,null,null,null,null,null,null,null,null,null,null,null,null,""]
[null,null,null,null,null,null,null,null,null,null,null,null,null,null,""]
[null,null,null,null,null,null,null,null,null,null,null,null,null,null,""]
[null,null,null,null,null,null,null,null,null,null,null,null,null,null,""]
[]
[null,"Additional Slump Tests, Air Tests, Beam Numbers of Beams Made & Remarks"]
[null,null,null,null,null,null,null,null,null,null,null,null,null,null,null,null,"Total Plan CY to Date"]
[null,null,null,null,null,null,null,null,null,null,null,null,null,null,null,null,{"$f":"IF(Q393=\"\",\"\",SUM(K428:L435,Q393))","v":""}]
[]
[]
[]
[]
[]
[]
[null,"Note:","Concrete Treatments",null,null,1,"Heated water only with no protection",null,null,null,null,6,"Ice added"]
[null,null,null,null,null,2,"Heated materials with no protection",null,null,null,null,7,"Nitrogen added"]
[null,"Indicate Number/s of the Concrete Treatment/s",null,null,null,3,"Protected concrete but did not heat materials",null,null,null,null,8,"Superplasticizer added"]
[null,"in the Column Provided Above",null,null,null,4,"Heated materials and protected concrete",null,null,null,null,9,"Microsilica added"]
[null,null,null,null,null,5,"Retarder used in concrete"]
[null,"Date","Mix",null,"Beam","Time","Slump","%","Age","W/C","Depth","Width","*Length","Indicated","Actual","Comp","Mod of","Location"]
[null,"Made","Number",null,"Number",null,null,"Air","Days",null,"Inches","Inches","Inches","Load (lbs)","Load (lbs)","Factor","Rupture","Inches"]
[null,null,null,null,null,null,null,null,null,null,null,null,null,null,null,{"$f":"IF(AND(K453>0,L453>0),3*M453/(2*L453*(K453*K453)),\"\")","v":""},{"$f":"IF(O453>0,O453*P453,\" \")","v":" "}]
[null,null,null,null,null,null,null,null,null,null,null,null,null,null,null,{"$f":"IF(AND(K454>0,L454>0),3*M454/(2*L454*(K454*K454)),\"\")","v":""},{"$f":"IF(O454>0,O454*P454,\" \")","v":" "}]
[null,null,null,null,null,null,null,null,null,null,null,null,null,null,null,""," "]
[null,null,null,null,null,null,null,null,null,null,null,null,null,null,null,""," "]
[null,null,null,null,null,null,null,null,null,null,null,null,null,null,null,""," "]
[null,null,null,null,null,null,null,null,null,null,null,null,null,null,null,""," "]
[null,null,null,null,null,null,null,null,null,null,null,null,null,null,null,""," "]
[]
["Distribution:",null," 1 copy to","Materials Engineer",null,"1 copy to ","RCE"]
[null,null,null,null,null,null,null,null,null,null,null,null,null,null,null,"  Structures Inspector"]
[{"$f":"A1","v":"Rev 10/26/18"},null,null,null,null,null,null,"STRUCTURES WEEKLY GRADE REPORT",null,null,null,null,null,null,null,null,null,null,"E145"]
[null,null,null,null,null,null,null,null,null,null,null,null,null,null,null,null,null,"FORM 830242E"]
[null,null,null,null,null,null,null,null,"Contract ID:",{"$f":"$J$3","v":0}]
[null,"Contractor:",{"$f":"$C$4","v":0},null,null,null,null,null,null,null,null,null,null,null,"County:",{"$f":"$P$4","v":0}]
[null,"Date:",null,null,null,null,null,null,null,null,null,null,null,null,"Project No:",{"$f":"$P$5","v":0}]
[null,"Report No.:",{"$f":"$C$6+10","v":11},null,null,null,null,null,null,null,null,null,null,null,"Design No:",{"$f":"$P$6","v":0}]
[]
[null,null,null,null,null,null,null,null,null,null,"           Plan",null,"             Actual",null,"Plan",null,"Concrete","Air"]
[null,"Date","                 Mix",null,null,"Unit",null,null,"Plant",null,"           Today",null,"              Used",null,"Total",null,"Treatment","Content","Slump"]
[null,"Poured","                  No",null,null,"Poured",null,null,"Name",null,"            (CY)",null,"               (CY)",null,"(CY)",null,null,"%","In."]
[null,null,null,null,null,null,null,null,null,null,null,null,null,null,"This Report"]
[null,null,null,null,null,null,null,null,null,null,null,null,null,null,{"$f":"IF(K474>0,K474,\"\")","v":""}]
[null,null,null,null,null,null,null,null,null,null,null,null,null,null,{"$f":"IF(K475>0,O474+K475,\"\")","v":""}]
[null,null,null,null,null,null,null,null,null,null,null,null,null,null,{"$f":"IF(K476>0,O475+K476,\"\")","v":""}]
[null,null,null,null,null,null,null,null,null,null,null,null,null,null,""]
[null,null,null,null,null,null,null,null,null,null,null,null,null,null,""]
[null,null,null,null,null,null,null,null,null,null,null,null,null,null,""]
[null,null,null,null,null,null,null,null,null,null,null,null,null,null,""]
[null,null,null,null,null,null,null,null,null,null,null,null,null,null,""]
[]
[null,"Additional Slump Tests, Air Tests, Beam Numbers of Beams Made & Remarks"]
[null,null,null,null,null,null,null,null,null,null,null,null,null,null,null,null,"Total Plan CY to Date"]
[null,null,null,null,null,null,null,null,null,null,null,null,null,null,null,null,{"$f":"IF(Q439=\"\",\"\",SUM(K474:L481,Q439))","v":""}]
[]
[]
[]
[]
[]
[]
[null,"Note:","Concrete Treatments",null,null,1,"Heated water only with no protection",null,null,null,null,6,"Ice added"]
[null,null,null,null,null,2,"Heated materials with no protection",null,null,null,null,7,"Nitrogen added"]
[null,"Indicate Number/s of the Concrete Treatment/s",null,null,null,3,"Protected concrete but did not heat materials",null,null,null,null,8,"Superplasticizer added"]
[null,"in the Column Provided Above",null,null,null,4,"Heated materials and protected concrete",null,null,null,null,9,"Microsilica added"]
[null,null,null,null,null,5,"Retarder used in concrete"]
[null,"Date","Mix",null,"Beam","Time","Slump","%","Age","W/C","Depth","Width","*Length","Indicated","Actual","Comp","Mod of","Location"]
[null,"Made","Number",null,"Number",null,null,"Air","Days",null,"Inches","Inches","Inches","Load (lbs)","Load (lbs)","Factor","Rupture","Inches"]
[null,null,null,null,null,null,null,null,null,null,null,null,null,null,null,{"$f":"IF(AND(K499>0,L499>0),3*M499/(2*L499*(K499*K499)),\"\")","v":""},{"$f":"IF(O499>0,O499*P499,\" \")","v":" "}]
[null,null,null,null,null,null,null,null,null,null,null,null,null,null,null,{"$f":"IF(AND(K500>0,L500>0),3*M500/(2*L500*(K500*K500)),\"\")","v":""},{"$f":"IF(O500>0,O500*P500,\" \")","v":" "}]
[null,null,null,null,null,null,null,null,null,null,null,null,null,null,null,""," "]
[null,null,null,null,null,null,null,null,null,null,null,null,null,null,null,""," "]
[null,null,null,null,null,null,null,null,null,null,null,null,null,null,null,""," "]
[null,null,null,null,null,null,null,null,null,null,null,null,null,null,null,""," "]
[null,null,null,null,null,null,null,null,null,null,null,null,null,null,null,""," "]
[]
["Distribution:",null," 1 copy to","Materials Engineer",null,"1 copy to ","RCE"]
[null,null,null,null,null,null,null,null,null,null,null,null,null,null,null,"  Structures Inspector"]
[{"$f":"A1","v":"Rev 10/26/18"},null,null,null,null,null,null,"STRUCTURES WEEKLY GRADE REPORT",null,null,null,null,null,null,null,null,null,null,"E145"]
[null,null,null,null,null,null,null,null,null,null,null,null,null,null,null,null,null,"FORM 830242E"]
[null,null,null,null,null,null,null,null,"Contract ID:",{"$f":"$J$3","v":0}]
[null,"Contractor:",{"$f":"$C$4","v":0},null,null,null,null,null,null,null,null,null,null,null,"County:",{"$f":"$P$4","v":0}]
[null,"Date:",null,null,null,null,null,null,null,null,null,null,null,null,"Project No:",{"$f":"$P$5","v":0}]
[null,"Report No.:",{"$f":"$C$6+11","v":12},null,null,null,null,null,null,null,null,null,null,null,"Design No:",{"$f":"$P$6","v":0}]
[]
[null,null,null,null,null,null,null,null,null,null,"           Plan",null,"             Actual",null,"Plan",null,"Concrete","Air"]
[null,"Date","                 Mix",null,null,"Unit",null,null,"Plant",null,"           Today",null,"              Used",null,"Total",null,"Treatment","Content","Slump"]
[null,"Poured","                  No",null,null,"Poured",null,null,"Name",null,"            (CY)",null,"               (CY)",null,"(CY)",null,null,"%","In."]
[null,null,null,null,null,null,null,null,null,null,null,null,null,null,"This Report"]
[null,null,null,null,null,null,null,null,null,null,null,null,null,null,{"$f":"IF(K520>0,K520,\"\")","v":""}]
[null,null,null,null,null,null,null,null,null,null,null,null,null,null,{"$f":"IF(K521>0,O520+K521,\"\")","v":""}]
[null,null,null,null,null,null,null,null,null,null,null,null,null,null,{"$f":"IF(K522>0,O521+K522,\"\")","v":""}]
[null,null,null,null,null,null,null,null,null,null,null,null,null,null,""]
[null,null,null,null,null,null,null,null,null,null,null,null,null,null,""]
[null,null,null,null,null,null,null,null,null,null,null,null,null,null,""]
[null,null,null,null,null,null,null,null,null,null,null,null,null,null,""]
[null,null,null,null,null,null,null,null,null,null,null,null,null,null,""]
[]
[null,"Additional Slump Tests, Air Tests, Beam Numbers of Beams Made & Remarks"]
[null,null,null,null,null,null,null,null,null,null,null,null,null,null,null,null,"Total Plan CY to Date"]
[null,null,null,null,null,null,null,null,null,null,null,null,null,null,null,null,{"$f":"IF(Q485=\"\",\"\",SUM(K520:L527,Q485))","v":""}]
[]
[]
[]
[]
[]
[]
[null,"Note:","Concrete Treatments",null,null,1,"Heated water only with no protection",null,null,null,null,6,"Ice added"]
[null,null,null,null,null,2,"Heated materials with no protection",null,null,null,null,7,"Nitrogen added"]
[null,"Indicate Number/s of the Concrete Treatment/s",null,null,null,3,"Protected concrete but did not heat materials",null,null,null,null,8,"Superplasticizer added"]
[null,"in the Column Provided Above",null,null,null,4,"Heated materials and protected concrete",null,null,null,null,9,"Microsilica added"]
[null,null,null,null,null,5,"Retarder used in concrete"]
[null,"Date","Mix",null,"Beam","Time","Slump","%","Age","W/C","Depth","Width","*Length","Indicated","Actual","Comp","Mod of","Location"]
[null,"Made","Number",null,"Number",null,null,"Air","Days",null,"Inches","Inches","Inches","Load (lbs)","Load (lbs)","Factor","Rupture","Inches"]
[null,null,null,null,null,null,null,null,null,null,null,null,null,null,null,{"$f":"IF(AND(K545>0,L545>0),3*M545/(2*L545*(K545*K545)),\"\")","v":""},{"$f":"IF(O545>0,O545*P545,\" \")","v":" "}]
[null,null,null,null,null,null,null,null,null,null,null,null,null,null,null,{"$f":"IF(AND(K546>0,L546>0),3*M546/(2*L546*(K546*K546)),\"\")","v":""},{"$f":"IF(O546>0,O546*P546,\" \")","v":" "}]
[null,null,null,null,null,null,null,null,null,null,null,null,null,null,null,""," "]
[null,null,null,null,null,null,null,null,null,null,null,null,null,null,null,""," "]
[null,null,null,null,null,null,null,null,null,null,null,null,null,null,null,""," "]
[null,null,null,null,null,null,null,null,null,null,null,null,null,null,null,""," "]
[null,null,null,null,null,null,null,null,null,null,null,null,null,null,null,""," "]
[]
["Distribution:",null," 1 copy to","Materials Engineer",null,"1 copy to ","RCE"]
[null,null,null,null,null,null,null,null,null,null,null,null,null,null,null,"  Structures Inspector"]
[{"$f":"A1","v":"Rev 10/26/18"},null,null,null,null,null,null,"STRUCTURES WEEKLY GRADE REPORT",null,null,null,null,null,null,null,null,null,null,"E145"]
[null,null,null,null,null,null,null,null,null,null,null,null,null,null,null,null,null,"FORM 830242E"]
[null,null,null,null,null,null,null,null,"Contract ID:",{"$f":"$J$3","v":0}]
[null,"Contractor:",{"$f":"$C$4","v":0},null,null,null,null,null,null,null,null,null,null,null,"County:",{"$f":"$P$4","v":0}]
[null,"Date:",null,null,null,null,null,null,null,null,null,null,null,null,"Project No:",{"$f":"$P$5","v":0}]
[null,"Report No.:",{"$f":"$C$6+12","v":13},null,null,null,null,null,null,null,null,null,null,null,"Design No:",{"$f":"$P$6","v":0}]
[]
[null,null,null,null,null,null,null,null,null,null,"           Plan",null,"             Actual",null,"Plan",null,"Concrete","Air"]
[null,"Date","                 Mix",null,null,"Unit",null,null,"Plant",null,"           Today",null,"              Used",null,"Total",null,"Treatment","Content","Slump"]
[null,"Poured","                  No",null,null,"Poured",null,null,"Name",null,"            (CY)",null,"               (CY)",null,"(CY)",null,null,"%","In."]
[null,null,null,null,null,null,null,null,null,null,null,null,null,null,"This Report"]
[null,null,null,null,null,null,null,null,null,null,null,null,null,null,{"$f":"IF(K566>0,K566,\"\")","v":""}]
[null,null,null,null,null,null,null,null,null,null,null,null,null,null,{"$f":"IF(K567>0,O566+K567,\"\")","v":""}]
[null,null,null,null,null,null,null,null,null,null,null,null,null,null,{"$f":"IF(K568>0,O567+K568,\"\")","v":""}]
[null,null,null,null,null,null,null,null,null,null,null,null,null,null,""]
[null,null,null,null,null,null,null,null,null,null,null,null,null,null,""]
[null,null,null,null,null,null,null,null,null,null,null,null,null,null,""]
[null,null,null,null,null,null,null,null,null,null,null,null,null,null,""]
[null,null,null,null,null,null,null,null,null,null,null,null,null,null,""]
[]
[null,"Additional Slump Tests, Air Tests, Beam Numbers of Beams Made & Remarks"]
[null,null,null,null,null,null,null,null,null,null,null,null,null,null,null,null,"Total Plan CY to Date"]
[null,null,null,null,null,null,null,null,null,null,null,null,null,null,null,null,{"$f":"IF(Q531=\"\",\"\",SUM(K566:L573,Q531))","v":""}]
[]
[]
[]
[]
[]
[]
[null,"Note:","Concrete Treatments",null,null,1,"Heated water only with no protection",null,null,null,null,6,"Ice added"]
[null,null,null,null,null,2,"Heated materials with no protection",null,null,null,null,7,"Nitrogen added"]
[null,"Indicate Number/s of the Concrete Treatment/s",null,null,null,3,"Protected concrete but did not heat materials",null,null,null,null,8,"Superplasticizer added"]
[null,"in the Column Provided Above",null,null,null,4,"Heated materials and protected concrete",null,null,null,null,9,"Microsilica added"]
[null,null,null,null,null,5,"Retarder used in concrete"]
[null,"Date","Mix",null,"Beam","Time","Slump","%","Age","W/C","Depth","Width","*Length","Indicated","Actual","Comp","Mod of","Location"]
[null,"Made","Number",null,"Number",null,null,"Air","Days",null,"Inches","Inches","Inches","Load (lbs)","Load (lbs)","Factor","Rupture","Inches"]
[null,null,null,null,null,null,null,null,null,null,null,null,null,null,null,{"$f":"IF(AND(K591>0,L591>0),3*M591/(2*L591*(K591*K591)),\"\")","v":""},{"$f":"IF(O591>0,O591*P591,\" \")","v":" "}]
[null,null,null,null,null,null,null,null,null,null,null,null,null,null,null,{"$f":"IF(AND(K592>0,L592>0),3*M592/(2*L592*(K592*K592)),\"\")","v":""},{"$f":"IF(O592>0,O592*P592,\" \")","v":" "}]
[null,null,null,null,null,null,null,null,null,null,null,null,null,null,null,""," "]
[null,null,null,null,null,null,null,null,null,null,null,null,null,null,null,""," "]
[null,null,null,null,null,null,null,null,null,null,null,null,null,null,null,""," "]
[null,null,null,null,null,null,null,null,null,null,null,null,null,null,null,""," "]
[null,null,null,null,null,null,null,null,null,null,null,null,null,null,null,""," "]
[]
["Distribution:",null," 1 copy to","Materials Engineer",null,"1 copy to ","RCE"]
[null,null,null,null,null,null,null,null,null,null,null,null,null,null,null,"  Structures Inspector"]
[{"$f":"A1","v":"Rev 10/26/18"},null,null,null,null,null,null,"STRUCTURES WEEKLY GRADE REPORT",null,null,null,null,null,null,null,null,null,null,"E145"]
[null,null,null,null,null,null,null,null,null,null,null,null,null,null,null,null,null,"FORM 830242E"]
[null,null,null,null,null,null,null,null,"Contract ID:",{"$f":"$J$3","v":0}]
[null,"Contractor:",{"$f":"$C$4","v":0},null,null,null,null,null,null,null,null,null,null,null,"County:",{"$f":"$P$4","v":0}]
[null,"Date:",null,null,null,null,null,null,null,null,null,null,null,null,"Project No:",{"$f":"$P$5","v":0}]
[null,"Report No.:",{"$f":"$C$6+13","v":14},null,null,null,null,null,null,null,null,null,null,null,"Design No:",{"$f":"$P$6","v":0}]
[]
[null,null,null,null,null,null,null,null,null,null,"           Plan",null,"             Actual",null,"Plan",null,"Concrete","Air"]
[null,"Date","                 Mix",null,null,"Unit",null,null,"Plant",null,"           Today",null,"              Used",null,"Total",null,"Treatment","Content","Slump"]
[null,"Poured","                  No",null,null,"Poured",null,null,"Name",null,"            (CY)",null,"               (CY)",null,"(CY)",null,null,"%","In."]
[null,null,null,null,null,null,null,null,null,null,null,null,null,null,"This Report"]
[null,null,null,null,null,null,null,null,null,null,null,null,null,null,{"$f":"IF(K612>0,K612,\"\")","v":""}]
[null,null,null,null,null,null,null,null,null,null,null,null,null,null,{"$f":"IF(K613>0,O612+K613,\"\")","v":""}]
[null,null,null,null,null,null,null,null,null,null,null,null,null,null,{"$f":"IF(K614>0,O613+K614,\"\")","v":""}]
[null,null,null,null,null,null,null,null,null,null,null,null,null,null,""]
[null,null,null,null,null,null,null,null,null,null,null,null,null,null,""]
[null,null,null,null,null,null,null,null,null,null,null,null,null,null,""]
[null,null,null,null,null,null,null,null,null,null,null,null,null,null,""]
[null,null,null,null,null,null,null,null,null,null,null,null,null,null,""]
[]
[null,"Additional Slump Tests, Air Tests, Beam Numbers of Beams Made & Remarks"]
[null,null,null,null,null,null,null,null,null,null,null,null,null,null,null,null,"Total Plan CY to Date"]
[null,null,null,null,null,null,null,null,null,null,null,null,null,null,null,null,{"$f":"IF(Q577=\"\",\"\",SUM(K612:L619,Q577))","v":""}]
[]
[]
[]
[]
[]
[]
[null,"Note:","Concrete Treatments",null,null,1,"Heated water only with no protection",null,null,null,null,6,"Ice added"]
[null,null,null,null,null,2,"Heated materials with no protection",null,null,null,null,7,"Nitrogen added"]
[null,"Indicate Number/s of the Concrete Treatment/s",null,null,null,3,"Protected concrete but did not heat materials",null,null,null,null,8,"Superplasticizer added"]
[null,"in the Column Provided Above",null,null,null,4,"Heated materials and protected concrete",null,null,null,null,9,"Microsilica added"]
[null,null,null,null,null,5,"Retarder used in concrete"]
[null,"Date","Mix",null,"Beam","Time","Slump","%","Age","W/C","Depth","Width","*Length","Indicated","Actual","Comp","Mod of","Location"]
[null,"Made","Number",null,"Number",null,null,"Air","Days",null,"Inches","Inches","Inches","Load (lbs)","Load (lbs)","Factor","Rupture","Inches"]
[null,null,null,null,null,null,null,null,null,null,null,null,null,null,null,{"$f":"IF(AND(K637>0,L637>0),3*M637/(2*L637*(K637*K637)),\"\")","v":""},{"$f":"IF(O637>0,O637*P637,\" \")","v":" "}]
[null,null,null,null,null,null,null,null,null,null,null,null,null,null,null,{"$f":"IF(AND(K638>0,L638>0),3*M638/(2*L638*(K638*K638)),\"\")","v":""},{"$f":"IF(O638>0,O638*P638,\" \")","v":" "}]
[null,null,null,null,null,null,null,null,null,null,null,null,null,null,null,""," "]
[null,null,null,null,null,null,null,null,null,null,null,null,null,null,null,""," "]
[null,null,null,null,null,null,null,null,null,null,null,null,null,null,null,""," "]
[null,null,null,null,null,null,null,null,null,null,null,null,null,null,null,""," "]
[null,null,null,null,null,null,null,null,null,null,null,null,null,null,null,""," "]
[]
["Distribution:",null," 1 copy to","Materials Engineer",null,"1 copy to ","RCE"]
[null,null,null,null,null,null,null,null,null,null,null,null,null,null,null,"  Structures Inspector"]
[{"$f":"A1","v":"Rev 10/26/18"},null,null,null,null,null,null,"STRUCTURES WEEKLY GRADE REPORT",null,null,null,null,null,null,null,null,null,null,"E145"]
[null,null,null,null,null,null,null,null,null,null,null,null,null,null,null,null,null,"FORM 830242E"]
[null,null,null,null,null,null,null,null,"Contract ID:",{"$f":"$J$3","v":0}]
[null,"Contractor:",{"$f":"$C$4","v":0},null,null,null,null,null,null,null,null,null,null,null,"County:",{"$f":"$P$4","v":0}]
[null,"Date:",null,null,null,null,null,null,null,null,null,null,null,null,"Project No:",{"$f":"$P$5","v":0}]
[null,"Report No.:",{"$f":"$C$6+14","v":15},null,null,null,null,null,null,null,null,null,null,null,"Design No:",{"$f":"$P$6","v":0}]
[]
[null,null,null,null,null,null,null,null,null,null,"           Plan",null,"             Actual",null,"Plan",null,"Concrete","Air"]
[null,"Date","                 Mix",null,null,"Unit",null,null,"Plant",null,"           Today",null,"              Used",null,"Total",null,"Treatment","Content","Slump"]
[null,"Poured","                  No",null,null,"Poured",null,null,"Name",null,"            (CY)",null,"               (CY)",null,"(CY)",null,null,"%","In."]
[null,null,null,null,null,null,null,null,null,null,null,null,null,null,"This Report"]
[null,null,null,null,null,null,null,null,null,null,null,null,null,null,{"$f":"IF(K658>0,K658,\"\")","v":""}]
[null,null,null,null,null,null,null,null,null,null,null,null,null,null,{"$f":"IF(K659>0,O658+K659,\"\")","v":""}]
[null,null,null,null,null,null,null,null,null,null,null,null,null,null,{"$f":"IF(K660>0,O659+K660,\"\")","v":""}]
[null,null,null,null,null,null,null,null,null,null,null,null,null,null,""]
[null,null,null,null,null,null,null,null,null,null,null,null,null,null,""]
[null,null,null,null,null,null,null,null,null,null,null,null,null,null,""]
[null,null,null,null,null,null,null,null,null,null,null,null,null,null,""]
[null,null,null,null,null,null,null,null,null,null,null,null,null,null,""]
[]
[null,"Additional Slump Tests, Air Tests, Beam Numbers of Beams Made & Remarks"]
[null,null,null,null,null,null,null,null,null,null,null,null,null,null,null,null,"Total Plan CY to Date"]
[null,null,null,null,null,null,null,null,null,null,null,null,null,null,null,null,{"$f":"IF(Q623=\"\",\"\",SUM(K658:L665,Q623))","v":""}]
[]
[]
[]
[]
[]
[]
[null,"Note:","Concrete Treatments",null,null,1,"Heated water only with no protection",null,null,null,null,6,"Ice added"]
[null,null,null,null,null,2,"Heated materials with no protection",null,null,null,null,7,"Nitrogen added"]
[null,"Indicate Number/s of the Concrete Treatment/s",null,null,null,3,"Protected concrete but did not heat materials",null,null,null,null,8,"Superplasticizer added"]
[null,"in the Column Provided Above",null,null,null,4,"Heated materials and protected concrete",null,null,null,null,9,"Microsilica added"]
[null,null,null,null,null,5,"Retarder used in concrete"]
[null,"Date","Mix",null,"Beam","Time","Slump","%","Age","W/C","Depth","Width","*Length","Indicated","Actual","Comp","Mod of","Location"]
[null,"Made","Number",null,"Number",null,null,"Air","Days",null,"Inches","Inches","Inches","Load (lbs)","Load (lbs)","Factor","Rupture","Inches"]
[null,null,null,null,null,null,null,null,null,null,null,null,null,null,null,{"$f":"IF(AND(K683>0,L683>0),3*M683/(2*L683*(K683*K683)),\"\")","v":""},{"$f":"IF(O683>0,O683*P683,\" \")","v":" "}]
[null,null,null,null,null,null,null,null,null,null,null,null,null,null,null,{"$f":"IF(AND(K684>0,L684>0),3*M684/(2*L684*(K684*K684)),\"\")","v":""},{"$f":"IF(O684>0,O684*P684,\" \")","v":" "}]
[null,null,null,null,null,null,null,null,null,null,null,null,null,null,null,""," "]
[null,null,null,null,null,null,null,null,null,null,null,null,null,null,null,""," "]
[null,null,null,null,null,null,null,null,null,null,null,null,null,null,null,""," "]
[null,null,null,null,null,null,null,null,null,null,null,null,null,null,null,""," "]
[null,null,null,null,null,null,null,null,null,null,null,null,null,null,null,""," "]
[]
["Distribution:",null," 1 copy to","Materials Engineer",null,"1 copy to ","RCE"]
[null,null,null,null,null,null,null,null,null,null,null,null,null,null,null,"  Structures Inspector"]
[{"$f":"A1","v":"Rev 10/26/18"},null,null,null,null,null,null,"STRUCTURES WEEKLY GRADE REPORT",null,null,null,null,null,null,null,null,null,null,"E145"]
[null,null,null,null,null,null,null,null,null,null,null,null,null,null,null,null,null,"FORM 830242E"]
[null,null,null,null,null,null,null,null,"Contract ID:",{"$f":"$J$3","v":0}]
[null,"Contractor:",{"$f":"$C$4","v":0},null,null,null,null,null,null,null,null,null,null,null,"County:",{"$f":"$P$4","v":0}]
[null,"Date:",null,null,null,null,null,null,null,null,null,null,null,null,"Project No:",{"$f":"$P$5","v":0}]
[null,"Report No.:",{"$f":"$C$6+15","v":16},null,null,null,null,null,null,null,null,null,null,null,"Design No:",{"$f":"$P$6","v":0}]
[]
[null,null,null,null,null,null,null,null,null,null,"           Plan",null,"             Actual",null,"Plan",null,"Concrete","Air"]
[null,"Date","                 Mix",null,null,"Unit",null,null,"Plant",null,"           Today",null,"              Used",null,"Total",null,"Treatment","Content","Slump"]
[null,"Poured","                  No",null,null,"Poured",null,null,"Name",null,"            (CY)",null,"               (CY)",null,"(CY)",null,null,"%","In."]
[null,null,null,null,null,null,null,null,null,null,null,null,null,null,"This Report"]
[null,null,null,null,null,null,null,null,null,null,null,null,null,null,{"$f":"IF(K704>0,K704,\"\")","v":""}]
[null,null,null,null,null,null,null,null,null,null,null,null,null,null,{"$f":"IF(K705>0,O704+K705,\"\")","v":""}]
[null,null,null,null,null,null,null,null,null,null,null,null,null,null,{"$f":"IF(K706>0,O705+K706,\"\")","v":""}]
[null,null,null,null,null,null,null,null,null,null,null,null,null,null,""]
[null,null,null,null,null,null,null,null,null,null,null,null,null,null,""]
[null,null,null,null,null,null,null,null,null,null,null,null,null,null,""]
[null,null,null,null,null,null,null,null,null,null,null,null,null,null,""]
[null,null,null,null,null,null,null,null,null,null,null,null,null,null,""]
[]
[null,"Additional Slump Tests, Air Tests, Beam Numbers of Beams Made & Remarks"]
[null,null,null,null,null,null,null,null,null,null,null,null,null,null,null,null,"Total Plan CY to Date"]
[null,null,null,null,null,null,null,null,null,null,null,null,null,null,null,null,{"$f":"IF(Q669=\"\",\"\",SUM(K704:L711,Q669))","v":""}]
[]
[]
[]
[]
[]
[]
[null,"Note:","Concrete Treatments",null,null,1,"Heated water only with no protection",null,null,null,null,6,"Ice added"]
[null,null,null,null,null,2,"Heated materials with no protection",null,null,null,null,7,"Nitrogen added"]
[null,"Indicate Number/s of the Concrete Treatment/s",null,null,null,3,"Protected concrete but did not heat materials",null,null,null,null,8,"Superplasticizer added"]
[null,"in the Column Provided Above",null,null,null,4,"Heated materials and protected concrete",null,null,null,null,9,"Microsilica added"]
[null,null,null,null,null,5,"Retarder used in concrete"]
[null,"Date","Mix",null,"Beam","Time","Slump","%","Age","W/C","Depth","Width","*Length","Indicated","Actual","Comp","Mod of","Location"]
[null,"Made","Number",null,"Number",null,null,"Air","Days",null,"Inches","Inches","Inches","Load (lbs)","Load (lbs)","Factor","Rupture","Inches"]
[null,null,null,null,null,null,null,null,null,null,null,null,null,null,null,{"$f":"IF(AND(K729>0,L729>0),3*M729/(2*L729*(K729*K729)),\"\")","v":""},{"$f":"IF(O729>0,O729*P729,\" \")","v":" "}]
[null,null,null,null,null,null,null,null,null,null,null,null,null,null,null,{"$f":"IF(AND(K730>0,L730>0),3*M730/(2*L730*(K730*K730)),\"\")","v":""},{"$f":"IF(O730>0,O730*P730,\" \")","v":" "}]
[null,null,null,null,null,null,null,null,null,null,null,null,null,null,null,""," "]
[null,null,null,null,null,null,null,null,null,null,null,null,null,null,null,""," "]
[null,null,null,null,null,null,null,null,null,null,null,null,null,null,null,""," "]
[null,null,null,null,null,null,null,null,null,null,null,null,null,null,null,""," "]
[null,null,null,null,null,null,null,null,null,null,null,null,null,null,null,""," "]
[]
["Distribution:",null," 1 copy to","Materials Engineer",null,"1 copy to ","RCE"]
[null,null,null,null,null,null,null,null,null,null,null,null,null,null,null,"  Structures Inspector"]
[{"$f":"A1","v":"Rev 10/26/18"},null,null,null,null,null,null,"STRUCTURES WEEKLY GRADE REPORT",null,null,null,null,null,null,null,null,null,null,"E145"]
[null,null,null,null,null,null,null,null,null,null,null,null,null,null,null,null,null,"FORM 830242E"]
[null,null,null,null,null,null,null,null,"Contract ID:",{"$f":"$J$3","v":0}]
[null,"Contractor:",{"$f":"$C$4","v":0},null,null,null,null,null,null,null,null,null,null,null,"County:",{"$f":"$P$4","v":0}]
[null,"Date:",null,null,null,null,null,null,null,null,null,null,null,null,"Project No:",{"$f":"$P$5","v":0}]
[null,"Report No.:",{"$f":"$C$6+16","v":17},null,null,null,null,null,null,null,null,null,null,null,"Design No:",{"$f":"$P$6","v":0}]
[]
[null,null,null,null,null,null,null,null,null,null,"           Plan",null,"             Actual",null,"Plan",null,"Concrete","Air"]
[null,"Date","                 Mix",null,null,"Unit",null,null,"Plant",null,"           Today",null,"              Used",null,"Total",null,"Treatment","Content","Slump"]
[null,"Poured","                  No",null,null,"Poured",null,null,"Name",null,"            (CY)",null,"               (CY)",null,"(CY)",null,null,"%","In."]
[null,null,null,null,null,null,null,null,null,null,null,null,null,null,"This Report"]
[null,null,null,null,null,null,null,null,null,null,null,null,null,null,{"$f":"IF(K750>0,K750,\"\")","v":""}]
[null,null,null,null,null,null,null,null,null,null,null,null,null,null,{"$f":"IF(K751>0,O750+K751,\"\")","v":""}]
[null,null,null,null,null,null,null,null,null,null,null,null,null,null,{"$f":"IF(K752>0,O751+K752,\"\")","v":""}]
[null,null,null,null,null,null,null,null,null,null,null,null,null,null,""]
[null,null,null,null,null,null,null,null,null,null,null,null,null,null,""]
[null,null,null,null,null,null,null,null,null,null,null,null,null,null,""]
[null,null,null,null,null,null,null,null,null,null,null,null,null,null,""]
[null,null,null,null,null,null,null,null,null,null,null,null,null,null,""]
[]
[null,"Additional Slump Tests, Air Tests, Beam Numbers of Beams Made & Remarks"]
[null,null,null,null,null,null,null,null,null,null,null,null,null,null,null,null,"Total Plan CY to Date"]
[null,null,null,null,null,null,null,null,null,null,null,null,null,null,null,null,{"$f":"IF(Q715=\"\",\"\",SUM(K750:L757,Q715))","v":""}]
[]
[]
[]
[]
[]
[]
[null,"Note:","Concrete Treatments",null,null,1,"Heated water only with no protection",null,null,null,null,6,"Ice added"]
[null,null,null,null,null,2,"Heated materials with no protection",null,null,null,null,7,"Nitrogen added"]
[null,"Indicate Number/s of the Concrete Treatment/s",null,null,null,3,"Protected concrete but did not heat materials",null,null,null,null,8,"Superplasticizer added"]
[null,"in the Column Provided Above",null,null,null,4,"Heated materials and protected concrete",null,null,null,null,9,"Microsilica added"]
[null,null,null,null,null,5,"Retarder used in concrete"]
[null,"Date","Mix",null,"Beam","Time","Slump","%","Age","W/C","Depth","Width","*Length","Indicated","Actual","Comp","Mod of","Location"]
[null,"Made","Number",null,"Number",null,null,"Air","Days",null,"Inches","Inches","Inches","Load (lbs)","Load (lbs)","Factor","Rupture","Inches"]
[null,null,null,null,null,null,null,null,null,null,null,null,null,null,null,{"$f":"IF(AND(K775>0,L775>0),3*M775/(2*L775*(K775*K775)),\"\")","v":""},{"$f":"IF(O775>0,O775*P775,\" \")","v":" "}]
[null,null,null,null,null,null,null,null,null,null,null,null,null,null,null,{"$f":"IF(AND(K776>0,L776>0),3*M776/(2*L776*(K776*K776)),\"\")","v":""},{"$f":"IF(O776>0,O776*P776,\" \")","v":" "}]
[null,null,null,null,null,null,null,null,null,null,null,null,null,null,null,""," "]
[null,null,null,null,null,null,null,null,null,null,null,null,null,null,null,""," "]
[null,null,null,null,null,null,null,null,null,null,null,null,null,null,null,""," "]
[null,null,null,null,null,null,null,null,null,null,null,null,null,null,null,""," "]
[null,null,null,null,null,null,null,null,null,null,null,null,null,null,null,""," "]
[]
["Distribution:",null," 1 copy to","Materials Engineer",null,"1 copy to ","RCE"]
[null,null,null,null,null,null,null,null,null,null,null,null,null,null,null,"  Structures Inspector"]
[{"$f":"A1","v":"Rev 10/26/18"},null,null,null,null,null,null,"STRUCTURES WEEKLY GRADE REPORT",null,null,null,null,null,null,null,null,null,null,"E145"]
[null,null,null,null,null,null,null,null,null,null,null,null,null,null,null,null,null,"FORM 830242E"]
[null,null,null,null,null,null,null,null,"Contract ID:",{"$f":"$J$3","v":0}]
[null,"Contractor:",{"$f":"$C$4","v":0},null,null,null,null,null,null,null,null,null,null,null,"County:",{"$f":"$P$4","v":0}]
[null,"Date:",null,null,null,null,null,null,null,null,null,null,null,null,"Project No:",{"$f":"$P$5","v":0}]
[null,"Report No.:",{"$f":"$C$6+17","v":18},null,null,null,null,null,null,null,null,null,null,null,"Design No:",{"$f":"$P$6","v":0}]
[]
[null,null,null,null,null,null,null,null,null,null,"           Plan",null,"             Actual",null,"Plan",null,"Concrete","Air"]
[null,"Date","                 Mix",null,null,"Unit",null,null,"Plant",null,"           Today",null,"              Used",null,"Total",null,"Treatment","Content","Slump"]
[null,"Poured","                  No",null,null,"Poured",null,null,"Name",null,"            (CY)",null,"               (CY)",null,"(CY)",null,null,"%","In."]
[null,null,null,null,null,null,null,null,null,null,null,null,null,null,"This Report"]
[null,null,null,null,null,null,null,null,null,null,null,null,null,null,{"$f":"IF(K796>0,K796,\"\")","v":""}]
[null,null,null,null,null,null,null,null,null,null,null,null,null,null,{"$f":"IF(K797>0,O796+K797,\"\")","v":""}]
[null,null,null,null,null,null,null,null,null,null,null,null,null,null,{"$f":"IF(K798>0,O797+K798,\"\")","v":""}]
[null,null,null,null,null,null,null,null,null,null,null,null,null,null,""]
[null,null,null,null,null,null,null,null,null,null,null,null,null,null,""]
[null,null,null,null,null,null,null,null,null,null,null,null,null,null,""]
[null,null,null,null,null,null,null,null,null,null,null,null,null,null,""]
[null,null,null,null,null,null,null,null,null,null,null,null,null,null,""]
[]
[null,"Additional Slump Tests, Air Tests, Beam Numbers of Beams Made & Remarks"]
[null,null,null,null,null,null,null,null,null,null,null,null,null,null,null,null,"Total Plan CY to Date"]
[null,null,null,null,null,null,null,null,null,null,null,null,null,null,null,null,{"$f":"IF(Q761=\"\",\"\",SUM(K796:L803,Q761))","v":""}]
[]
[]
[]
[]
[]
[]
[null,"Note:","Concrete Treatments",null,null,1,"Heated water only with no protection",null,null,null,null,6,"Ice added"]
[null,null,null,null,null,2,"Heated materials with no protection",null,null,null,null,7,"Nitrogen added"]
[null,"Indicate Number/s of the Concrete Treatment/s",null,null,null,3,"Protected concrete but did not heat materials",null,null,null,null,8,"Superplasticizer added"]
[null,"in the Column Provided Above",null,null,null,4,"Heated materials and protected concrete",null,null,null,null,9,"Microsilica added"]
[null,null,null,null,null,5,"Retarder used in concrete"]
[null,"Date","Mix",null,"Beam","Time","Slump","%","Age","W/C","Depth","Width","*Length","Indicated","Actual","Comp","Mod of","Location"]
[null,"Made","Number",null,"Number",null,null,"Air","Days",null,"Inches","Inches","Inches","Load (lbs)","Load (lbs)","Factor","Rupture","Inches"]
[null,null,null,null,null,null,null,null,null,null,null,null,null,null,null,{"$f":"IF(AND(K821>0,L821>0),3*M821/(2*L821*(K821*K821)),\"\")","v":""},{"$f":"IF(O821>0,O821*P821,\" \")","v":" "}]
[null,null,null,null,null,null,null,null,null,null,null,null,null,null,null,{"$f":"IF(AND(K822>0,L822>0),3*M822/(2*L822*(K822*K822)),\"\")","v":""},{"$f":"IF(O822>0,O822*P822,\" \")","v":" "}]
[null,null,null,null,null,null,null,null,null,null,null,null,null,null,null,""," "]
[null,null,null,null,null,null,null,null,null,null,null,null,null,null,null,""," "]
[null,null,null,null,null,null,null,null,null,null,null,null,null,null,null,""," "]
[null,null,null,null,null,null,null,null,null,null,null,null,null,null,null,""," "]
[null,null,null,null,null,null,null,null,null,null,null,null,null,null,null,""," "]
[]
["Distribution:",null," 1 copy to","Materials Engineer",null,"1 copy to ","RCE"]
[null,null,null,null,null,null,null,null,null,null,null,null,null,null,null,"  Structures Inspector"]
[{"$f":"A1","v":"Rev 10/26/18"},null,null,null,null,null,null,"STRUCTURES WEEKLY GRADE REPORT",null,null,null,null,null,null,null,null,null,null,"E145"]
[null,null,null,null,null,null,null,null,null,null,null,null,null,null,null,null,null,"FORM 830242E"]
[null,null,null,null,null,null,null,null,"Contract ID:",{"$f":"$J$3","v":0}]
[null,"Contractor:",{"$f":"$C$4","v":0},null,null,null,null,null,null,null,null,null,null,null,"County:",{"$f":"$P$4","v":0}]
[null,"Date:",null,null,null,null,null,null,null,null,null,null,null,null,"Project No:",{"$f":"$P$5","v":0}]
[null,"Report No.:",{"$f":"$C$6+18","v":19},null,null,null,null,null,null,null,null,null,null,null,"Design No:",{"$f":"$P$6","v":0}]
[]
[null,null,null,null,null,null,null,null,null,null,"           Plan",null,"             Actual",null,"Plan",null,"Concrete","Air"]
[null,"Date","                 Mix",null,null,"Unit",null,null,"Plant",null,"           Today",null,"              Used",null,"Total",null,"Treatment","Content","Slump"]
[null,"Poured","                  No",null,null,"Poured",null,null,"Name",null,"            (CY)",null,"               (CY)",null,"(CY)",null,null,"%","In."]
[null,null,null,null,null,null,null,null,null,null,null,null,null,null,"This Report"]
[null,null,null,null,null,null,null,null,null,null,null,null,null,null,{"$f":"IF(K842>0,K842,\"\")","v":""}]
[null,null,null,null,null,null,null,null,null,null,null,null,null,null,{"$f":"IF(K843>0,O842+K843,\"\")","v":""}]
[null,null,null,null,null,null,null,null,null,null,null,null,null,null,{"$f":"IF(K844>0,O843+K844,\"\")","v":""}]
[null,null,null,null,null,null,null,null,null,null,null,null,null,null,""]
[null,null,null,null,null,null,null,null,null,null,null,null,null,null,""]
[null,null,null,null,null,null,null,null,null,null,null,null,null,null,""]
[null,null,null,null,null,null,null,null,null,null,null,null,null,null,""]
[null,null,null,null,null,null,null,null,null,null,null,null,null,null,""]
[]
[null,"Additional Slump Tests, Air Tests, Beam Numbers of Beams Made & Remarks"]
[null,null,null,null,null,null,null,null,null,null,null,null,null,null,null,null,"Total Plan CY to Date"]
[null,null,null,null,null,null,null,null,null,null,null,null,null,null,null,null,{"$f":"IF(Q807=\"\",\"\",SUM(K842:L849,Q807))","v":""}]
[]
[]
[]
[]
[]
[]
[null,"Note:","Concrete Treatments",null,null,1,"Heated water only with no protection",null,null,null,null,6,"Ice added"]
[null,null,null,null,null,2,"Heated materials with no protection",null,null,null,null,7,"Nitrogen added"]
[null,"Indicate Number/s of the Concrete Treatment/s",null,null,null,3,"Protected concrete but did not heat materials",null,null,null,null,8,"Superplasticizer added"]
[null,"in the Column Provided Above",null,null,null,4,"Heated materials and protected concrete",null,null,null,null,9,"Microsilica added"]
[null,null,null,null,null,5,"Retarder used in concrete"]
[null,"Date","Mix",null,"Beam","Time","Slump","%","Age","W/C","Depth","Width","*Length","Indicated","Actual","Comp","Mod of","Location"]
[null,"Made","Number",null,"Number",null,null,"Air","Days",null,"Inches","Inches","Inches","Load (lbs)","Load (lbs)","Factor","Rupture","Inches"]
[null,null,null,null,null,null,null,null,null,null,null,null,null,null,null,{"$f":"IF(AND(K867>0,L867>0),3*M867/(2*L867*(K867*K867)),\"\")","v":""},{"$f":"IF(O867>0,O867*P867,\" \")","v":" "}]
[null,null,null,null,null,null,null,null,null,null,null,null,null,null,null,{"$f":"IF(AND(K868>0,L868>0),3*M868/(2*L868*(K868*K868)),\"\")","v":""},{"$f":"IF(O868>0,O868*P868,\" \")","v":" "}]
[null,null,null,null,null,null,null,null,null,null,null,null,null,null,null,""," "]
[null,null,null,null,null,null,null,null,null,null,null,null,null,null,null,""," "]
[null,null,null,null,null,null,null,null,null,null,null,null,null,null,null,""," "]
[null,null,null,null,null,null,null,null,null,null,null,null,null,null,null,""," "]
[null,null,null,null,null,null,null,null,null,null,null,null,null,null,null,""," "]
[]
["Distribution:",null," 1 copy to","Materials Engineer",null,"1 copy to ","RCE"]
[null,null,null,null,null,null,null,null,null,null,null,null,null,null,null,"  Structures Inspector"]
[{"$f":"A1","v":"Rev 10/26/18"},null,null,null,null,null,null,"STRUCTURES WEEKLY GRADE REPORT",null,null,null,null,null,null,null,null,null,null,"E145"]
[null,null,null,null,null,null,null,null,null,null,null,null,null,null,null,null,null,"FORM 830242E"]
[null,null,null,null,null,null,null,null,"Contract ID:",{"$f":"$J$3","v":0}]
[null,"Contractor:",{"$f":"$C$4","v":0},null,null,null,null,null,null,null,null,null,null,null,"County:",{"$f":"$P$4","v":0}]
[null,"Date:",null,null,null,null,null,null,null,null,null,null,null,null,"Project No:",{"$f":"$P$5","v":0}]
[null,"Report No.:",{"$f":"$C$6+19","v":20},null,null,null,null,null,null,null,null,null,null,null,"Design No:",{"$f":"$P$6","v":0}]
[]
[null,null,null,null,null,null,null,null,null,null,"           Plan",null,"             Actual",null,"Plan",null,"Concrete","Air"]
[null,"Date","                 Mix",null,null,"Unit",null,null,"Plant",null,"           Today",null,"              Used",null,"Total",null,"Treatment","Content","Slump"]
[null,"Poured","                  No",null,null,"Poured",null,null,"Name",null,"            (CY)",null,"               (CY)",null,"(CY)",null,null,"%","In."]
[null,null,null,null,null,null,null,null,null,null,null,null,null,null,"This Report"]
[null,null,null,null,null,null,null,null,null,null,null,null,null,null,{"$f":"IF(K888>0,K888,\"\")","v":""}]
[null,null,null,null,null,null,null,null,null,null,null,null,null,null,{"$f":"IF(K889>0,O888+K889,\"\")","v":""}]
[null,null,null,null,null,null,null,null,null,null,null,null,null,null,{"$f":"IF(K890>0,O889+K890,\"\")","v":""}]
[null,null,null,null,null,null,null,null,null,null,null,null,null,null,""]
[null,null,null,null,null,null,null,null,null,null,null,null,null,null,""]
[null,null,null,null,null,null,null,null,null,null,null,null,null,null,""]
[null,null,null,null,null,null,null,null,null,null,null,null,null,null,""]
[null,null,null,null,null,null,null,null,null,null,null,null,null,null,""]
[]
[null,"Additional Slump Tests, Air Tests, Beam Numbers of Beams Made & Remarks"]
[null,null,null,null,null,null,null,null,null,null,null,null,null,null,null,null,"Total Plan CY to Date"]
[null,null,null,null,null,null,null,null,null,null,null,null,null,null,null,null,{"$f":"IF(Q853=\"\",\"\",SUM(K888:L895,Q853))","v":""}]
[]
[]
[]
[]
[]
[]
[null,"Note:","Concrete Treatments",null,null,1,"Heated water only with no protection",null,null,null,null,6,"Ice added"]
[null,null,null,null,null,2,"Heated materials with no protection",null,null,null,null,7,"Nitrogen added"]
[null,"Indicate Number/s of the Concrete Treatment/s",null,null,null,3,"Protected concrete but did not heat materials",null,null,null,null,8,"Superplasticizer added"]
[null,"in the Column Provided Above",null,null,null,4,"Heated materials and protected concrete",null,null,null,null,9,"Microsilica added"]
[null,null,null,null,null,5,"Retarder used in concrete"]
[null,"Date","Mix",null,"Beam","Time","Slump","%","Age","W/C","Depth","Width","*Length","Indicated","Actual","Comp","Mod of","Location"]
[null,"Made","Number",null,"Number",null,null,"Air","Days",null,"Inches","Inches","Inches","Load (lbs)","Load (lbs)","Factor","Rupture","Inches"]
[null,null,null,null,null,null,null,null,null,null,null,null,null,null,null,{"$f":"IF(AND(K913>0,L913>0),3*M913/(2*L913*(K913*K913)),\"\")","v":""},{"$f":"IF(O913>0,O913*P913,\" \")","v":" "}]
[null,null,null,null,null,null,null,null,null,null,null,null,null,null,null,{"$f":"IF(AND(K914>0,L914>0),3*M914/(2*L914*(K914*K914)),\"\")","v":""},{"$f":"IF(O914>0,O914*P914,\" \")","v":" "}]
[null,null,null,null,null,null,null,null,null,null,null,null,null,null,null,""," "]
[null,null,null,null,null,null,null,null,null,null,null,null,null,null,null,""," "]
[null,null,null,null,null,null,null,null,null,null,null,null,null,null,null,""," "]
[null,null,null,null,null,null,null,null,null,null,null,null,null,null,null,""," "]
[null,null,null,null,null,null,null,null,null,null,null,null,null,null,null,""," "]
[]
["Distribution:",null," 1 copy to","Materials Engineer",null,"1 copy to ","RCE"]
[null,null,null,null,null,null,null,null,null,null,null,null,null,null,null,"  Structures Inspector"]
[{"$f":"A1","v":"Rev 10/26/18"},null,null,null,null,null,null,"STRUCTURES WEEKLY GRADE REPORT",null,null,null,null,null,null,null,null,null,null,"E145"]
[null,null,null,null,null,null,null,null,null,null,null,null,null,null,null,null,null,"FORM 830242E"]
[null,null,null,null,null,null,null,null,"Contract ID:",{"$f":"$J$3","v":0}]
[null,"Contractor:",{"$f":"$C$4","v":0},null,null,null,null,null,null,null,null,null,null,null,"County:",{"$f":"$P$4","v":0}]
[null,"Date:",null,null,null,null,null,null,null,null,null,null,null,null,"Project No:",{"$f":"$P$5","v":0}]
[null,"Report No.:",{"$f":"$C$6+20","v":21},null,null,null,null,null,null,null,null,null,null,null,"Design No:",{"$f":"$P$6","v":0}]
[]
[null,null,null,null,null,null,null,null,null,null,"           Plan",null,"             Actual",null,"Plan",null,"Concrete","Air"]
[null,"Date","                 Mix",null,null,"Unit",null,null,"Plant",null,"           Today",null,"              Used",null,"Total",null,"Treatment","Content","Slump"]
[null,"Poured","                  No",null,null,"Poured",null,null,"Name",null,"            (CY)",null,"               (CY)",null,"(CY)",null,null,"%","In."]
[null,null,null,null,null,null,null,null,null,null,null,null,null,null,"This Report"]
[null,null,null,null,null,null,null,null,null,null,null,null,null,null,{"$f":"IF(K934>0,K934,\"\")","v":""}]
[null,null,null,null,null,null,null,null,null,null,null,null,null,null,{"$f":"IF(K935>0,O934+K935,\"\")","v":""}]
[null,null,null,null,null,null,null,null,null,null,null,null,null,null,{"$f":"IF(K936>0,O935+K936,\"\")","v":""}]
[null,null,null,null,null,null,null,null,null,null,null,null,null,null,""]
[null,null,null,null,null,null,null,null,null,null,null,null,null,null,""]
[null,null,null,null,null,null,null,null,null,null,null,null,null,null,""]
[null,null,null,null,null,null,null,null,null,null,null,null,null,null,""]
[null,null,null,null,null,null,null,null,null,null,null,null,null,null,""]
[]
[null,"Additional Slump Tests, Air Tests, Beam Numbers of Beams Made & Remarks"]
[null,null,null,null,null,null,null,null,null,null,null,null,null,null,null,null,"Total Plan CY to Date"]
[null,null,null,null,null,null,null,null,null,null,null,null,null,null,null,null,{"$f":"IF(Q899=\"\",\"\",SUM(K934:L941,Q899))","v":""}]
[]
[]
[]
[]
[]
[]
[null,"Note:","Concrete Treatments",null,null,1,"Heated water only with no protection",null,null,null,null,6,"Ice added"]
[null,null,null,null,null,2,"Heated materials with no protection",null,null,null,null,7,"Nitrogen added"]
[null,"Indicate Number/s of the Concrete Treatment/s",null,null,null,3,"Protected concrete but did not heat materials",null,null,null,null,8,"Superplasticizer added"]
[null,"in the Column Provided Above",null,null,null,4,"Heated materials and protected concrete",null,null,null,null,9,"Microsilica added"]
[null,null,null,null,null,5,"Retarder used in concrete"]
[null,"Date","Mix",null,"Beam","Time","Slump","%","Age","W/C","Depth","Width","*Length","Indicated","Actual","Comp","Mod of","Location"]
[null,"Made","Number",null,"Number",null,null,"Air","Days",null,"Inches","Inches","Inches","Load (lbs)","Load (lbs)","Factor","Rupture","Inches"]
[null,null,null,null,null,null,null,null,null,null,null,null,null,null,null,{"$f":"IF(AND(K959>0,L959>0),3*M959/(2*L959*(K959*K959)),\"\")","v":""},{"$f":"IF(O959>0,O959*P959,\" \")","v":" "}]
[null,null,null,null,null,null,null,null,null,null,null,null,null,null,null,{"$f":"IF(AND(K960>0,L960>0),3*M960/(2*L960*(K960*K960)),\"\")","v":""},{"$f":"IF(O960>0,O960*P960,\" \")","v":" "}]
[null,null,null,null,null,null,null,null,null,null,null,null,null,null,null,""," "]
[null,null,null,null,null,null,null,null,null,null,null,null,null,null,null,""," "]
[null,null,null,null,null,null,null,null,null,null,null,null,null,null,null,""," "]
[null,null,null,null,null,null,null,null,null,null,null,null,null,null,null,""," "]
[null,null,null,null,null,null,null,null,null,null,null,null,null,null,null,""," "]
[]
["Distribution:",null," 1 copy to","Materials Engineer",null,"1 copy to ","RCE"]
[null,null,null,null,null,null,null,null,null,null,null,null,null,null,null,"  Structures Inspector"]
[{"$f":"A1","v":"Rev 10/26/18"},null,null,null,null,null,null,"STRUCTURES WEEKLY GRADE REPORT",null,null,null,null,null,null,null,null,null,null,"E145"]
[null,null,null,null,null,null,null,null,null,null,null,null,null,null,null,null,null,"FORM 830242E"]
[null,null,null,null,null,null,null,null,"Contract ID:",{"$f":"$J$3","v":0}]
[null,"Contractor:",{"$f":"$C$4","v":0},null,null,null,null,null,null,null,null,null,null,null,"County:",{"$f":"$P$4","v":0}]
[null,"Date:",null,null,null,null,null,null,null,null,null,null,null,null,"Project No:",{"$f":"$P$5","v":0}]
[null,"Report No.:",{"$f":"$C$6+21","v":22},null,null,null,null,null,null,null,null,null,null,null,"Design No:",{"$f":"$P$6","v":0}]
[]
[null,null,null,null,null,null,null,null,null,null,"           Plan",null,"             Actual",null,"Plan",null,"Concrete","Air"]
[null,"Date","                 Mix",null,null,"Unit",null,null,"Plant",null,"           Today",null,"              Used",null,"Total",null,"Treatment","Content","Slump"]
[null,"Poured","                  No",null,null,"Poured",null,null,"Name",null,"            (CY)",null,"               (CY)",null,"(CY)",null,null,"%","In."]
[null,null,null,null,null,null,null,null,null,null,null,null,null,null,"This Report"]
[null,null,null,null,null,null,null,null,null,null,null,null,null,null,{"$f":"IF(K980>0,K980,\"\")","v":""}]
[null,null,null,null,null,null,null,null,null,null,null,null,null,null,{"$f":"IF(K981>0,O980+K981,\"\")","v":""}]
[null,null,null,null,null,null,null,null,null,null,null,null,null,null,{"$f":"IF(K982>0,O981+K982,\"\")","v":""}]
[null,null,null,null,null,null,null,null,null,null,null,null,null,null,""]
[null,null,null,null,null,null,null,null,null,null,null,null,null,null,""]
[null,null,null,null,null,null,null,null,null,null,null,null,null,null,""]
[null,null,null,null,null,null,null,null,null,null,null,null,null,null,""]
[null,null,null,null,null,null,null,null,null,null,null,null,null,null,""]
[]
[null,"Additional Slump Tests, Air Tests, Beam Numbers of Beams Made & Remarks"]
[null,null,null,null,null,null,null,null,null,null,null,null,null,null,null,null,"Total Plan CY to Date"]
[null,null,null,null,null,null,null,null,null,null,null,null,null,null,null,null,{"$f":"IF(Q945=\"\",\"\",SUM(K980:L987,Q945))","v":""}]
[]
[]
[]
[]
[]
[]
[null,"Note:","Concrete Treatments",null,null,1,"Heated water only with no protection",null,null,null,null,6,"Ice added"]
[null,null,null,null,null,2,"Heated materials with no protection",null,null,null,null,7,"Nitrogen added"]
[null,"Indicate Number/s of the Concrete Treatment/s",null,null,null,3,"Protected concrete but did not heat materials",null,null,null,null,8,"Superplasticizer added"]
[null,"in the Column Provided Above",null,null,null,4,"Heated materials and protected concrete",null,null,null,null,9,"Microsilica added"]
[null,null,null,null,null,5,"Retarder used in concrete"]
[null,"Date","Mix",null,"Beam","Time","Slump","%","Age","W/C","Depth","Width","*Length","Indicated","Actual","Comp","Mod of","Location"]
[null,"Made","Number",null,"Number",null,null,"Air","Days",null,"Inches","Inches","Inches","Load (lbs)","Load (lbs)","Factor","Rupture","Inches"]
[null,null,null,null,null,null,null,null,null,null,null,null,null,null,null,{"$f":"IF(AND(K1005>0,L1005>0),3*M1005/(2*L1005*(K1005*K1005)),\"\")","v":""},{"$f":"IF(O1005>0,O1005*P1005,\" \")","v":" "}]
[null,null,null,null,null,null,null,null,null,null,null,null,null,null,null,{"$f":"IF(AND(K1006>0,L1006>0),3*M1006/(2*L1006*(K1006*K1006)),\"\")","v":""},{"$f":"IF(O1006>0,O1006*P1006,\" \")","v":" "}]
[null,null,null,null,null,null,null,null,null,null,null,null,null,null,null,""," "]
[null,null,null,null,null,null,null,null,null,null,null,null,null,null,null,""," "]
[null,null,null,null,null,null,null,null,null,null,null,null,null,null,null,""," "]
[null,null,null,null,null,null,null,null,null,null,null,null,null,null,null,""," "]
[null,null,null,null,null,null,null,null,null,null,null,null,null,null,null,""," "]
[]
["Distribution:",null," 1 copy to","Materials Engineer",null,"1 copy to ","RCE"]
[null,null,null,null,null,null,null,null,null,null,null,null,null,null,null,"  Structures Inspector"]
[]
[{"$f":"A1","v":"Rev 10/26/18"},null,null,null,null,null,null,"STRUCTURES WEEKLY GRADE REPORT",null,null,null,null,null,null,null,null,null,null,"E145"]
[null,null,null,null,null,null,null,null,null,null,null,null,null,null,null,null,null,"FORM 830242E"]
[null,null,null,null,null,null,null,null,"Contract ID:",{"$f":"$J$3","v":0}]
[null,"Contractor:",{"$f":"$C$4","v":0},null,null,null,null,null,null,null,null,null,null,null,"County:",{"$f":"$P$4","v":0}]
[null,"Date:",null,null,null,null,null,null,null,null,null,null,null,null,"Project No:",{"$f":"$P$5","v":0}]
[null,"Report No.:",{"$f":"$C$6+22","v":23},null,null,null,null,null,null,null,null,null,null,null,"Design No:",{"$f":"$P$6","v":0}]
[]
[null,null,null,null,null,null,null,null,null,null,"           Plan",null,"             Actual",null,"Plan",null,"Concrete","Air"]
[null,"Date","                 Mix",null,null,"Unit",null,null,"Plant",null,"           Today",null,"              Used",null,"Total",null,"Treatment","Content","Slump"]
[null,"Poured","                  No",null,null,"Poured",null,null,"Name",null,"            (CY)",null,"               (CY)",null,"(CY)",null,null,"%","In."]
[null,null,null,null,null,null,null,null,null,null,null,null,null,null,"This Report"]
[null,null,null,null,null,null,null,null,null,null,null,null,null,null,{"$f":"IF(K1027>0,K1027,\"\")","v":""}]
[null,null,null,null,null,null,null,null,null,null,null,null,null,null,{"$f":"IF(K1028>0,O1027+K1028,\"\")","v":""}]
[null,null,null,null,null,null,null,null,null,null,null,null,null,null,{"$f":"IF(K1029>0,O1028+K1029,\"\")","v":""}]
[null,null,null,null,null,null,null,null,null,null,null,null,null,null,""]
[null,null,null,null,null,null,null,null,null,null,null,null,null,null,""]
[null,null,null,null,null,null,null,null,null,null,null,null,null,null,""]
[null,null,null,null,null,null,null,null,null,null,null,null,null,null,""]
[null,null,null,null,null,null,null,null,null,null,null,null,null,null,""]
[]
[null,"Additional Slump Tests, Air Tests, Beam Numbers of Beams Made & Remarks"]
[null,null,null,null,null,null,null,null,null,null,null,null,null,null,null,null,"Total Plan CY to Date"]
[null,null,null,null,null,null,null,null,null,null,null,null,null,null,null,null,{"$f":"IF(Q991=\"\",\"\",SUM(K1027:L1034,Q991))","v":""}]
[]
[]
[]
[]
[]
[]
[null,"Note:","Concrete Treatments",null,null,1,"Heated water only with no protection",null,null,null,null,6,"Ice added"]
[null,null,null,null,null,2,"Heated materials with no protection",null,null,null,null,7,"Nitrogen added"]
[null,"Indicate Number/s of the Concrete Treatment/s",null,null,null,3,"Protected concrete but did not heat materials",null,null,null,null,8,"Superplasticizer added"]
[null,"in the Column Provided Above",null,null,null,4,"Heated materials and protected concrete",null,null,null,null,9,"Microsilica added"]
[null,null,null,null,null,5,"Retarder used in concrete"]
[null,"Date","Mix",null,"Beam","Time","Slump","%","Age","W/C","Depth","Width","*Length","Indicated","Actual","Comp","Mod of","Location"]
[null,"Made","Number",null,"Number",null,null,"Air","Days",null,"Inches","Inches","Inches","Load (lbs)","Load (lbs)","Factor","Rupture","Inches"]
[null,null,null,null,null,null,null,null,null,null,null,null,null,null,null,{"$f":"IF(AND(K1052>0,L1052>0),3*M1052/(2*L1052*(K1052*K1052)),\"\")","v":""},{"$f":"IF(O1052>0,O1052*P1052,\" \")","v":" "}]
[null,null,null,null,null,null,null,null,null,null,null,null,null,null,null,{"$f":"IF(AND(K1053>0,L1053>0),3*M1053/(2*L1053*(K1053*K1053)),\"\")","v":""},{"$f":"IF(O1053>0,O1053*P1053,\" \")","v":" "}]
[null,null,null,null,null,null,null,null,null,null,null,null,null,null,null,""," "]
[null,null,null,null,null,null,null,null,null,null,null,null,null,null,null,""," "]
[null,null,null,null,null,null,null,null,null,null,null,null,null,null,null,""," "]
[null,null,null,null,null,null,null,null,null,null,null,null,null,null,null,""," "]
[null,null,null,null,null,null,null,null,null,null,null,null,null,null,null,""," "]
[]
["Distribution:",null," 1 copy to","Materials Engineer",null,"1 copy to ","RCE"]
[null,null,null,null,null,null,null,null,null,null,null,null,null,null,null,"  Structures Inspector"]
[]
[{"$f":"A1","v":"Rev 10/26/18"},null,null,null,null,null,null,"STRUCTURES WEEKLY GRADE REPORT",null,null,null,null,null,null,null,null,null,null,"E145"]
[null,null,null,null,null,null,null,null,null,null,null,null,null,null,null,null,null,"FORM 830242E"]
[null,null,null,null,null,null,null,null,"Contract ID:",{"$f":"$J$3","v":0}]
[null,"Contractor:",{"$f":"$C$4","v":0},null,null,null,null,null,null,null,null,null,null,null,"County:",{"$f":"$P$4","v":0}]
[null,"Date:",null,null,null,null,null,null,null,null,null,null,null,null,"Project No:",{"$f":"$P$5","v":0}]
[null,"Report No.:",{"$f":"$C$6+23","v":24},null,null,null,null,null,null,null,null,null,null,null,"Design No:",{"$f":"$P$6","v":0}]
[]
[null,null,null,null,null,null,null,null,null,null,"           Plan",null,"             Actual",null,"Plan",null,"Concrete","Air"]
[null,"Date","                 Mix",null,null,"Unit",null,null,"Plant",null,"           Today",null,"              Used",null,"Total",null,"Treatment","Content","Slump"]
[null,"Poured","                  No",null,null,"Poured",null,null,"Name",null,"            (CY)",null,"               (CY)",null,"(CY)",null,null,"%","In."]
[null,null,null,null,null,null,null,null,null,null,null,null,null,null,"This Report"]
[null,null,null,null,null,null,null,null,null,null,null,null,null,null,{"$f":"IF(K1074>0,K1074,\"\")","v":""}]
[null,null,null,null,null,null,null,null,null,null,null,null,null,null,{"$f":"IF(K1075>0,O1074+K1075,\"\")","v":""}]
[null,null,null,null,null,null,null,null,null,null,null,null,null,null,{"$f":"IF(K1076>0,O1075+K1076,\"\")","v":""}]
[null,null,null,null,null,null,null,null,null,null,null,null,null,null,""]
[null,null,null,null,null,null,null,null,null,null,null,null,null,null,""]
[null,null,null,null,null,null,null,null,null,null,null,null,null,null,""]
[null,null,null,null,null,null,null,null,null,null,null,null,null,null,""]
[null,null,null,null,null,null,null,null,null,null,null,null,null,null,""]
[]
[null,"Additional Slump Tests, Air Tests, Beam Numbers of Beams Made & Remarks"]
[null,null,null,null,null,null,null,null,null,null,null,null,null,null,null,null,"Total Plan CY to Date"]
[null,null,null,null,null,null,null,null,null,null,null,null,null,null,null,null,{"$f":"IF(Q1038=\"\",\"\",SUM(K1074:L1081,Q1038))","v":""}]
[]
[]
[]
[]
[]
[]
[null,"Note:","Concrete Treatments",null,null,1,"Heated water only with no protection",null,null,null,null,6,"Ice added"]
[null,null,null,null,null,2,"Heated materials with no protection",null,null,null,null,7,"Nitrogen added"]
[null,"Indicate Number/s of the Concrete Treatment/s",null,null,null,3,"Protected concrete but did not heat materials",null,null,null,null,8,"Superplasticizer added"]
[null,"in the Column Provided Above",null,null,null,4,"Heated materials and protected concrete",null,null,null,null,9,"Microsilica added"]
[null,null,null,null,null,5,"Retarder used in concrete"]
[null,"Date","Mix",null,"Beam","Time","Slump","%","Age","W/C","Depth","Width","*Length","Indicated","Actual","Comp","Mod of","Location"]
[null,"Made","Number",null,"Number",null,null,"Air","Days",null,"Inches","Inches","Inches","Load (lbs)","Load (lbs)","Factor","Rupture","Inches"]
[null,null,null,null,null,null,null,null,null,null,null,null,null,null,null,{"$f":"IF(AND(K1099>0,L1099>0),3*M1099/(2*L1099*(K1099*K1099)),\"\")","v":""},{"$f":"IF(O1099>0,O1099*P1099,\" \")","v":" "}]
[null,null,null,null,null,null,null,null,null,null,null,null,null,null,null,{"$f":"IF(AND(K1100>0,L1100>0),3*M1100/(2*L1100*(K1100*K1100)),\"\")","v":""},{"$f":"IF(O1100>0,O1100*P1100,\" \")","v":" "}]
[null,null,null,null,null,null,null,null,null,null,null,null,null,null,null,""," "]
[null,null,null,null,null,null,null,null,null,null,null,null,null,null,null,""," "]
[null,null,null,null,null,null,null,null,null,null,null,null,null,null,null,""," "]
[null,null,null,null,null,null,null,null,null,null,null,null,null,null,null,""," "]
[null,null,null,null,null,null,null,null,null,null,null,null,null,null,null,""," "]
[]
["Distribution:",null," 1 copy to","Materials Engineer",null,"1 copy to ","RCE"]
[null,null,null,null,null,null,null,null,null,null,null,null,null,null,null,"  Structures Inspector"]
[]
[{"$f":"A1","v":"Rev 10/26/18"},null,null,null,null,null,null,"STRUCTURES WEEKLY GRADE REPORT",null,null,null,null,null,null,null,null,null,null,"E145"]
[null,null,null,null,null,null,null,null,null,null,null,null,null,null,null,null,null,"FORM 830242E"]
[null,null,null,null,null,null,null,null,"Contract ID:",{"$f":"$J$3","v":0}]
[null,"Contractor:",{"$f":"$C$4","v":0},null,null,null,null,null,null,null,null,null,null,null,"County:",{"$f":"$P$4","v":0}]
[null,"Date:",null,null,null,null,null,null,null,null,null,null,null,null,"Project No:",{"$f":"$P$5","v":0}]
[null,"Report No.:",{"$f":"$C$6+24","v":25},null,null,null,null,null,null,null,null,null,null,null,"Design No:",{"$f":"$P$6","v":0}]
[]
[null,null,null,null,null,null,null,null,null,null,"           Plan",null,"             Actual",null,"Plan",null,"Concrete","Air"]
[null,"Date","                 Mix",null,null,"Unit",null,null,"Plant",null,"           Today",null,"              Used",null,"Total",null,"Treatment","Content","Slump"]
[null,"Poured","                  No",null,null,"Poured",null,null,"Name",null,"            (CY)",null,"               (CY)",null,"(CY)",null,null,"%","In."]
[null,null,null,null,null,null,null,null,null,null,null,null,null,null,"This Report"]
[null,null,null,null,null,null,null,null,null,null,null,null,null,null,{"$f":"IF(K1121>0,K1121,\"\")","v":""}]
[null,null,null,null,null,null,null,null,null,null,null,null,null,null,{"$f":"IF(K1122>0,O1121+K1122,\"\")","v":""}]
[null,null,null,null,null,null,null,null,null,null,null,null,null,null,{"$f":"IF(K1123>0,O1122+K1123,\"\")","v":""}]
[null,null,null,null,null,null,null,null,null,null,null,null,null,null,""]
[null,null,null,null,null,null,null,null,null,null,null,null,null,null,""]
[null,null,null,null,null,null,null,null,null,null,null,null,null,null,""]
[null,null,null,null,null,null,null,null,null,null,null,null,null,null,""]
[null,null,null,null,null,null,null,null,null,null,null,null,null,null,""]
[]
[null,"Additional Slump Tests, Air Tests, Beam Numbers of Beams Made & Remarks"]
[null,null,null,null,null,null,null,null,null,null,null,null,null,null,null,null,"Total Plan CY to Date"]
[null,null,null,null,null,null,null,null,null,null,null,null,null,null,null,null,{"$f":"IF(Q1085=\"\",\"\",SUM(K1121:L1128,Q1085))","v":""}]
[]
[]
[]
[]
[]
[]
[null,"Note:","Concrete Treatments",null,null,1,"Heated water only with no protection",null,null,null,null,6,"Ice added"]
[null,null,null,null,null,2,"Heated materials with no protection",null,null,null,null,7,"Nitrogen added"]
[null,"Indicate Number/s of the Concrete Treatment/s",null,null,null,3,"Protected concrete but did not heat materials",null,null,null,null,8,"Superplasticizer added"]
[null,"in the Column Provided Above",null,null,null,4,"Heated materials and protected concrete",null,null,null,null,9,"Microsilica added"]
[null,null,null,null,null,5,"Retarder used in concrete"]
[null,"Date","Mix",null,"Beam","Time","Slump","%","Age","W/C","Depth","Width","*Length","Indicated","Actual","Comp","Mod of","Location"]
[null,"Made","Number",null,"Number",null,null,"Air","Days",null,"Inches","Inches","Inches","Load (lbs)","Load (lbs)","Factor","Rupture","Inches"]
[null,null,null,null,null,null,null,null,null,null,null,null,null,null,null,{"$f":"IF(AND(K1146>0,L1146>0),3*M1146/(2*L1146*(K1146*K1146)),\"\")","v":""},{"$f":"IF(O1146>0,O1146*P1146,\" \")","v":" "}]
[null,null,null,null,null,null,null,null,null,null,null,null,null,null,null,{"$f":"IF(AND(K1147>0,L1147>0),3*M1147/(2*L1147*(K1147*K1147)),\"\")","v":""},{"$f":"IF(O1147>0,O1147*P1147,\" \")","v":" "}]
[null,null,null,null,null,null,null,null,null,null,null,null,null,null,null,""," "]
[null,null,null,null,null,null,null,null,null,null,null,null,null,null,null,""," "]
[null,null,null,null,null,null,null,null,null,null,null,null,null,null,null,""," "]
[null,null,null,null,null,null,null,null,null,null,null,null,null,null,null,""," "]
[null,null,null,null,null,null,null,null,null,null,null,null,null,null,null,""," "]
[]
["Distribution:",null," 1 copy to","Materials Engineer",null,"1 copy to ","RCE"]
[null,null,null,null,null,null,null,null,null,null,null,null,null,null,null,"  Structures Inspector"]
[{"$f":"A1","v":"Rev 10/26/18"},null,null,null,null,null,null,"STRUCTURES WEEKLY GRADE REPORT",null,null,null,null,null,null,null,null,null,null,"E145"]
[null,null,null,null,null,null,null,null,null,null,null,null,null,null,null,null,null,"FORM 830242E"]
[null,null,null,null,null,null,null,null,"Contract ID:",{"$f":"$J$3","v":0}]
[null,"Contractor:",{"$f":"$C$4","v":0},null,null,null,null,null,null,null,null,null,null,null,"County:",{"$f":"$P$4","v":0}]
[null,"Date:",null,null,null,null,null,null,null,null,null,null,null,null,"Project No:",{"$f":"$P$5","v":0}]
[null,"Report No.:",{"$f":"$C$6+25","v":26},null,null,null,null,null,null,null,null,null,null,null,"Design No:",{"$f":"$P$6","v":0}]
[]
[null,null,null,null,null,null,null,null,null,null,"           Plan",null,"             Actual",null,"Plan",null,"Concrete","Air"]
[null,"Date","                 Mix",null,null,"Unit",null,null,"Plant",null,"           Today",null,"              Used",null,"Total",null,"Treatment","Content","Slump"]
[null,"Poured","                  No",null,null,"Poured",null,null,"Name",null,"            (CY)",null,"               (CY)",null,"(CY)",null,null,"%","In."]
[null,null,null,null,null,null,null,null,null,null,null,null,null,null,"This Report"]
[null,null,null,null,null,null,null,null,null,null,null,null,null,null,{"$f":"IF(K1167>0,K1167,\"\")","v":""}]
[null,null,null,null,null,null,null,null,null,null,null,null,null,null,{"$f":"IF(K1168>0,O1167+K1168,\"\")","v":""}]
[null,null,null,null,null,null,null,null,null,null,null,null,null,null,{"$f":"IF(K1169>0,O1168+K1169,\"\")","v":""}]
[null,null,null,null,null,null,null,null,null,null,null,null,null,null,""]
[null,null,null,null,null,null,null,null,null,null,null,null,null,null,""]
[null,null,null,null,null,null,null,null,null,null,null,null,null,null,""]
[null,null,null,null,null,null,null,null,null,null,null,null,null,null,""]
[null,null,null,null,null,null,null,null,null,null,null,null,null,null,""]
[]
[null,"Additional Slump Tests, Air Tests, Beam Numbers of Beams Made & Remarks"]
[null,null,null,null,null,null,null,null,null,null,null,null,null,null,null,null,"Total Plan CY to Date"]
[null,null,null,null,null,null,null,null,null,null,null,null,null,null,null,null,{"$f":"IF(Q1132=\"\",\"\",SUM(K1167:L1174,Q1132))","v":""}]
[]
[]
[]
[]
[]
[]
[null,"Note:","Concrete Treatments",null,null,1,"Heated water only with no protection",null,null,null,null,6,"Ice added"]
[null,null,null,null,null,2,"Heated materials with no protection",null,null,null,null,7,"Nitrogen added"]
[null,"Indicate Number/s of the Concrete Treatment/s",null,null,null,3,"Protected concrete but did not heat materials",null,null,null,null,8,"Superplasticizer added"]
[null,"in the Column Provided Above",null,null,null,4,"Heated materials and protected concrete",null,null,null,null,9,"Microsilica added"]
[null,null,null,null,null,5,"Retarder used in concrete"]
[null,"Date","Mix",null,"Beam","Time","Slump","%","Age","W/C","Depth","Width","*Length","Indicated","Actual","Comp","Mod of","Location"]
[null,"Made","Number",null,"Number",null,null,"Air","Days",null,"Inches","Inches","Inches","Load (lbs)","Load (lbs)","Factor","Rupture","Inches"]
[null,null,null,null,null,null,null,null,null,null,null,null,null,null,null,{"$f":"IF(AND(K1192>0,L1192>0),3*M1192/(2*L1192*(K1192*K1192)),\"\")","v":""},{"$f":"IF(O1192>0,O1192*P1192,\" \")","v":" "}]
[null,null,null,null,null,null,null,null,null,null,null,null,null,null,null,{"$f":"IF(AND(K1193>0,L1193>0),3*M1193/(2*L1193*(K1193*K1193)),\"\")","v":""},{"$f":"IF(O1193>0,O1193*P1193,\" \")","v":" "}]
[null,null,null,null,null,null,null,null,null,null,null,null,null,null,null,""," "]
[null,null,null,null,null,null,null,null,null,null,null,null,null,null,null,""," "]
[null,null,null,null,null,null,null,null,null,null,null,null,null,null,null,""," "]
[null,null,null,null,null,null,null,null,null,null,null,null,null,null,null,""," "]
[null,null,null,null,null,null,null,null,null,null,null,null,null,null,null,""," "]
[]
["Distribution:",null," 1 copy to","Materials Engineer",null,"1 copy to ","RCE"]
[null,null,null,null,null,null,null,null,null,null,null,null,null,null,null,"  Structures Inspector"]
[{"$f":"A1","v":"Rev 10/26/18"},null,null,null,null,null,null,"STRUCTURES WEEKLY GRADE REPORT",null,null,null,null,null,null,null,null,null,null,"E145"]
[null,null,null,null,null,null,null,null,null,null,null,null,null,null,null,null,null,"FORM 830242E"]
[null,null,null,null,null,null,null,null,"Contract ID:",{"$f":"$J$3","v":0}]
[null,"Contractor:",{"$f":"$C$4","v":0},null,null,null,null,null,null,null,null,null,null,null,"County:",{"$f":"$P$4","v":0}]
[null,"Date:",null,null,null,null,null,null,null,null,null,null,null,null,"Project No:",{"$f":"$P$5","v":0}]
[null,"Report No.:",{"$f":"$C$6+26","v":27},null,null,null,null,null,null,null,null,null,null,null,"Design No:",{"$f":"$P$6","v":0}]
[]
[null,null,null,null,null,null,null,null,null,null,"           Plan",null,"             Actual",null,"Plan",null,"Concrete","Air"]
[null,"Date","                 Mix",null,null,"Unit",null,null,"Plant",null,"           Today",null,"              Used",null,"Total",null,"Treatment","Content","Slump"]
[null,"Poured","                  No",null,null,"Poured",null,null,"Name",null,"            (CY)",null,"               (CY)",null,"(CY)",null,null,"%","In."]
[null,null,null,null,null,null,null,null,null,null,null,null,null,null,"This Report"]
[null,null,null,null,null,null,null,null,null,null,null,null,null,null,{"$f":"IF(K1213>0,K1213,\"\")","v":""}]
[null,null,null,null,null,null,null,null,null,null,null,null,null,null,{"$f":"IF(K1214>0,O1213+K1214,\"\")","v":""}]
[null,null,null,null,null,null,null,null,null,null,null,null,null,null,{"$f":"IF(K1215>0,O1214+K1215,\"\")","v":""}]
[null,null,null,null,null,null,null,null,null,null,null,null,null,null,""]
[null,null,null,null,null,null,null,null,null,null,null,null,null,null,""]
[null,null,null,null,null,null,null,null,null,null,null,null,null,null,""]
[null,null,null,null,null,null,null,null,null,null,null,null,null,null,""]
[null,null,null,null,null,null,null,null,null,null,null,null,null,null,""]
[]
[null,"Additional Slump Tests, Air Tests, Beam Numbers of Beams Made & Remarks"]
[null,null,null,null,null,null,null,null,null,null,null,null,null,null,null,null,"Total Plan CY to Date"]
[null,null,null,null,null,null,null,null,null,null,null,null,null,null,null,null,{"$f":"IF(Q1178=\"\",\"\",SUM(K1213:L1220,Q1178))","v":""}]
[]
[]
[]
[]
[]
[]
[null,"Note:","Concrete Treatments",null,null,1,"Heated water only with no protection",null,null,null,null,6,"Ice added"]
[null,null,null,null,null,2,"Heated materials with no protection",null,null,null,null,7,"Nitrogen added"]
[null,"Indicate Number/s of the Concrete Treatment/s",null,null,null,3,"Protected concrete but did not heat materials",null,null,null,null,8,"Superplasticizer added"]
[null,"in the Column Provided Above",null,null,null,4,"Heated materials and protected concrete",null,null,null,null,9,"Microsilica added"]
[null,null,null,null,null,5,"Retarder used in concrete"]
[null,"Date","Mix",null,"Beam","Time","Slump","%","Age","W/C","Depth","Width","*Length","Indicated","Actual","Comp","Mod of","Location"]
[null,"Made","Number",null,"Number",null,null,"Air","Days",null,"Inches","Inches","Inches","Load (lbs)","Load (lbs)","Factor","Rupture","Inches"]
[null,null,null,null,null,null,null,null,null,null,null,null,null,null,null,{"$f":"IF(AND(K1238>0,L1238>0),3*M1238/(2*L1238*(K1238*K1238)),\"\")","v":""},{"$f":"IF(O1238>0,O1238*P1238,\" \")","v":" "}]
[null,null,null,null,null,null,null,null,null,null,null,null,null,null,null,{"$f":"IF(AND(K1239>0,L1239>0),3*M1239/(2*L1239*(K1239*K1239)),\"\")","v":""},{"$f":"IF(O1239>0,O1239*P1239,\" \")","v":" "}]
[null,null,null,null,null,null,null,null,null,null,null,null,null,null,null,""," "]
[null,null,null,null,null,null,null,null,null,null,null,null,null,null,null,""," "]
[null,null,null,null,null,null,null,null,null,null,null,null,null,null,null,""," "]
[null,null,null,null,null,null,null,null,null,null,null,null,null,null,null,""," "]
[null,null,null,null,null,null,null,null,null,null,null,null,null,null,null,""," "]
[]
["Distribution:",null," 1 copy to","Materials Engineer",null,"1 copy to ","RCE"]
[null,null,null,null,null,null,null,null,null,null,null,null,null,null,null,"  Structures Inspector"]
[{"$f":"A1","v":"Rev 10/26/18"},null,null,null,null,null,null,"STRUCTURES WEEKLY GRADE REPORT",null,null,null,null,null,null,null,null,null,null,"E145"]
[null,null,null,null,null,null,null,null,null,null,null,null,null,null,null,null,null,"FORM 830242E"]
[null,null,null,null,null,null,null,null,"Contract ID:",{"$f":"$J$3","v":0}]
[null,"Contractor:",{"$f":"$C$4","v":0},null,null,null,null,null,null,null,null,null,null,null,"County:",{"$f":"$P$4","v":0}]
[null,"Date:",null,null,null,null,null,null,null,null,null,null,null,null,"Project No:",{"$f":"$P$5","v":0}]
[null,"Report No.:",{"$f":"$C$6+27","v":28},null,null,null,null,null,null,null,null,null,null,null,"Design No:",{"$f":"$P$6","v":0}]
[]
[null,null,null,null,null,null,null,null,null,null,"           Plan",null,"             Actual",null,"Plan",null,"Concrete","Air"]
[null,"Date","                 Mix",null,null,"Unit",null,null,"Plant",null,"           Today",null,"              Used",null,"Total",null,"Treatment","Content","Slump"]
[null,"Poured","                  No",null,null,"Poured",null,null,"Name",null,"            (CY)",null,"               (CY)",null,"(CY)",null,null,"%","In."]
[null,null,null,null,null,null,null,null,null,null,null,null,null,null,"This Report"]
[null,null,null,null,null,null,null,null,null,null,null,null,null,null,{"$f":"IF(K1259>0,K1259,\"\")","v":""}]
[null,null,null,null,null,null,null,null,null,null,null,null,null,null,{"$f":"IF(K1260>0,O1259+K1260,\"\")","v":""}]
[null,null,null,null,null,null,null,null,null,null,null,null,null,null,{"$f":"IF(K1261>0,O1260+K1261,\"\")","v":""}]
[null,null,null,null,null,null,null,null,null,null,null,null,null,null,""]
[null,null,null,null,null,null,null,null,null,null,null,null,null,null,""]
[null,null,null,null,null,null,null,null,null,null,null,null,null,null,""]
[null,null,null,null,null,null,null,null,null,null,null,null,null,null,""]
[null,null,null,null,null,null,null,null,null,null,null,null,null,null,""]
[]
[null,"Additional Slump Tests, Air Tests, Beam Numbers of Beams Made & Remarks"]
[null,null,null,null,null,null,null,null,null,null,null,null,null,null,null,null,"Total Plan CY to Date"]
[null,null,null,null,null,null,null,null,null,null,null,null,null,null,null,null,{"$f":"IF(Q1224=\"\",\"\",SUM(K1259:L1266,Q1224))","v":""}]
[]
[]
[]
[]
[]
[]
[null,"Note:","Concrete Treatments",null,null,1,"Heated water only with no protection",null,null,null,null,6,"Ice added"]
[null,null,null,null,null,2,"Heated materials with no protection",null,null,null,null,7,"Nitrogen added"]
[null,"Indicate Number/s of the Concrete Treatment/s",null,null,null,3,"Protected concrete but did not heat materials",null,null,null,null,8,"Superplasticizer added"]
[null,"in the Column Provided Above",null,null,null,4,"Heated materials and protected concrete",null,null,null,null,9,"Microsilica added"]
[null,null,null,null,null,5,"Retarder used in concrete"]
[null,"Date","Mix",null,"Beam","Time","Slump","%","Age","W/C","Depth","Width","*Length","Indicated","Actual","Comp","Mod of","Location"]
[null,"Made","Number",null,"Number",null,null,"Air","Days",null,"Inches","Inches","Inches","Load (lbs)","Load (lbs)","Factor","Rupture","Inches"]
[null,null,null,null,null,null,null,null,null,null,null,null,null,null,null,{"$f":"IF(AND(K1284>0,L1284>0),3*M1284/(2*L1284*(K1284*K1284)),\"\")","v":""},{"$f":"IF(O1284>0,O1284*P1284,\" \")","v":" "}]
[null,null,null,null,null,null,null,null,null,null,null,null,null,null,null,{"$f":"IF(AND(K1285>0,L1285>0),3*M1285/(2*L1285*(K1285*K1285)),\"\")","v":""},{"$f":"IF(O1285>0,O1285*P1285,\" \")","v":" "}]
[null,null,null,null,null,null,null,null,null,null,null,null,null,null,null,""," "]
[null,null,null,null,null,null,null,null,null,null,null,null,null,null,null,""," "]
[null,null,null,null,null,null,null,null,null,null,null,null,null,null,null,""," "]
[null,null,null,null,null,null,null,null,null,null,null,null,null,null,null,""," "]
[null,null,null,null,null,null,null,null,null,null,null,null,null,null,null,""," "]
[]
["Distribution:",null," 1 copy to","Materials Engineer",null,"1 copy to ","RCE"]
[null,null,null,null,null,null,null,null,null,null,null,null,null,null,null,"  Structures Inspector"]
[{"$f":"A1","v":"Rev 10/26/18"},null,null,null,null,null,null,"STRUCTURES WEEKLY GRADE REPORT",null,null,null,null,null,null,null,null,null,null,"E145"]
[null,null,null,null,null,null,null,null,null,null,null,null,null,null,null,null,null,"FORM 830242E"]
[null,null,null,null,null,null,null,null,"Contract ID:",{"$f":"$J$3","v":0}]
[null,"Contractor:",{"$f":"$C$4","v":0},null,null,null,null,null,null,null,null,null,null,null,"County:",{"$f":"$P$4","v":0}]
[null,"Date:",null,null,null,null,null,null,null,null,null,null,null,null,"Project No:",{"$f":"$P$5","v":0}]
[null,"Report No.:",{"$f":"$C$6+28","v":29},null,null,null,null,null,null,null,null,null,null,null,"Design No:",{"$f":"$P$6","v":0}]
[]
[null,null,null,null,null,null,null,null,null,null,"           Plan",null,"             Actual",null,"Plan",null,"Concrete","Air"]
[null,"Date","                 Mix",null,null,"Unit",null,null,"Plant",null,"           Today",null,"              Used",null,"Total",null,"Treatment","Content","Slump"]
[null,"Poured","                  No",null,null,"Poured",null,null,"Name",null,"            (CY)",null,"               (CY)",null,"(CY)",null,null,"%","In."]
[null,null,null,null,null,null,null,null,null,null,null,null,null,null,"This Report"]
[null,null,null,null,null,null,null,null,null,null,null,null,null,null,{"$f":"IF(K1305>0,K1305,\"\")","v":""}]
[null,null,null,null,null,null,null,null,null,null,null,null,null,null,{"$f":"IF(K1306>0,O1305+K1306,\"\")","v":""}]
[null,null,null,null,null,null,null,null,null,null,null,null,null,null,{"$f":"IF(K1307>0,O1306+K1307,\"\")","v":""}]
[null,null,null,null,null,null,null,null,null,null,null,null,null,null,""]
[null,null,null,null,null,null,null,null,null,null,null,null,null,null,""]
[null,null,null,null,null,null,null,null,null,null,null,null,null,null,""]
[null,null,null,null,null,null,null,null,null,null,null,null,null,null,""]
[null,null,null,null,null,null,null,null,null,null,null,null,null,null,""]
[]
[null,"Additional Slump Tests, Air Tests, Beam Numbers of Beams Made & Remarks"]
[null,null,null,null,null,null,null,null,null,null,null,null,null,null,null,null,"Total Plan CY to Date"]
[null,null,null,null,null,null,null,null,null,null,null,null,null,null,null,null,{"$f":"IF(Q1270=\"\",\"\",SUM(K1305:L1312,Q1270))","v":""}]
[]
[]
[]
[]
[]
[]
[null,"Note:","Concrete Treatments",null,null,1,"Heated water only with no protection",null,null,null,null,6,"Ice added"]
[null,null,null,null,null,2,"Heated materials with no protection",null,null,null,null,7,"Nitrogen added"]
[null,"Indicate Number/s of the Concrete Treatment/s",null,null,null,3,"Protected concrete but did not heat materials",null,null,null,null,8,"Superplasticizer added"]
[null,"in the Column Provided Above",null,null,null,4,"Heated materials and protected concrete",null,null,null,null,9,"Microsilica added"]
[null,null,null,null,null,5,"Retarder used in concrete"]
[null,"Date","Mix",null,"Beam","Time","Slump","%","Age","W/C","Depth","Width","*Length","Indicated","Actual","Comp","Mod of","Location"]
[null,"Made","Number",null,"Number",null,null,"Air","Days",null,"Inches","Inches","Inches","Load (lbs)","Load (lbs)","Factor","Rupture","Inches"]
[null,null,null,null,null,null,null,null,null,null,null,null,null,null,null,{"$f":"IF(AND(K1330>0,L1330>0),3*M1330/(2*L1330*(K1330*K1330)),\"\")","v":""},{"$f":"IF(O1330>0,O1330*P1330,\" \")","v":" "}]
[null,null,null,null,null,null,null,null,null,null,null,null,null,null,null,{"$f":"IF(AND(K1331>0,L1331>0),3*M1331/(2*L1331*(K1331*K1331)),\"\")","v":""},{"$f":"IF(O1331>0,O1331*P1331,\" \")","v":" "}]
[null,null,null,null,null,null,null,null,null,null,null,null,null,null,null,""," "]
[null,null,null,null,null,null,null,null,null,null,null,null,null,null,null,""," "]
[null,null,null,null,null,null,null,null,null,null,null,null,null,null,null,""," "]
[null,null,null,null,null,null,null,null,null,null,null,null,null,null,null,""," "]
[null,null,null,null,null,null,null,null,null,null,null,null,null,null,null,""," "]
[]
["Distribution:",null," 1 copy to","Materials Engineer",null,"1 copy to ","RCE"]
[null,null,null,null,null,null,null,null,null,null,null,null,null,null,null,"  Structures Inspector"]
[{"$f":"A1","v":"Rev 10/26/18"},null,null,null,null,null,null,"STRUCTURES WEEKLY GRADE REPORT",null,null,null,null,null,null,null,null,null,null,"E145"]
[null,null,null,null,null,null,null,null,null,null,null,null,null,null,null,null,null,"FORM 830242E"]
[null,null,null,null,null,null,null,null,"Contract ID:",{"$f":"$J$3","v":0}]
[null,"Contractor:",{"$f":"$C$4","v":0},null,null,null,null,null,null,null,null,null,null,null,"County:",{"$f":"$P$4","v":0}]
[null,"Date:",null,null,null,null,null,null,null,null,null,null,null,null,"Project No:",{"$f":"$P$5","v":0}]
[null,"Report No.:",{"$f":"$C$6+29","v":30},null,null,null,null,null,null,null,null,null,null,null,"Design No:",{"$f":"$P$6","v":0}]
[]
[null,null,null,null,null,null,null,null,null,null,"           Plan",null,"             Actual",null,"Plan",null,"Concrete","Air"]
[null,"Date","                 Mix",null,null,"Unit",null,null,"Plant",null,"           Today",null,"              Used",null,"Total",null,"Treatment","Content","Slump"]
[null,"Poured","                  No",null,null,"Poured",null,null,"Name",null,"            (CY)",null,"               (CY)",null,"(CY)",null,null,"%","In."]
[null,null,null,null,null,null,null,null,null,null,null,null,null,null,"This Report"]
[null,null,null,null,null,null,null,null,null,null,null,null,null,null,{"$f":"IF(K1351>0,K1351,\"\")","v":""}]
[null,null,null,null,null,null,null,null,null,null,null,null,null,null,{"$f":"IF(K1352>0,O1351+K1352,\"\")","v":""}]
[null,null,null,null,null,null,null,null,null,null,null,null,null,null,{"$f":"IF(K1353>0,O1352+K1353,\"\")","v":""}]
[null,null,null,null,null,null,null,null,null,null,null,null,null,null,""]
[null,null,null,null,null,null,null,null,null,null,null,null,null,null,""]
[null,null,null,null,null,null,null,null,null,null,null,null,null,null,""]
[null,null,null,null,null,null,null,null,null,null,null,null,null,null,""]
[null,null,null,null,null,null,null,null,null,null,null,null,null,null,""]
[]
[null,"Additional Slump Tests, Air Tests, Beam Numbers of Beams Made & Remarks"]
[null,null,null,null,null,null,null,null,null,null,null,null,null,null,null,null,"Total Plan CY to Date"]
[null,null,null,null,null,null,null,null,null,null,null,null,null,null,null,null,{"$f":"IF(Q1316=\"\",\"\",SUM(K1351:L1358,Q1316))","v":""}]
[]
[]
[]
[]
[]
[]
[null,"Note:","Concrete Treatments",null,null,1,"Heated water only with no protection",null,null,null,null,6,"Ice added"]
[null,null,null,null,null,2,"Heated materials with no protection",null,null,null,null,7,"Nitrogen added"]
[null,"Indicate Number/s of the Concrete Treatment/s",null,null,null,3,"Protected concrete but did not heat materials",null,null,null,null,8,"Superplasticizer added"]
[null,"in the Column Provided Above",null,null,null,4,"Heated materials and protected concrete",null,null,null,null,9,"Microsilica added"]
[null,null,null,null,null,5,"Retarder used in concrete"]
[null,"Date","Mix",null,"Beam","Time","Slump","%","Age","W/C","Depth","Width","*Length","Indicated","Actual","Comp","Mod of","Location"]
[null,"Made","Number",null,"Number",null,null,"Air","Days",null,"Inches","Inches","Inches","Load (lbs)","Load (lbs)","Factor","Rupture","Inches"]
[null,null,null,null,null,null,null,null,null,null,null,null,null,null,null,{"$f":"IF(AND(K1376>0,L1376>0),3*M1376/(2*L1376*(K1376*K1376)),\"\")","v":""},{"$f":"IF(O1376>0,O1376*P1376,\" \")","v":" "}]
[null,null,null,null,null,null,null,null,null,null,null,null,null,null,null,{"$f":"IF(AND(K1377>0,L1377>0),3*M1377/(2*L1377*(K1377*K1377)),\"\")","v":""},{"$f":"IF(O1377>0,O1377*P1377,\" \")","v":" "}]
[null,null,null,null,null,null,null,null,null,null,null,null,null,null,null,""," "]
[null,null,null,null,null,null,null,null,null,null,null,null,null,null,null,""," "]
[null,null,null,null,null,null,null,null,null,null,null,null,null,null,null,""," "]
[null,null,null,null,null,null,null,null,null,null,null,null,null,null,null,""," "]
[null,null,null,null,null,null,null,null,null,null,null,null,null,null,null,""," "]
[]
["Distribution:",null," 1 copy to","Materials Engineer",null,"1 copy to ","RCE"]
[null,null,null,null,null,null,null,null,null,null,null,null,null,null,null,"  Structures Inspector"]
[{"$f":"A1","v":"Rev 10/26/18"},null,null,null,null,null,null,"STRUCTURES WEEKLY GRADE REPORT",null,null,null,null,null,null,null,null,null,null,"E145"]
[null,null,null,null,null,null,null,null,null,null,null,null,null,null,null,null,null,"FORM 830242E"]
[null,null,null,null,null,null,null,null,"Contract ID:",{"$f":"$J$3","v":0}]
[null,"Contractor:",{"$f":"$C$4","v":0},null,null,null,null,null,null,null,null,null,null,null,"County:",{"$f":"$P$4","v":0}]
[null,"Date:",null,null,null,null,null,null,null,null,null,null,null,null,"Project No:",{"$f":"$P$5","v":0}]
[null,"Report No.:",{"$f":"$C$6+30","v":31},null,null,null,null,null,null,null,null,null,null,null,"Design No:",{"$f":"$P$6","v":0}]
[]
[null,null,null,null,null,null,null,null,null,null,"           Plan",null,"             Actual",null,"Plan",null,"Concrete","Air"]
[null,"Date","                 Mix",null,null,"Unit",null,null,"Plant",null,"           Today",null,"              Used",null,"Total",null,"Treatment","Content","Slump"]
[null,"Poured","                  No",null,null,"Poured",null,null,"Name",null,"            (CY)",null,"               (CY)",null,"(CY)",null,null,"%","In."]
[null,null,null,null,null,null,null,null,null,null,null,null,null,null,"This Report"]
[null,null,null,null,null,null,null,null,null,null,null,null,null,null,{"$f":"IF(K1397>0,K1397,\"\")","v":""}]
[null,null,null,null,null,null,null,null,null,null,null,null,null,null,{"$f":"IF(K1398>0,O1397+K1398,\"\")","v":""}]
[null,null,null,null,null,null,null,null,null,null,null,null,null,null,{"$f":"IF(K1399>0,O1398+K1399,\"\")","v":""}]
[null,null,null,null,null,null,null,null,null,null,null,null,null,null,""]
[null,null,null,null,null,null,null,null,null,null,null,null,null,null,""]
[null,null,null,null,null,null,null,null,null,null,null,null,null,null,""]
[null,null,null,null,null,null,null,null,null,null,null,null,null,null,""]
[null,null,null,null,null,null,null,null,null,null,null,null,null,null,""]
[]
[null,"Additional Slump Tests, Air Tests, Beam Numbers of Beams Made & Remarks"]
[null,null,null,null,null,null,null,null,null,null,null,null,null,null,null,null,"Total Plan CY to Date"]
[null,null,null,null,null,null,null,null,null,null,null,null,null,null,null,null,{"$f":"IF(Q1362=\"\",\"\",SUM(K1397:L1404,Q1362))","v":""}]
[]
[]
[]
[]
[]
[]
[null,"Note:","Concrete Treatments",null,null,1,"Heated water only with no protection",null,null,null,null,6,"Ice added"]
[null,null,null,null,null,2,"Heated materials with no protection",null,null,null,null,7,"Nitrogen added"]
[null,"Indicate Number/s of the Concrete Treatment/s",null,null,null,3,"Protected concrete but did not heat materials",null,null,null,null,8,"Superplasticizer added"]
[null,"in the Column Provided Above",null,null,null,4,"Heated materials and protected concrete",null,null,null,null,9,"Microsilica added"]
[null,null,null,null,null,5,"Retarder used in concrete"]
[null,"Date","Mix",null,"Beam","Time","Slump","%","Age","W/C","Depth","Width","*Length","Indicated","Actual","Comp","Mod of","Location"]
[null,"Made","Number",null,"Number",null,null,"Air","Days",null,"Inches","Inches","Inches","Load (lbs)","Load (lbs)","Factor","Rupture","Inches"]
[null,null,null,null,null,null,null,null,null,null,null,null,null,null,null,{"$f":"IF(AND(K1422>0,L1422>0),3*M1422/(2*L1422*(K1422*K1422)),\"\")","v":""},{"$f":"IF(O1422>0,O1422*P1422,\" \")","v":" "}]
[null,null,null,null,null,null,null,null,null,null,null,null,null,null,null,{"$f":"IF(AND(K1423>0,L1423>0),3*M1423/(2*L1423*(K1423*K1423)),\"\")","v":""},{"$f":"IF(O1423>0,O1423*P1423,\" \")","v":" "}]
[null,null,null,null,null,null,null,null,null,null,null,null,null,null,null,""," "]
[null,null,null,null,null,null,null,null,null,null,null,null,null,null,null,""," "]
[null,null,null,null,null,null,null,null,null,null,null,null,null,null,null,""," "]
[null,null,null,null,null,null,null,null,null,null,null,null,null,null,null,""," "]
[null,null,null,null,null,null,null,null,null,null,null,null,null,null,null,""," "]
[]
["Distribution:",null," 1 copy to","Materials Engineer",null,"1 copy to ","RCE"]
[null,null,null,null,null,null,null,null,null,null,null,null,null,null,null,"  Structures Inspector"]
[{"$f":"A1","v":"Rev 10/26/18"},null,null,null,null,null,null,"STRUCTURES WEEKLY GRADE REPORT",null,null,null,null,null,null,null,null,null,null,"E145"]
[null,null,null,null,null,null,null,null,null,null,null,null,null,null,null,null,null,"FORM 830242E"]
[null,null,null,null,null,null,null,null,"Contract ID:",{"$f":"$J$3","v":0}]
[null,"Contractor:",{"$f":"$C$4","v":0},null,null,null,null,null,null,null,null,null,null,null,"County:",{"$f":"$P$4","v":0}]
[null,"Date:",null,null,null,null,null,null,null,null,null,null,null,null,"Project No:",{"$f":"$P$5","v":0}]
[null,"Report No.:",{"$f":"$C$6+31","v":32},null,null,null,null,null,null,null,null,null,null,null,"Design No:",{"$f":"$P$6","v":0}]
[]
[null,null,null,null,null,null,null,null,null,null,"           Plan",null,"             Actual",null,"Plan",null,"Concrete","Air"]
[null,"Date","                 Mix",null,null,"Unit",null,null,"Plant",null,"           Today",null,"              Used",null,"Total",null,"Treatment","Content","Slump"]
[null,"Poured","                  No",null,null,"Poured",null,null,"Name",null,"            (CY)",null,"               (CY)",null,"(CY)",null,null,"%","In."]
[null,null,null,null,null,null,null,null,null,null,null,null,null,null,"This Report"]
[null,null,null,null,null,null,null,null,null,null,null,null,null,null,{"$f":"IF(K1443>0,K1443,\"\")","v":""}]
[null,null,null,null,null,null,null,null,null,null,null,null,null,null,{"$f":"IF(K1444>0,O1443+K1444,\"\")","v":""}]
[null,null,null,null,null,null,null,null,null,null,null,null,null,null,{"$f":"IF(K1445>0,O1444+K1445,\"\")","v":""}]
[null,null,null,null,null,null,null,null,null,null,null,null,null,null,""]
[null,null,null,null,null,null,null,null,null,null,null,null,null,null,""]
[null,null,null,null,null,null,null,null,null,null,null,null,null,null,""]
[null,null,null,null,null,null,null,null,null,null,null,null,null,null,""]
[null,null,null,null,null,null,null,null,null,null,null,null,null,null,""]
[]
[null,"Additional Slump Tests, Air Tests, Beam Numbers of Beams Made & Remarks"]
[null,null,null,null,null,null,null,null,null,null,null,null,null,null,null,null,"Total Plan CY to Date"]
[null,null,null,null,null,null,null,null,null,null,null,null,null,null,null,null,{"$f":"IF(Q1408=\"\",\"\",SUM(K1443:L1450,Q1408))","v":""}]
[]
[]
[]
[]
[]
[]
[null,"Note:","Concrete Treatments",null,null,1,"Heated water only with no protection",null,null,null,null,6,"Ice added"]
[null,null,null,null,null,2,"Heated materials with no protection",null,null,null,null,7,"Nitrogen added"]
[null,"Indicate Number/s of the Concrete Treatment/s",null,null,null,3,"Protected concrete but did not heat materials",null,null,null,null,8,"Superplasticizer added"]
[null,"in the Column Provided Above",null,null,null,4,"Heated materials and protected concrete",null,null,null,null,9,"Microsilica added"]
[null,null,null,null,null,5,"Retarder used in concrete"]
[null,"Date","Mix",null,"Beam","Time","Slump","%","Age","W/C","Depth","Width","*Length","Indicated","Actual","Comp","Mod of","Location"]
[null,"Made","Number",null,"Number",null,null,"Air","Days",null,"Inches","Inches","Inches","Load (lbs)","Load (lbs)","Factor","Rupture","Inches"]
[null,null,null,null,null,null,null,null,null,null,null,null,null,null,null,{"$f":"IF(AND(K1468>0,L1468>0),3*M1468/(2*L1468*(K1468*K1468)),\"\")","v":""},{"$f":"IF(O1468>0,O1468*P1468,\" \")","v":" "}]
[null,null,null,null,null,null,null,null,null,null,null,null,null,null,null,{"$f":"IF(AND(K1469>0,L1469>0),3*M1469/(2*L1469*(K1469*K1469)),\"\")","v":""},{"$f":"IF(O1469>0,O1469*P1469,\" \")","v":" "}]
[null,null,null,null,null,null,null,null,null,null,null,null,null,null,null,""," "]
[null,null,null,null,null,null,null,null,null,null,null,null,null,null,null,""," "]
[null,null,null,null,null,null,null,null,null,null,null,null,null,null,null,""," "]
[null,null,null,null,null,null,null,null,null,null,null,null,null,null,null,""," "]
[null,null,null,null,null,null,null,null,null,null,null,null,null,null,null,""," "]
[]
["Distribution:",null," 1 copy to","Materials Engineer",null,"1 copy to ","RCE"]
[null,null,null,null,null,null,null,null,null,null,null,null,null,null,null,"  Structures Inspector"]
[{"$f":"A1","v":"Rev 10/26/18"},null,null,null,null,null,null,"STRUCTURES WEEKLY GRADE REPORT",null,null,null,null,null,null,null,null,null,null,"E145"]
[null,null,null,null,null,null,null,null,null,null,null,null,null,null,null,null,null,"FORM 830242E"]
[null,null,null,null,null,null,null,null,"Contract ID:",{"$f":"$J$3","v":0}]
[null,"Contractor:",{"$f":"$C$4","v":0},null,null,null,null,null,null,null,null,null,null,null,"County:",{"$f":"$P$4","v":0}]
[null,"Date:",null,null,null,null,null,null,null,null,null,null,null,null,"Project No:",{"$f":"$P$5","v":0}]
[null,"Report No.:",{"$f":"$C$6+32","v":33},null,null,null,null,null,null,null,null,null,null,null,"Design No:",{"$f":"$P$6","v":0}]
[]
[null,null,null,null,null,null,null,null,null,null,"           Plan",null,"             Actual",null,"Plan",null,"Concrete","Air"]
[null,"Date","                 Mix",null,null,"Unit",null,null,"Plant",null,"           Today",null,"              Used",null,"Total",null,"Treatment","Content","Slump"]
[null,"Poured","                  No",null,null,"Poured",null,null,"Name",null,"            (CY)",null,"               (CY)",null,"(CY)",null,null,"%","In."]
[null,null,null,null,null,null,null,null,null,null,null,null,null,null,"This Report"]
[null,null,null,null,null,null,null,null,null,null,null,null,null,null,{"$f":"IF(K1489>0,K1489,\"\")","v":""}]
[null,null,null,null,null,null,null,null,null,null,null,null,null,null,{"$f":"IF(K1490>0,O1489+K1490,\"\")","v":""}]
[null,null,null,null,null,null,null,null,null,null,null,null,null,null,{"$f":"IF(K1491>0,O1490+K1491,\"\")","v":""}]
[null,null,null,null,null,null,null,null,null,null,null,null,null,null,""]
[null,null,null,null,null,null,null,null,null,null,null,null,null,null,""]
[null,null,null,null,null,null,null,null,null,null,null,null,null,null,""]
[null,null,null,null,null,null,null,null,null,null,null,null,null,null,""]
[null,null,null,null,null,null,null,null,null,null,null,null,null,null,""]
[]
[null,"Additional Slump Tests, Air Tests, Beam Numbers of Beams Made & Remarks"]
[null,null,null,null,null,null,null,null,null,null,null,null,null,null,null,null,"Total Plan CY to Date"]
[null,null,null,null,null,null,null,null,null,null,null,null,null,null,null,null,{"$f":"IF(Q1454=\"\",\"\",SUM(K1489:L1496,Q1454))","v":""}]
[]
[]
[]
[]
[]
[]
[null,"Note:","Concrete Treatments",null,null,1,"Heated water only with no protection",null,null,null,null,6,"Ice added"]
[null,null,null,null,null,2,"Heated materials with no protection",null,null,null,null,7,"Nitrogen added"]
[null,"Indicate Number/s of the Concrete Treatment/s",null,null,null,3,"Protected concrete but did not heat materials",null,null,null,null,8,"Superplasticizer added"]
[null,"in the Column Provided Above",null,null,null,4,"Heated materials and protected concrete",null,null,null,null,9,"Microsilica added"]
[null,null,null,null,null,5,"Retarder used in concrete"]
[null,"Date","Mix",null,"Beam","Time","Slump","%","Age","W/C","Depth","Width","*Length","Indicated","Actual","Comp","Mod of","Location"]
[null,"Made","Number",null,"Number",null,null,"Air","Days",null,"Inches","Inches","Inches","Load (lbs)","Load (lbs)","Factor","Rupture","Inches"]
[null,null,null,null,null,null,null,null,null,null,null,null,null,null,null,{"$f":"IF(AND(K1514>0,L1514>0),3*M1514/(2*L1514*(K1514*K1514)),\"\")","v":""},{"$f":"IF(O1514>0,O1514*P1514,\" \")","v":" "}]
[null,null,null,null,null,null,null,null,null,null,null,null,null,null,null,{"$f":"IF(AND(K1515>0,L1515>0),3*M1515/(2*L1515*(K1515*K1515)),\"\")","v":""},{"$f":"IF(O1515>0,O1515*P1515,\" \")","v":" "}]
[null,null,null,null,null,null,null,null,null,null,null,null,null,null,null,""," "]
[null,null,null,null,null,null,null,null,null,null,null,null,null,null,null,""," "]
[null,null,null,null,null,null,null,null,null,null,null,null,null,null,null,""," "]
[null,null,null,null,null,null,null,null,null,null,null,null,null,null,null,""," "]
[null,null,null,null,null,null,null,null,null,null,null,null,null,null,null,""," "]
[]
["Distribution:",null," 1 copy to","Materials Engineer",null,"1 copy to ","RCE"]
[null,null,null,null,null,null,null,null,null,null,null,null,null,null,null,"  Structures Inspector"]
[{"$f":"A1","v":"Rev 10/26/18"},null,null,null,null,null,null,"STRUCTURES WEEKLY GRADE REPORT",null,null,null,null,null,null,null,null,null,null,"E145"]
[null,null,null,null,null,null,null,null,null,null,null,null,null,null,null,null,null,"FORM 830242E"]
[null,null,null,null,null,null,null,null,"Contract ID:",{"$f":"$J$3","v":0}]
[null,"Contractor:",{"$f":"$C$4","v":0},null,null,null,null,null,null,null,null,null,null,null,"County:",{"$f":"$P$4","v":0}]
[null,"Date:",null,null,null,null,null,null,null,null,null,null,null,null,"Project No:",{"$f":"$P$5","v":0}]
[null,"Report No.:",{"$f":"$C$6+33","v":34},null,null,null,null,null,null,null,null,null,null,null,"Design No:",{"$f":"$P$6","v":0}]
[]
[null,null,null,null,null,null,null,null,null,null,"           Plan",null,"             Actual",null,"Plan",null,"Concrete","Air"]
[null,"Date","                 Mix",null,null,"Unit",null,null,"Plant",null,"           Today",null,"              Used",null,"Total",null,"Treatment","Content","Slump"]
[null,"Poured","                  No",null,null,"Poured",null,null,"Name",null,"            (CY)",null,"               (CY)",null,"(CY)",null,null,"%","In."]
[null,null,null,null,null,null,null,null,null,null,null,null,null,null,"This Report"]
[null,null,null,null,null,null,null,null,null,null,null,null,null,null,{"$f":"IF(K1535>0,K1535,\"\")","v":""}]
[null,null,null,null,null,null,null,null,null,null,null,null,null,null,{"$f":"IF(K1536>0,O1535+K1536,\"\")","v":""}]
[null,null,null,null,null,null,null,null,null,null,null,null,null,null,{"$f":"IF(K1537>0,O1536+K1537,\"\")","v":""}]
[null,null,null,null,null,null,null,null,null,null,null,null,null,null,""]
[null,null,null,null,null,null,null,null,null,null,null,null,null,null,""]
[null,null,null,null,null,null,null,null,null,null,null,null,null,null,""]
[null,null,null,null,null,null,null,null,null,null,null,null,null,null,""]
[null,null,null,null,null,null,null,null,null,null,null,null,null,null,""]
[]
[null,"Additional Slump Tests, Air Tests, Beam Numbers of Beams Made & Remarks"]
[null,null,null,null,null,null,null,null,null,null,null,null,null,null,null,null,"Total Plan CY to Date"]
[null,null,null,null,null,null,null,null,null,null,null,null,null,null,null,null,{"$f":"IF(Q1500=\"\",\"\",SUM(K1535:L1542,Q1500))","v":""}]
[]
[]
[]
[]
[]
[]
[null,"Note:","Concrete Treatments",null,null,1,"Heated water only with no protection",null,null,null,null,6,"Ice added"]
[null,null,null,null,null,2,"Heated materials with no protection",null,null,null,null,7,"Nitrogen added"]
[null,"Indicate Number/s of the Concrete Treatment/s",null,null,null,3,"Protected concrete but did not heat materials",null,null,null,null,8,"Superplasticizer added"]
[null,"in the Column Provided Above",null,null,null,4,"Heated materials and protected concrete",null,null,null,null,9,"Microsilica added"]
[null,null,null,null,null,5,"Retarder used in concrete"]
[null,"Date","Mix",null,"Beam","Time","Slump","%","Age","W/C","Depth","Width","*Length","Indicated","Actual","Comp","Mod of","Location"]
[null,"Made","Number",null,"Number",null,null,"Air","Days",null,"Inches","Inches","Inches","Load (lbs)","Load (lbs)","Factor","Rupture","Inches"]
[null,null,null,null,null,null,null,null,null,null,null,null,null,null,null,{"$f":"IF(AND(K1560>0,L1560>0),3*M1560/(2*L1560*(K1560*K1560)),\"\")","v":""},{"$f":"IF(O1560>0,O1560*P1560,\" \")","v":" "}]
[null,null,null,null,null,null,null,null,null,null,null,null,null,null,null,{"$f":"IF(AND(K1561>0,L1561>0),3*M1561/(2*L1561*(K1561*K1561)),\"\")","v":""},{"$f":"IF(O1561>0,O1561*P1561,\" \")","v":" "}]
[null,null,null,null,null,null,null,null,null,null,null,null,null,null,null,""," "]
[null,null,null,null,null,null,null,null,null,null,null,null,null,null,null,""," "]
[null,null,null,null,null,null,null,null,null,null,null,null,null,null,null,""," "]
[null,null,null,null,null,null,null,null,null,null,null,null,null,null,null,""," "]
[null,null,null,null,null,null,null,null,null,null,null,null,null,null,null,""," "]
[]
["Distribution:",null," 1 copy to","Materials Engineer",null,"1 copy to ","RCE"]
[null,null,null,null,null,null,null,null,null,null,null,null,null,null,null,"  Structures Inspector"]
[{"$f":"A1","v":"Rev 10/26/18"},null,null,null,null,null,null,"STRUCTURES WEEKLY GRADE REPORT",null,null,null,null,null,null,null,null,null,null,"E145"]
[null,null,null,null,null,null,null,null,null,null,null,null,null,null,null,null,null,"FORM 830242E"]
[null,null,null,null,null,null,null,null,"Contract ID:",{"$f":"$J$3","v":0}]
[null,"Contractor:",{"$f":"$C$4","v":0},null,null,null,null,null,null,null,null,null,null,null,"County:",{"$f":"$P$4","v":0}]
[null,"Date:",null,null,null,null,null,null,null,null,null,null,null,null,"Project No:",{"$f":"$P$5","v":0}]
[null,"Report No.:",{"$f":"$C$6+34","v":35},null,null,null,null,null,null,null,null,null,null,null,"Design No:",{"$f":"$P$6","v":0}]
[]
[null,null,null,null,null,null,null,null,null,null,"           Plan",null,"             Actual",null,"Plan",null,"Concrete","Air"]
[null,"Date","                 Mix",null,null,"Unit",null,null,"Plant",null,"           Today",null,"              Used",null,"Total",null,"Treatment","Content","Slump"]
[null,"Poured","                  No",null,null,"Poured",null,null,"Name",null,"            (CY)",null,"               (CY)",null,"(CY)",null,null,"%","In."]
[null,null,null,null,null,null,null,null,null,null,null,null,null,null,"This Report"]
[null,null,null,null,null,null,null,null,null,null,null,null,null,null,{"$f":"IF(K1581>0,K1581,\"\")","v":""}]
[null,null,null,null,null,null,null,null,null,null,null,null,null,null,{"$f":"IF(K1582>0,O1581+K1582,\"\")","v":""}]
[null,null,null,null,null,null,null,null,null,null,null,null,null,null,{"$f":"IF(K1583>0,O1582+K1583,\"\")","v":""}]
[null,null,null,null,null,null,null,null,null,null,null,null,null,null,""]
[null,null,null,null,null,null,null,null,null,null,null,null,null,null,""]
[null,null,null,null,null,null,null,null,null,null,null,null,null,null,""]
[null,null,null,null,null,null,null,null,null,null,null,null,null,null,""]
[null,null,null,null,null,null,null,null,null,null,null,null,null,null,""]
[]
[null,"Additional Slump Tests, Air Tests, Beam Numbers of Beams Made & Remarks"]
[null,null,null,null,null,null,null,null,null,null,null,null,null,null,null,null,"Total Plan CY to Date"]
[null,null,null,null,null,null,null,null,null,null,null,null,null,null,null,null,{"$f":"IF(Q1546=\"\",\"\",SUM(K1581:L1588,Q1546))","v":""}]
[]
[]
[]
[]
[]
[]
[null,"Note:","Concrete Treatments",null,null,1,"Heated water only with no protection",null,null,null,null,6,"Ice added"]
[null,null,null,null,null,2,"Heated materials with no protection",null,null,null,null,7,"Nitrogen added"]
[null,"Indicate Number/s of the Concrete Treatment/s",null,null,null,3,"Protected concrete but did not heat materials",null,null,null,null,8,"Superplasticizer added"]
[null,"in the Column Provided Above",null,null,null,4,"Heated materials and protected concrete",null,null,null,null,9,"Microsilica added"]
[null,null,null,null,null,5,"Retarder used in concrete"]
[null,"Date","Mix",null,"Beam","Time","Slump","%","Age","W/C","Depth","Width","*Length","Indicated","Actual","Comp","Mod of","Location"]
[null,"Made","Number",null,"Number",null,null,"Air","Days",null,"Inches","Inches","Inches","Load (lbs)","Load (lbs)","Factor","Rupture","Inches"]
[null,null,null,null,null,null,null,null,null,null,null,null,null,null,null,{"$f":"IF(AND(K1606>0,L1606>0),3*M1606/(2*L1606*(K1606*K1606)),\"\")","v":""},{"$f":"IF(O1606>0,O1606*P1606,\" \")","v":" "}]
[null,null,null,null,null,null,null,null,null,null,null,null,null,null,null,{"$f":"IF(AND(K1607>0,L1607>0),3*M1607/(2*L1607*(K1607*K1607)),\"\")","v":""},{"$f":"IF(O1607>0,O1607*P1607,\" \")","v":" "}]
[null,null,null,null,null,null,null,null,null,null,null,null,null,null,null,""," "]
[null,null,null,null,null,null,null,null,null,null,null,null,null,null,null,""," "]
[null,null,null,null,null,null,null,null,null,null,null,null,null,null,null,""," "]
[null,null,null,null,null,null,null,null,null,null,null,null,null,null,null,""," "]
[null,null,null,null,null,null,null,null,null,null,null,null,null,null,null,""," "]
[]
["Distribution:",null," 1 copy to","Materials Engineer",null,"1 copy to ","RCE"]
[null,null,null,null,null,null,null,null,null,null,null,null,null,null,null,"  Structures Inspector"]
[{"$f":"A1","v":"Rev 10/26/18"},null,null,null,null,null,null,"STRUCTURES WEEKLY GRADE REPORT",null,null,null,null,null,null,null,null,null,null,"E145"]
[null,null,null,null,null,null,null,null,null,null,null,null,null,null,null,null,null,"FORM 830242E"]
[null,null,null,null,null,null,null,null,"Contract ID:",{"$f":"$J$3","v":0}]
[null,"Contractor:",{"$f":"$C$4","v":0},null,null,null,null,null,null,null,null,null,null,null,"County:",{"$f":"$P$4","v":0}]
[null,"Date:",null,null,null,null,null,null,null,null,null,null,null,null,"Project No:",{"$f":"$P$5","v":0}]
[null,"Report No.:",{"$f":"$C$6+35","v":36},null,null,null,null,null,null,null,null,null,null,null,"Design No:",{"$f":"$P$6","v":0}]
[]
[null,null,null,null,null,null,null,null,null,null,"           Plan",null,"             Actual",null,"Plan",null,"Concrete","Air"]
[null,"Date","                 Mix",null,null,"Unit",null,null,"Plant",null,"           Today",null,"              Used",null,"Total",null,"Treatment","Content","Slump"]
[null,"Poured","                  No",null,null,"Poured",null,null,"Name",null,"            (CY)",null,"               (CY)",null,"(CY)",null,null,"%","In."]
[null,null,null,null,null,null,null,null,null,null,null,null,null,null,"This Report"]
[null,null,null,null,null,null,null,null,null,null,null,null,null,null,{"$f":"IF(K1627>0,K1627,\"\")","v":""}]
[null,null,null,null,null,null,null,null,null,null,null,null,null,null,{"$f":"IF(K1628>0,O1627+K1628,\"\")","v":""}]
[null,null,null,null,null,null,null,null,null,null,null,null,null,null,{"$f":"IF(K1629>0,O1628+K1629,\"\")","v":""}]
[null,null,null,null,null,null,null,null,null,null,null,null,null,null,""]
[null,null,null,null,null,null,null,null,null,null,null,null,null,null,""]
[null,null,null,null,null,null,null,null,null,null,null,null,null,null,""]
[null,null,null,null,null,null,null,null,null,null,null,null,null,null,""]
[null,null,null,null,null,null,null,null,null,null,null,null,null,null,""]
[]
[null,"Additional Slump Tests, Air Tests, Beam Numbers of Beams Made & Remarks"]
[null,null,null,null,null,null,null,null,null,null,null,null,null,null,null,null,"Total Plan CY to Date"]
[null,null,null,null,null,null,null,null,null,null,null,null,null,null,null,null,{"$f":"IF(Q1592=\"\",\"\",SUM(K1627:L1634,Q1592))","v":""}]
[]
[]
[]
[]
[]
[]
[null,"Note:","Concrete Treatments",null,null,1,"Heated water only with no protection",null,null,null,null,6,"Ice added"]
[null,null,null,null,null,2,"Heated materials with no protection",null,null,null,null,7,"Nitrogen added"]
[null,"Indicate Number/s of the Concrete Treatment/s",null,null,null,3,"Protected concrete but did not heat materials",null,null,null,null,8,"Superplasticizer added"]
[null,"in the Column Provided Above",null,null,null,4,"Heated materials and protected concrete",null,null,null,null,9,"Microsilica added"]
[null,null,null,null,null,5,"Retarder used in concrete"]
[null,"Date","Mix",null,"Beam","Time","Slump","%","Age","W/C","Depth","Width","*Length","Indicated","Actual","Comp","Mod of","Location"]
[null,"Made","Number",null,"Number",null,null,"Air","Days",null,"Inches","Inches","Inches","Load (lbs)","Load (lbs)","Factor","Rupture","Inches"]
[null,null,null,null,null,null,null,null,null,null,null,null,null,null,null,{"$f":"IF(AND(K1652>0,L1652>0),3*M1652/(2*L1652*(K1652*K1652)),\"\")","v":""},{"$f":"IF(O1652>0,O1652*P1652,\" \")","v":" "}]
[null,null,null,null,null,null,null,null,null,null,null,null,null,null,null,{"$f":"IF(AND(K1653>0,L1653>0),3*M1653/(2*L1653*(K1653*K1653)),\"\")","v":""},{"$f":"IF(O1653>0,O1653*P1653,\" \")","v":" "}]
[null,null,null,null,null,null,null,null,null,null,null,null,null,null,null,""," "]
[null,null,null,null,null,null,null,null,null,null,null,null,null,null,null,""," "]
[null,null,null,null,null,null,null,null,null,null,null,null,null,null,null,""," "]
[null,null,null,null,null,null,null,null,null,null,null,null,null,null,null,""," "]
[null,null,null,null,null,null,null,null,null,null,null,null,null,null,null,""," "]
[]
["Distribution:",null," 1 copy to","Materials Engineer",null,"1 copy to ","RCE"]
[null,null,null,null,null,null,null,null,null,null,null,null,null,null,null,"  Structures Inspector"]
[{"$f":"A1","v":"Rev 10/26/18"},null,null,null,null,null,null,"STRUCTURES WEEKLY GRADE REPORT",null,null,null,null,null,null,null,null,null,null,"E145"]
[null,null,null,null,null,null,null,null,null,null,null,null,null,null,null,null,null,"FORM 830242E"]
[null,null,null,null,null,null,null,null,"Contract ID:",{"$f":"$J$3","v":0}]
[null,"Contractor:",{"$f":"$C$4","v":0},null,null,null,null,null,null,null,null,null,null,null,"County:",{"$f":"$P$4","v":0}]
[null,"Date:",null,null,null,null,null,null,null,null,null,null,null,null,"Project No:",{"$f":"$P$5","v":0}]
[null,"Report No.:",{"$f":"$C$6+36","v":37},null,null,null,null,null,null,null,null,null,null,null,"Design No:",{"$f":"$P$6","v":0}]
[]
[null,null,null,null,null,null,null,null,null,null,"           Plan",null,"             Actual",null,"Plan",null,"Concrete","Air"]
[null,"Date","                 Mix",null,null,"Unit",null,null,"Plant",null,"           Today",null,"              Used",null,"Total",null,"Treatment","Content","Slump"]
[null,"Poured","                  No",null,null,"Poured",null,null,"Name",null,"            (CY)",null,"               (CY)",null,"(CY)",null,null,"%","In."]
[null,null,null,null,null,null,null,null,null,null,null,null,null,null,"This Report"]
[null,null,null,null,null,null,null,null,null,null,null,null,null,null,{"$f":"IF(K1673>0,K1673,\"\")","v":""}]
[null,null,null,null,null,null,null,null,null,null,null,null,null,null,{"$f":"IF(K1674>0,O1673+K1674,\"\")","v":""}]
[null,null,null,null,null,null,null,null,null,null,null,null,null,null,{"$f":"IF(K1675>0,O1674+K1675,\"\")","v":""}]
[null,null,null,null,null,null,null,null,null,null,null,null,null,null,""]
[null,null,null,null,null,null,null,null,null,null,null,null,null,null,""]
[null,null,null,null,null,null,null,null,null,null,null,null,null,null,""]
[null,null,null,null,null,null,null,null,null,null,null,null,null,null,""]
[null,null,null,null,null,null,null,null,null,null,null,null,null,null,""]
[]
[null,"Additional Slump Tests, Air Tests, Beam Numbers of Beams Made & Remarks"]
[null,null,null,null,null,null,null,null,null,null,null,null,null,null,null,null,"Total Plan CY to Date"]
[null,null,null,null,null,null,null,null,null,null,null,null,null,null,null,null,{"$f":"IF(Q1638=\"\",\"\",SUM(K1673:L1680,Q1638))","v":""}]
[]
[]
[]
[]
[]
[]
[null,"Note:","Concrete Treatments",null,null,1,"Heated water only with no protection",null,null,null,null,6,"Ice added"]
[null,null,null,null,null,2,"Heated materials with no protection",null,null,null,null,7,"Nitrogen added"]
[null,"Indicate Number/s of the Concrete Treatment/s",null,null,null,3,"Protected concrete but did not heat materials",null,null,null,null,8,"Superplasticizer added"]
[null,"in the Column Provided Above",null,null,null,4,"Heated materials and protected concrete",null,null,null,null,9,"Microsilica added"]
[null,null,null,null,null,5,"Retarder used in concrete"]
[null,"Date","Mix",null,"Beam","Time","Slump","%","Age","W/C","Depth","Width","*Length","Indicated","Actual","Comp","Mod of","Location"]
[null,"Made","Number",null,"Number",null,null,"Air","Days",null,"Inches","Inches","Inches","Load (lbs)","Load (lbs)","Factor","Rupture","Inches"]
[null,null,null,null,null,null,null,null,null,null,null,null,null,null,null,{"$f":"IF(AND(K1698>0,L1698>0),3*M1698/(2*L1698*(K1698*K1698)),\"\")","v":""},{"$f":"IF(O1698>0,O1698*P1698,\" \")","v":" "}]
[null,null,null,null,null,null,null,null,null,null,null,null,null,null,null,{"$f":"IF(AND(K1699>0,L1699>0),3*M1699/(2*L1699*(K1699*K1699)),\"\")","v":""},{"$f":"IF(O1699>0,O1699*P1699,\" \")","v":" "}]
[null,null,null,null,null,null,null,null,null,null,null,null,null,null,null,""," "]
[null,null,null,null,null,null,null,null,null,null,null,null,null,null,null,""," "]
[null,null,null,null,null,null,null,null,null,null,null,null,null,null,null,""," "]
[null,null,null,null,null,null,null,null,null,null,null,null,null,null,null,""," "]
[null,null,null,null,null,null,null,null,null,null,null,null,null,null,null,""," "]
[]
["Distribution:",null," 1 copy to","Materials Engineer",null,"1 copy to ","RCE"]
[null,null,null,null,null,null,null,null,null,null,null,null,null,null,null,"  Structures Inspector"]
[{"$f":"A1","v":"Rev 10/26/18"},null,null,null,null,null,null,"STRUCTURES WEEKLY GRADE REPORT",null,null,null,null,null,null,null,null,null,null,"E145"]
[null,null,null,null,null,null,null,null,null,null,null,null,null,null,null,null,null,"FORM 830242E"]
[null,null,null,null,null,null,null,null,"Contract ID:",{"$f":"$J$3","v":0}]
[null,"Contractor:",{"$f":"$C$4","v":0},null,null,null,null,null,null,null,null,null,null,null,"County:",{"$f":"$P$4","v":0}]
[null,"Date:",null,null,null,null,null,null,null,null,null,null,null,null,"Project No:",{"$f":"$P$5","v":0}]
[null,"Report No.:",{"$f":"$C$6+37","v":38},null,null,null,null,null,null,null,null,null,null,null,"Design No:",{"$f":"$P$6","v":0}]
[]
[null,null,null,null,null,null,null,null,null,null,"           Plan",null,"             Actual",null,"Plan",null,"Concrete","Air"]
[null,"Date","                 Mix",null,null,"Unit",null,null,"Plant",null,"           Today",null,"              Used",null,"Total",null,"Treatment","Content","Slump"]
[null,"Poured","                  No",null,null,"Poured",null,null,"Name",null,"            (CY)",null,"               (CY)",null,"(CY)",null,null,"%","In."]
[null,null,null,null,null,null,null,null,null,null,null,null,null,null,"This Report"]
[null,null,null,null,null,null,null,null,null,null,null,null,null,null,{"$f":"IF(K1719>0,K1719,\"\")","v":""}]
[null,null,null,null,null,null,null,null,null,null,null,null,null,null,{"$f":"IF(K1720>0,O1719+K1720,\"\")","v":""}]
[null,null,null,null,null,null,null,null,null,null,null,null,null,null,{"$f":"IF(K1721>0,O1720+K1721,\"\")","v":""}]
[null,null,null,null,null,null,null,null,null,null,null,null,null,null,""]
[null,null,null,null,null,null,null,null,null,null,null,null,null,null,""]
[null,null,null,null,null,null,null,null,null,null,null,null,null,null,""]
[null,null,null,null,null,null,null,null,null,null,null,null,null,null,""]
[null,null,null,null,null,null,null,null,null,null,null,null,null,null,""]
[]
[null,"Additional Slump Tests, Air Tests, Beam Numbers of Beams Made & Remarks"]
[null,null,null,null,null,null,null,null,null,null,null,null,null,null,null,null,"Total Plan CY to Date"]
[null,null,null,null,null,null,null,null,null,null,null,null,null,null,null,null,{"$f":"IF(Q1684=\"\",\"\",SUM(K1719:L1726,Q1684))","v":""}]
[]
[]
[]
[]
[]
[]
[null,"Note:","Concrete Treatments",null,null,1,"Heated water only with no protection",null,null,null,null,6,"Ice added"]
[null,null,null,null,null,2,"Heated materials with no protection",null,null,null,null,7,"Nitrogen added"]
[null,"Indicate Number/s of the Concrete Treatment/s",null,null,null,3,"Protected concrete but did not heat materials",null,null,null,null,8,"Superplasticizer added"]
[null,"in the Column Provided Above",null,null,null,4,"Heated materials and protected concrete",null,null,null,null,9,"Microsilica added"]
[null,null,null,null,null,5,"Retarder used in concrete"]
[null,"Date","Mix",null,"Beam","Time","Slump","%","Age","W/C","Depth","Width","*Length","Indicated","Actual","Comp","Mod of","Location"]
[null,"Made","Number",null,"Number",null,null,"Air","Days",null,"Inches","Inches","Inches","Load (lbs)","Load (lbs)","Factor","Rupture","Inches"]
[null,null,null,null,null,null,null,null,null,null,null,null,null,null,null,{"$f":"IF(AND(K1744>0,L1744>0),3*M1744/(2*L1744*(K1744*K1744)),\"\")","v":""},{"$f":"IF(O1744>0,O1744*P1744,\" \")","v":" "}]
[null,null,null,null,null,null,null,null,null,null,null,null,null,null,null,{"$f":"IF(AND(K1745>0,L1745>0),3*M1745/(2*L1745*(K1745*K1745)),\"\")","v":""},{"$f":"IF(O1745>0,O1745*P1745,\" \")","v":" "}]
[null,null,null,null,null,null,null,null,null,null,null,null,null,null,null,""," "]
[null,null,null,null,null,null,null,null,null,null,null,null,null,null,null,""," "]
[null,null,null,null,null,null,null,null,null,null,null,null,null,null,null,""," "]
[null,null,null,null,null,null,null,null,null,null,null,null,null,null,null,""," "]
[null,null,null,null,null,null,null,null,null,null,null,null,null,null,null,""," "]
[]
["Distribution:",null," 1 copy to","Materials Engineer",null,"1 copy to ","RCE"]
[null,null,null,null,null,null,null,null,null,null,null,null,null,null,null,"  Structures Inspector"]
[{"$f":"A1","v":"Rev 10/26/18"},null,null,null,null,null,null,"STRUCTURES WEEKLY GRADE REPORT",null,null,null,null,null,null,null,null,null,null,"E145"]
[null,null,null,null,null,null,null,null,null,null,null,null,null,null,null,null,null,"FORM 830242E"]
[null,null,null,null,null,null,null,null,"Contract ID:",{"$f":"$J$3","v":0}]
[null,"Contractor:",{"$f":"$C$4","v":0},null,null,null,null,null,null,null,null,null,null,null,"County:",{"$f":"$P$4","v":0}]
[null,"Date:",null,null,null,null,null,null,null,null,null,null,null,null,"Project No:",{"$f":"$P$5","v":0}]
[null,"Report No.:",{"$f":"$C$6+38","v":39},null,null,null,null,null,null,null,null,null,null,null,"Design No:",{"$f":"$P$6","v":0}]
[]
[null,null,null,null,null,null,null,null,null,null,"           Plan",null,"             Actual",null,"Plan",null,"Concrete","Air"]
[null,"Date","                 Mix",null,null,"Unit",null,null,"Plant",null,"           Today",null,"              Used",null,"Total",null,"Treatment","Content","Slump"]
[null,"Poured","                  No",null,null,"Poured",null,null,"Name",null,"            (CY)",null,"               (CY)",null,"(CY)",null,null,"%","In."]
[null,null,null,null,null,null,null,null,null,null,null,null,null,null,"This Report"]
[null,null,null,null,null,null,null,null,null,null,null,null,null,null,{"$f":"IF(K1765>0,K1765,\"\")","v":""}]
[null,null,null,null,null,null,null,null,null,null,null,null,null,null,{"$f":"IF(K1766>0,O1765+K1766,\"\")","v":""}]
[null,null,null,null,null,null,null,null,null,null,null,null,null,null,{"$f":"IF(K1767>0,O1766+K1767,\"\")","v":""}]
[null,null,null,null,null,null,null,null,null,null,null,null,null,null,""]
[null,null,null,null,null,null,null,null,null,null,null,null,null,null,""]
[null,null,null,null,null,null,null,null,null,null,null,null,null,null,""]
[null,null,null,null,null,null,null,null,null,null,null,null,null,null,""]
[null,null,null,null,null,null,null,null,null,null,null,null,null,null,""]
[]
[null,"Additional Slump Tests, Air Tests, Beam Numbers of Beams Made & Remarks"]
[null,null,null,null,null,null,null,null,null,null,null,null,null,null,null,null,"Total Plan CY to Date"]
[null,null,null,null,null,null,null,null,null,null,null,null,null,null,null,null,{"$f":"IF(Q1730=\"\",\"\",SUM(K1765:L1772,Q1730))","v":""}]
[]
[]
[]
[]
[]
[]
[null,"Note:","Concrete Treatments",null,null,1,"Heated water only with no protection",null,null,null,null,6,"Ice added"]
[null,null,null,null,null,2,"Heated materials with no protection",null,null,null,null,7,"Nitrogen added"]
[null,"Indicate Number/s of the Concrete Treatment/s",null,null,null,3,"Protected concrete but did not heat materials",null,null,null,null,8,"Superplasticizer added"]
[null,"in the Column Provided Above",null,null,null,4,"Heated materials and protected concrete",null,null,null,null,9,"Microsilica added"]
[null,null,null,null,null,5,"Retarder used in concrete"]
[null,"Date","Mix",null,"Beam","Time","Slump","%","Age","W/C","Depth","Width","*Length","Indicated","Actual","Comp","Mod of","Location"]
[null,"Made","Number",null,"Number",null,null,"Air","Days",null,"Inches","Inches","Inches","Load (lbs)","Load (lbs)","Factor","Rupture","Inches"]
[null,null,null,null,null,null,null,null,null,null,null,null,null,null,null,{"$f":"IF(AND(K1790>0,L1790>0),3*M1790/(2*L1790*(K1790*K1790)),\"\")","v":""},{"$f":"IF(O1790>0,O1790*P1790,\" \")","v":" "}]
[null,null,null,null,null,null,null,null,null,null,null,null,null,null,null,{"$f":"IF(AND(K1791>0,L1791>0),3*M1791/(2*L1791*(K1791*K1791)),\"\")","v":""},{"$f":"IF(O1791>0,O1791*P1791,\" \")","v":" "}]
[null,null,null,null,null,null,null,null,null,null,null,null,null,null,null,""," "]
[null,null,null,null,null,null,null,null,null,null,null,null,null,null,null,""," "]
[null,null,null,null,null,null,null,null,null,null,null,null,null,null,null,""," "]
[null,null,null,null,null,null,null,null,null,null,null,null,null,null,null,""," "]
[null,null,null,null,null,null,null,null,null,null,null,null,null,null,null,""," "]
[]
["Distribution:",null," 1 copy to","Materials Engineer",null,"1 copy to ","RCE"]
[null,null,null,null,null,null,null,null,null,null,null,null,null,null,null,"  Structures Inspector"]
[{"$f":"A1","v":"Rev 10/26/18"},null,null,null,null,null,null,"STRUCTURES WEEKLY GRADE REPORT",null,null,null,null,null,null,null,null,null,null,"E145"]
[null,null,null,null,null,null,null,null,null,null,null,null,null,null,null,null,null,"FORM 830242E"]
[null,null,null,null,null,null,null,null,"Contract ID:",{"$f":"$J$3","v":0}]
[null,"Contractor:",{"$f":"$C$4","v":0},null,null,null,null,null,null,null,null,null,null,null,"County:",{"$f":"$P$4","v":0}]
[null,"Date:",null,null,null,null,null,null,null,null,null,null,null,null,"Project No:",{"$f":"$P$5","v":0}]
[null,"Report No.:",{"$f":"$C$6+39","v":40},null,null,null,null,null,null,null,null,null,null,null,"Design No:",{"$f":"$P$6","v":0}]
[]
[null,null,null,null,null,null,null,null,null,null,"           Plan",null,"             Actual",null,"Plan",null,"Concrete","Air"]
[null,"Date","                 Mix",null,null,"Unit",null,null,"Plant",null,"           Today",null,"              Used",null,"Total",null,"Treatment","Content","Slump"]
[null,"Poured","                  No",null,null,"Poured",null,null,"Name",null,"            (CY)",null,"               (CY)",null,"(CY)",null,null,"%","In."]
[null,null,null,null,null,null,null,null,null,null,null,null,null,null,"This Report"]
[null,null,null,null,null,null,null,null,null,null,null,null,null,null,{"$f":"IF(K1811>0,K1811,\"\")","v":""}]
[null,null,null,null,null,null,null,null,null,null,null,null,null,null,{"$f":"IF(K1812>0,O1811+K1812,\"\")","v":""}]
[null,null,null,null,null,null,null,null,null,null,null,null,null,null,{"$f":"IF(K1813>0,O1812+K1813,\"\")","v":""}]
[null,null,null,null,null,null,null,null,null,null,null,null,null,null,""]
[null,null,null,null,null,null,null,null,null,null,null,null,null,null,""]
[null,null,null,null,null,null,null,null,null,null,null,null,null,null,""]
[null,null,null,null,null,null,null,null,null,null,null,null,null,null,""]
[null,null,null,null,null,null,null,null,null,null,null,null,null,null,""]
[]
[null,"Additional Slump Tests, Air Tests, Beam Numbers of Beams Made & Remarks"]
[null,null,null,null,null,null,null,null,null,null,null,null,null,null,null,null,"Total Plan CY to Date"]
[null,null,null,null,null,null,null,null,null,null,null,null,null,null,null,null,{"$f":"IF(Q1776=\"\",\"\",SUM(K1811:L1818,Q1776))","v":""}]
[]
[]
[]
[]
[]
[]
[null,"Note:","Concrete Treatments",null,null,1,"Heated water only with no protection",null,null,null,null,6,"Ice added"]
[null,null,null,null,null,2,"Heated materials with no protection",null,null,null,null,7,"Nitrogen added"]
[null,"Indicate Number/s of the Concrete Treatment/s",null,null,null,3,"Protected concrete but did not heat materials",null,null,null,null,8,"Superplasticizer added"]
[null,"in the Column Provided Above",null,null,null,4,"Heated materials and protected concrete",null,null,null,null,9,"Microsilica added"]
[null,null,null,null,null,5,"Retarder used in concrete"]
[null,"Date","Mix",null,"Beam","Time","Slump","%","Age","W/C","Depth","Width","*Length","Indicated","Actual","Comp","Mod of","Location"]
[null,"Made","Number",null,"Number",null,null,"Air","Days",null,"Inches","Inches","Inches","Load (lbs)","Load (lbs)","Factor","Rupture","Inches"]
[null,null,null,null,null,null,null,null,null,null,null,null,null,null,null,{"$f":"IF(AND(K1836>0,L1836>0),3*M1836/(2*L1836*(K1836*K1836)),\"\")","v":""},{"$f":"IF(O1836>0,O1836*P1836,\" \")","v":" "}]
[null,null,null,null,null,null,null,null,null,null,null,null,null,null,null,{"$f":"IF(AND(K1837>0,L1837>0),3*M1837/(2*L1837*(K1837*K1837)),\"\")","v":""},{"$f":"IF(O1837>0,O1837*P1837,\" \")","v":" "}]
[null,null,null,null,null,null,null,null,null,null,null,null,null,null,null,""," "]
[null,null,null,null,null,null,null,null,null,null,null,null,null,null,null,""," "]
[null,null,null,null,null,null,null,null,null,null,null,null,null,null,null,""," "]
[null,null,null,null,null,null,null,null,null,null,null,null,null,null,null,""," "]
[null,null,null,null,null,null,null,null,null,null,null,null,null,null,null,""," "]
[]
["Distribution:",null," 1 copy to","Materials Engineer",null,"1 copy to ","RCE"]
[null,null,null,null,null,null,null,null,null,null,null,null,null,null,null,"  Structures Inspector"]
[{"$f":"A1","v":"Rev 10/26/18"},null,null,null,null,null,null,"STRUCTURES WEEKLY GRADE REPORT",null,null,null,null,null,null,null,null,null,null,"E145"]
[null,null,null,null,null,null,null,null,null,null,null,null,null,null,null,null,null,"FORM 830242E"]
[null,null,null,null,null,null,null,null,"Contract ID:",{"$f":"$J$3","v":0}]
[null,"Contractor:",{"$f":"$C$4","v":0},null,null,null,null,null,null,null,null,null,null,null,"County:",{"$f":"$P$4","v":0}]
[null,"Date:",null,null,null,null,null,null,null,null,null,null,null,null,"Project No:",{"$f":"$P$5","v":0}]
[null,"Report No.:",{"$f":"$C$6+40","v":41},null,null,null,null,null,null,null,null,null,null,null,"Design No:",{"$f":"$P$6","v":0}]
[]
[null,null,null,null,null,null,null,null,null,null,"           Plan",null,"             Actual",null,"Plan",null,"Concrete","Air"]
[null,"Date","                 Mix",null,null,"Unit",null,null,"Plant",null,"           Today",null,"              Used",null,"Total",null,"Treatment","Content","Slump"]
[null,"Poured","                  No",null,null,"Poured",null,null,"Name",null,"            (CY)",null,"               (CY)",null,"(CY)",null,null,"%","In."]
[null,null,null,null,null,null,null,null,null,null,null,null,null,null,"This Report"]
[null,null,null,null,null,null,null,null,null,null,null,null,null,null,{"$f":"IF(K1857>0,K1857,\"\")","v":""}]
[null,null,null,null,null,null,null,null,null,null,null,null,null,null,{"$f":"IF(K1858>0,O1857+K1858,\"\")","v":""}]
[null,null,null,null,null,null,null,null,null,null,null,null,null,null,{"$f":"IF(K1859>0,O1858+K1859,\"\")","v":""}]
[null,null,null,null,null,null,null,null,null,null,null,null,null,null,""]
[null,null,null,null,null,null,null,null,null,null,null,null,null,null,""]
[null,null,null,null,null,null,null,null,null,null,null,null,null,null,""]
[null,null,null,null,null,null,null,null,null,null,null,null,null,null,""]
[null,null,null,null,null,null,null,null,null,null,null,null,null,null,""]
[]
[null,"Additional Slump Tests, Air Tests, Beam Numbers of Beams Made & Remarks"]
[null,null,null,null,null,null,null,null,null,null,null,null,null,null,null,null,"Total Plan CY to Date"]
[null,null,null,null,null,null,null,null,null,null,null,null,null,null,null,null,{"$f":"IF(Q1822=\"\",\"\",SUM(K1857:L1864,Q1822))","v":""}]
[]
[]
[]
[]
[]
[]
[null,"Note:","Concrete Treatments",null,null,1,"Heated water only with no protection",null,null,null,null,6,"Ice added"]
[null,null,null,null,null,2,"Heated materials with no protection",null,null,null,null,7,"Nitrogen added"]
[null,"Indicate Number/s of the Concrete Treatment/s",null,null,null,3,"Protected concrete but did not heat materials",null,null,null,null,8,"Superplasticizer added"]
[null,"in the Column Provided Above",null,null,null,4,"Heated materials and protected concrete",null,null,null,null,9,"Microsilica added"]
[null,null,null,null,null,5,"Retarder used in concrete"]
[null,"Date","Mix",null,"Beam","Time","Slump","%","Age","W/C","Depth","Width","*Length","Indicated","Actual","Comp","Mod of","Location"]
[null,"Made","Number",null,"Number",null,null,"Air","Days",null,"Inches","Inches","Inches","Load (lbs)","Load (lbs)","Factor","Rupture","Inches"]
[null,null,null,null,null,null,null,null,null,null,null,null,null,null,null,{"$f":"IF(AND(K1882>0,L1882>0),3*M1882/(2*L1882*(K1882*K1882)),\"\")","v":""},{"$f":"IF(O1882>0,O1882*P1882,\" \")","v":" "}]
[null,null,null,null,null,null,null,null,null,null,null,null,null,null,null,{"$f":"IF(AND(K1883>0,L1883>0),3*M1883/(2*L1883*(K1883*K1883)),\"\")","v":""},{"$f":"IF(O1883>0,O1883*P1883,\" \")","v":" "}]
[null,null,null,null,null,null,null,null,null,null,null,null,null,null,null,""," "]
[null,null,null,null,null,null,null,null,null,null,null,null,null,null,null,""," "]
[null,null,null,null,null,null,null,null,null,null,null,null,null,null,null,""," "]
[null,null,null,null,null,null,null,null,null,null,null,null,null,null,null,""," "]
[null,null,null,null,null,null,null,null,null,null,null,null,null,null,null,""," "]
[]
["Distribution:",null," 1 copy to","Materials Engineer",null,"1 copy to ","RCE"]
[null,null,null,null,null,null,null,null,null,null,null,null,null,null,null,"  Structures Inspector"]
[{"$f":"A1","v":"Rev 10/26/18"},null,null,null,null,null,null,"STRUCTURES WEEKLY GRADE REPORT",null,null,null,null,null,null,null,null,null,null,"E145"]
[null,null,null,null,null,null,null,null,null,null,null,null,null,null,null,null,null,"FORM 830242E"]
[null,null,null,null,null,null,null,null,"Contract ID:",{"$f":"$J$3","v":0}]
[null,"Contractor:",{"$f":"$C$4","v":0},null,null,null,null,null,null,null,null,null,null,null,"County:",{"$f":"$P$4","v":0}]
[null,"Date:",null,null,null,null,null,null,null,null,null,null,null,null,"Project No:",{"$f":"$P$5","v":0}]
[null,"Report No.:",{"$f":"$C$6+41","v":42},null,null,null,null,null,null,null,null,null,null,null,"Design No:",{"$f":"$P$6","v":0}]
[]
[null,null,null,null,null,null,null,null,null,null,"           Plan",null,"             Actual",null,"Plan",null,"Concrete","Air"]
[null,"Date","                 Mix",null,null,"Unit",null,null,"Plant",null,"           Today",null,"              Used",null,"Total",null,"Treatment","Content","Slump"]
[null,"Poured","                  No",null,null,"Poured",null,null,"Name",null,"            (CY)",null,"               (CY)",null,"(CY)",null,null,"%","In."]
[null,null,null,null,null,null,null,null,null,null,null,null,null,null,"This Report"]
[null,null,null,null,null,null,null,null,null,null,null,null,null,null,{"$f":"IF(K1903>0,K1903,\"\")","v":""}]
[null,null,null,null,null,null,null,null,null,null,null,null,null,null,{"$f":"IF(K1904>0,O1903+K1904,\"\")","v":""}]
[null,null,null,null,null,null,null,null,null,null,null,null,null,null,{"$f":"IF(K1905>0,O1904+K1905,\"\")","v":""}]
[null,null,null,null,null,null,null,null,null,null,null,null,null,null,""]
[null,null,null,null,null,null,null,null,null,null,null,null,null,null,""]
[null,null,null,null,null,null,null,null,null,null,null,null,null,null,""]
[null,null,null,null,null,null,null,null,null,null,null,null,null,null,""]
[null,null,null,null,null,null,null,null,null,null,null,null,null,null,""]
[]
[null,"Additional Slump Tests, Air Tests, Beam Numbers of Beams Made & Remarks"]
[null,null,null,null,null,null,null,null,null,null,null,null,null,null,null,null,"Total Plan CY to Date"]
[null,null,null,null,null,null,null,null,null,null,null,null,null,null,null,null,{"$f":"IF(Q1868=\"\",\"\",SUM(K1903:L1910,Q1868))","v":""}]
[]
[]
[]
[]
[]
[]
[null,"Note:","Concrete Treatments",null,null,1,"Heated water only with no protection",null,null,null,null,6,"Ice added"]
[null,null,null,null,null,2,"Heated materials with no protection",null,null,null,null,7,"Nitrogen added"]
[null,"Indicate Number/s of the Concrete Treatment/s",null,null,null,3,"Protected concrete but did not heat materials",null,null,null,null,8,"Superplasticizer added"]
[null,"in the Column Provided Above",null,null,null,4,"Heated materials and protected concrete",null,null,null,null,9,"Microsilica added"]
[null,null,null,null,null,5,"Retarder used in concrete"]
[null,"Date","Mix",null,"Beam","Time","Slump","%","Age","W/C","Depth","Width","*Length","Indicated","Actual","Comp","Mod of","Location"]
[null,"Made","Number",null,"Number",null,null,"Air","Days",null,"Inches","Inches","Inches","Load (lbs)","Load (lbs)","Factor","Rupture","Inches"]
[null,null,null,null,null,null,null,null,null,null,null,null,null,null,null,{"$f":"IF(AND(K1928>0,L1928>0),3*M1928/(2*L1928*(K1928*K1928)),\"\")","v":""},{"$f":"IF(O1928>0,O1928*P1928,\" \")","v":" "}]
[null,null,null,null,null,null,null,null,null,null,null,null,null,null,null,{"$f":"IF(AND(K1929>0,L1929>0),3*M1929/(2*L1929*(K1929*K1929)),\"\")","v":""},{"$f":"IF(O1929>0,O1929*P1929,\" \")","v":" "}]
[null,null,null,null,null,null,null,null,null,null,null,null,null,null,null,""," "]
[null,null,null,null,null,null,null,null,null,null,null,null,null,null,null,""," "]
[null,null,null,null,null,null,null,null,null,null,null,null,null,null,null,""," "]
[null,null,null,null,null,null,null,null,null,null,null,null,null,null,null,""," "]
[null,null,null,null,null,null,null,null,null,null,null,null,null,null,null,""," "]
[]
["Distribution:",null," 1 copy to","Materials Engineer",null,"1 copy to ","RCE"]
[null,null,null,null,null,null,null,null,null,null,null,null,null,null,null,"  Structures Inspector"]
[{"$f":"A1","v":"Rev 10/26/18"},null,null,null,null,null,null,"STRUCTURES WEEKLY GRADE REPORT",null,null,null,null,null,null,null,null,null,null,"E145"]
[null,null,null,null,null,null,null,null,null,null,null,null,null,null,null,null,null,"FORM 830242E"]
[null,null,null,null,null,null,null,null,"Contract ID:",{"$f":"$J$3","v":0}]
[null,"Contractor:",{"$f":"$C$4","v":0},null,null,null,null,null,null,null,null,null,null,null,"County:",{"$f":"$P$4","v":0}]
[null,"Date:",null,null,null,null,null,null,null,null,null,null,null,null,"Project No:",{"$f":"$P$5","v":0}]
[null,"Report No.:",{"$f":"$C$6+42","v":43},null,null,null,null,null,null,null,null,null,null,null,"Design No:",{"$f":"$P$6","v":0}]
[]
[null,null,null,null,null,null,null,null,null,null,"           Plan",null,"             Actual",null,"Plan",null,"Concrete","Air"]
[null,"Date","                 Mix",null,null,"Unit",null,null,"Plant",null,"           Today",null,"              Used",null,"Total",null,"Treatment","Content","Slump"]
[null,"Poured","                  No",null,null,"Poured",null,null,"Name",null,"            (CY)",null,"               (CY)",null,"(CY)",null,null,"%","In."]
[null,null,null,null,null,null,null,null,null,null,null,null,null,null,"This Report"]
[null,null,null,null,null,null,null,null,null,null,null,null,null,null,{"$f":"IF(K1949>0,K1949,\"\")","v":""}]
[null,null,null,null,null,null,null,null,null,null,null,null,null,null,{"$f":"IF(K1950>0,O1949+K1950,\"\")","v":""}]
[null,null,null,null,null,null,null,null,null,null,null,null,null,null,{"$f":"IF(K1951>0,O1950+K1951,\"\")","v":""}]
[null,null,null,null,null,null,null,null,null,null,null,null,null,null,""]
[null,null,null,null,null,null,null,null,null,null,null,null,null,null,""]
[null,null,null,null,null,null,null,null,null,null,null,null,null,null,""]
[null,null,null,null,null,null,null,null,null,null,null,null,null,null,""]
[null,null,null,null,null,null,null,null,null,null,null,null,null,null,""]
[]
[null,"Additional Slump Tests, Air Tests, Beam Numbers of Beams Made & Remarks"]
[null,null,null,null,null,null,null,null,null,null,null,null,null,null,null,null,"Total Plan CY to Date"]
[null,null,null,null,null,null,null,null,null,null,null,null,null,null,null,null,{"$f":"IF(Q1914=\"\",\"\",SUM(K1949:L1956,Q1914))","v":""}]
[]
[]
[]
[]
[]
[]
[null,"Note:","Concrete Treatments",null,null,1,"Heated water only with no protection",null,null,null,null,6,"Ice added"]
[null,null,null,null,null,2,"Heated materials with no protection",null,null,null,null,7,"Nitrogen added"]
[null,"Indicate Number/s of the Concrete Treatment/s",null,null,null,3,"Protected concrete but did not heat materials",null,null,null,null,8,"Superplasticizer added"]
[null,"in the Column Provided Above",null,null,null,4,"Heated materials and protected concrete",null,null,null,null,9,"Microsilica added"]
[null,null,null,null,null,5,"Retarder used in concrete"]
[null,"Date","Mix",null,"Beam","Time","Slump","%","Age","W/C","Depth","Width","*Length","Indicated","Actual","Comp","Mod of","Location"]
[null,"Made","Number",null,"Number",null,null,"Air","Days",null,"Inches","Inches","Inches","Load (lbs)","Load (lbs)","Factor","Rupture","Inches"]
[null,null,null,null,null,null,null,null,null,null,null,null,null,null,null,{"$f":"IF(AND(K1974>0,L1974>0),3*M1974/(2*L1974*(K1974*K1974)),\"\")","v":""},{"$f":"IF(O1974>0,O1974*P1974,\" \")","v":" "}]
[null,null,null,null,null,null,null,null,null,null,null,null,null,null,null,{"$f":"IF(AND(K1975>0,L1975>0),3*M1975/(2*L1975*(K1975*K1975)),\"\")","v":""},{"$f":"IF(O1975>0,O1975*P1975,\" \")","v":" "}]
[null,null,null,null,null,null,null,null,null,null,null,null,null,null,null,""," "]
[null,null,null,null,null,null,null,null,null,null,null,null,null,null,null,""," "]
[null,null,null,null,null,null,null,null,null,null,null,null,null,null,null,""," "]
[null,null,null,null,null,null,null,null,null,null,null,null,null,null,null,""," "]
[null,null,null,null,null,null,null,null,null,null,null,null,null,null,null,""," "]
[]
["Distribution:",null," 1 copy to","Materials Engineer",null,"1 copy to ","RCE"]
[null,null,null,null,null,null,null,null,null,null,null,null,null,null,null,"  Structures Inspector"]
[{"$f":"A1","v":"Rev 10/26/18"},null,null,null,null,null,null,"STRUCTURES WEEKLY GRADE REPORT",null,null,null,null,null,null,null,null,null,null,"E145"]
[null,null,null,null,null,null,null,null,null,null,null,null,null,null,null,null,null,"FORM 830242E"]
[null,null,null,null,null,null,null,null,"Contract ID:",{"$f":"$J$3","v":0}]
[null,"Contractor:",{"$f":"$C$4","v":0},null,null,null,null,null,null,null,null,null,null,null,"County:",{"$f":"$P$4","v":0}]
[null,"Date:",null,null,null,null,null,null,null,null,null,null,null,null,"Project No:",{"$f":"$P$5","v":0}]
[null,"Report No.:",{"$f":"$C$6+43","v":44},null,null,null,null,null,null,null,null,null,null,null,"Design No:",{"$f":"$P$6","v":0}]
[]
[null,null,null,null,null,null,null,null,null,null,"           Plan",null,"             Actual",null,"Plan",null,"Concrete","Air"]
[null,"Date","                 Mix",null,null,"Unit",null,null,"Plant",null,"           Today",null,"              Used",null,"Total",null,"Treatment","Content","Slump"]
[null,"Poured","                  No",null,null,"Poured",null,null,"Name",null,"            (CY)",null,"               (CY)",null,"(CY)",null,null,"%","In."]
[null,null,null,null,null,null,null,null,null,null,null,null,null,null,"This Report"]
[null,null,null,null,null,null,null,null,null,null,null,null,null,null,{"$f":"IF(K1995>0,K1995,\"\")","v":""}]
[null,null,null,null,null,null,null,null,null,null,null,null,null,null,{"$f":"IF(K1996>0,O1995+K1996,\"\")","v":""}]
[null,null,null,null,null,null,null,null,null,null,null,null,null,null,{"$f":"IF(K1997>0,O1996+K1997,\"\")","v":""}]
[null,null,null,null,null,null,null,null,null,null,null,null,null,null,""]
[null,null,null,null,null,null,null,null,null,null,null,null,null,null,""]
[null,null,null,null,null,null,null,null,null,null,null,null,null,null,""]
[null,null,null,null,null,null,null,null,null,null,null,null,null,null,""]
[null,null,null,null,null,null,null,null,null,null,null,null,null,null,""]
[]
[null,"Additional Slump Tests, Air Tests, Beam Numbers of Beams Made & Remarks"]
[null,null,null,null,null,null,null,null,null,null,null,null,null,null,null,null,"Total Plan CY to Date"]
[null,null,null,null,null,null,null,null,null,null,null,null,null,null,null,null,{"$f":"IF(Q1960=\"\",\"\",SUM(K1995:L2002,Q1960))","v":""}]
[]
[]
[]
[]
[]
[]
[null,"Note:","Concrete Treatments",null,null,1,"Heated water only with no protection",null,null,null,null,6,"Ice added"]
[null,null,null,null,null,2,"Heated materials with no protection",null,null,null,null,7,"Nitrogen added"]
[null,"Indicate Number/s of the Concrete Treatment/s",null,null,null,3,"Protected concrete but did not heat materials",null,null,null,null,8,"Superplasticizer added"]
[null,"in the Column Provided Above",null,null,null,4,"Heated materials and protected concrete",null,null,null,null,9,"Microsilica added"]
[null,null,null,null,null,5,"Retarder used in concrete"]
[null,"Date","Mix",null,"Beam","Time","Slump","%","Age","W/C","Depth","Width","*Length","Indicated","Actual","Comp","Mod of","Location"]
[null,"Made","Number",null,"Number",null,null,"Air","Days",null,"Inches","Inches","Inches","Load (lbs)","Load (lbs)","Factor","Rupture","Inches"]
[null,null,null,null,null,null,null,null,null,null,null,null,null,null,null,{"$f":"IF(AND(K2020>0,L2020>0),3*M2020/(2*L2020*(K2020*K2020)),\"\")","v":""},{"$f":"IF(O2020>0,O2020*P2020,\" \")","v":" "}]
[null,null,null,null,null,null,null,null,null,null,null,null,null,null,null,{"$f":"IF(AND(K2021>0,L2021>0),3*M2021/(2*L2021*(K2021*K2021)),\"\")","v":""},{"$f":"IF(O2021>0,O2021*P2021,\" \")","v":" "}]
[null,null,null,null,null,null,null,null,null,null,null,null,null,null,null,""," "]
[null,null,null,null,null,null,null,null,null,null,null,null,null,null,null,""," "]
[null,null,null,null,null,null,null,null,null,null,null,null,null,null,null,""," "]
[null,null,null,null,null,null,null,null,null,null,null,null,null,null,null,""," "]
[null,null,null,null,null,null,null,null,null,null,null,null,null,null,null,""," "]
[]
["Distribution:",null," 1 copy to","Materials Engineer",null,"1 copy to ","RCE"]
[null,null,null,null,null,null,null,null,null,null,null,null,null,null,null,"  Structures Inspector"]
[{"$f":"A1","v":"Rev 10/26/18"},null,null,null,null,null,null,"STRUCTURES WEEKLY GRADE REPORT",null,null,null,null,null,null,null,null,null,null,"E145"]
[null,null,null,null,null,null,null,null,null,null,null,null,null,null,null,null,null,"FORM 830242E"]
[null,null,null,null,null,null,null,null,"Contract ID:",{"$f":"$J$3","v":0}]
[null,"Contractor:",{"$f":"$C$4","v":0},null,null,null,null,null,null,null,null,null,null,null,"County:",{"$f":"$P$4","v":0}]
[null,"Date:",null,null,null,null,null,null,null,null,null,null,null,null,"Project No:",{"$f":"$P$5","v":0}]
[null,"Report No.:",{"$f":"$C$6+44","v":45},null,null,null,null,null,null,null,null,null,null,null,"Design No:",{"$f":"$P$6","v":0}]
[]
[null,null,null,null,null,null,null,null,null,null,"           Plan",null,"             Actual",null,"Plan",null,"Concrete","Air"]
[null,"Date","                 Mix",null,null,"Unit",null,null,"Plant",null,"           Today",null,"              Used",null,"Total",null,"Treatment","Content","Slump"]
[null,"Poured","                  No",null,null,"Poured",null,null,"Name",null,"            (CY)",null,"               (CY)",null,"(CY)",null,null,"%","In."]
[null,null,null,null,null,null,null,null,null,null,null,null,null,null,"This Report"]
[null,null,null,null,null,null,null,null,null,null,null,null,null,null,{"$f":"IF(K2041>0,K2041,\"\")","v":""}]
[null,null,null,null,null,null,null,null,null,null,null,null,null,null,{"$f":"IF(K2042>0,O2041+K2042,\"\")","v":""}]
[null,null,null,null,null,null,null,null,null,null,null,null,null,null,{"$f":"IF(K2043>0,O2042+K2043,\"\")","v":""}]
[null,null,null,null,null,null,null,null,null,null,null,null,null,null,""]
[null,null,null,null,null,null,null,null,null,null,null,null,null,null,""]
[null,null,null,null,null,null,null,null,null,null,null,null,null,null,""]
[null,null,null,null,null,null,null,null,null,null,null,null,null,null,""]
[null,null,null,null,null,null,null,null,null,null,null,null,null,null,""]
[]
[null,"Additional Slump Tests, Air Tests, Beam Numbers of Beams Made & Remarks"]
[null,null,null,null,null,null,null,null,null,null,null,null,null,null,null,null,"Total Plan CY to Date"]
[null,null,null,null,null,null,null,null,null,null,null,null,null,null,null,null,{"$f":"IF(Q2006=\"\",\"\",SUM(K2041:L2048,Q2006))","v":""}]
[]
[]
[]
[]
[]
[]
[null,"Note:","Concrete Treatments",null,null,1,"Heated water only with no protection",null,null,null,null,6,"Ice added"]
[null,null,null,null,null,2,"Heated materials with no protection",null,null,null,null,7,"Nitrogen added"]
[null,"Indicate Number/s of the Concrete Treatment/s",null,null,null,3,"Protected concrete but did not heat materials",null,null,null,null,8,"Superplasticizer added"]
[null,"in the Column Provided Above",null,null,null,4,"Heated materials and protected concrete",null,null,null,null,9,"Microsilica added"]
[null,null,null,null,null,5,"Retarder used in concrete"]
[null,"Date","Mix",null,"Beam","Time","Slump","%","Age","W/C","Depth","Width","*Length","Indicated","Actual","Comp","Mod of","Location"]
[null,"Made","Number",null,"Number",null,null,"Air","Days",null,"Inches","Inches","Inches","Load (lbs)","Load (lbs)","Factor","Rupture","Inches"]
[null,null,null,null,null,null,null,null,null,null,null,null,null,null,null,{"$f":"IF(AND(K2066>0,L2066>0),3*M2066/(2*L2066*(K2066*K2066)),\"\")","v":""},{"$f":"IF(O2066>0,O2066*P2066,\" \")","v":" "}]
[null,null,null,null,null,null,null,null,null,null,null,null,null,null,null,{"$f":"IF(AND(K2067>0,L2067>0),3*M2067/(2*L2067*(K2067*K2067)),\"\")","v":""},{"$f":"IF(O2067>0,O2067*P2067,\" \")","v":" "}]
[null,null,null,null,null,null,null,null,null,null,null,null,null,null,null,""," "]
[null,null,null,null,null,null,null,null,null,null,null,null,null,null,null,""," "]
[null,null,null,null,null,null,null,null,null,null,null,null,null,null,null,""," "]
[null,null,null,null,null,null,null,null,null,null,null,null,null,null,null,""," "]
[null,null,null,null,null,null,null,null,null,null,null,null,null,null,null,""," "]
[]
["Distribution:",null," 1 copy to","Materials Engineer",null,"1 copy to ","RCE"]
[null,null,null,null,null,null,null,null,null,null,null,null,null,null,null,"  Structures Inspector"]
[{"$f":"A1","v":"Rev 10/26/18"},null,null,null,null,null,null,"STRUCTURES WEEKLY GRADE REPORT",null,null,null,null,null,null,null,null,null,null,"E145"]
[null,null,null,null,null,null,null,null,null,null,null,null,null,null,null,null,null,"FORM 830242E"]
[null,null,null,null,null,null,null,null,"Contract ID:",{"$f":"$J$3","v":0}]
[null,"Contractor:",{"$f":"$C$4","v":0},null,null,null,null,null,null,null,null,null,null,null,"County:",{"$f":"$P$4","v":0}]
[null,"Date:",null,null,null,null,null,null,null,null,null,null,null,null,"Project No:",{"$f":"$P$5","v":0}]
[null,"Report No.:",{"$f":"$C$6+45","v":46},null,null,null,null,null,null,null,null,null,null,null,"Design No:",{"$f":"$P$6","v":0}]
[]
[null,null,null,null,null,null,null,null,null,null,"           Plan",null,"             Actual",null,"Plan",null,"Concrete","Air"]
[null,"Date","                 Mix",null,null,"Unit",null,null,"Plant",null,"           Today",null,"              Used",null,"Total",null,"Treatment","Content","Slump"]
[null,"Poured","                  No",null,null,"Poured",null,null,"Name",null,"            (CY)",null,"               (CY)",null,"(CY)",null,null,"%","In."]
[null,null,null,null,null,null,null,null,null,null,null,null,null,null,"This Report"]
[null,null,null,null,null,null,null,null,null,null,null,null,null,null,{"$f":"IF(K2087>0,K2087,\"\")","v":""}]
[null,null,null,null,null,null,null,null,null,null,null,null,null,null,{"$f":"IF(K2088>0,O2087+K2088,\"\")","v":""}]
[null,null,null,null,null,null,null,null,null,null,null,null,null,null,{"$f":"IF(K2089>0,O2088+K2089,\"\")","v":""}]
[null,null,null,null,null,null,null,null,null,null,null,null,null,null,""]
[null,null,null,null,null,null,null,null,null,null,null,null,null,null,""]
[null,null,null,null,null,null,null,null,null,null,null,null,null,null,""]
[null,null,null,null,null,null,null,null,null,null,null,null,null,null,""]
[null,null,null,null,null,null,null,null,null,null,null,null,null,null,""]
[]
[null,"Additional Slump Tests, Air Tests, Beam Numbers of Beams Made & Remarks"]
[null,null,null,null,null,null,null,null,null,null,null,null,null,null,null,null,"Total Plan CY to Date"]
[null,null,null,null,null,null,null,null,null,null,null,null,null,null,null,null,{"$f":"IF(Q2052=\"\",\"\",SUM(K2087:L2094,Q2052))","v":""}]
[]
[]
[]
[]
[]
[]
[null,"Note:","Concrete Treatments",null,null,1,"Heated water only with no protection",null,null,null,null,6,"Ice added"]
[null,null,null,null,null,2,"Heated materials with no protection",null,null,null,null,7,"Nitrogen added"]
[null,"Indicate Number/s of the Concrete Treatment/s",null,null,null,3,"Protected concrete but did not heat materials",null,null,null,null,8,"Superplasticizer added"]
[null,"in the Column Provided Above",null,null,null,4,"Heated materials and protected concrete",null,null,null,null,9,"Microsilica added"]
[null,null,null,null,null,5,"Retarder used in concrete"]
[null,"Date","Mix",null,"Beam","Time","Slump","%","Age","W/C","Depth","Width","*Length","Indicated","Actual","Comp","Mod of","Location"]
[null,"Made","Number",null,"Number",null,null,"Air","Days",null,"Inches","Inches","Inches","Load (lbs)","Load (lbs)","Factor","Rupture","Inches"]
[null,null,null,null,null,null,null,null,null,null,null,null,null,null,null,{"$f":"IF(AND(K2112>0,L2112>0),3*M2112/(2*L2112*(K2112*K2112)),\"\")","v":""},{"$f":"IF(O2112>0,O2112*P2112,\" \")","v":" "}]
[null,null,null,null,null,null,null,null,null,null,null,null,null,null,null,{"$f":"IF(AND(K2113>0,L2113>0),3*M2113/(2*L2113*(K2113*K2113)),\"\")","v":""},{"$f":"IF(O2113>0,O2113*P2113,\" \")","v":" "}]
[null,null,null,null,null,null,null,null,null,null,null,null,null,null,null,""," "]
[null,null,null,null,null,null,null,null,null,null,null,null,null,null,null,""," "]
[null,null,null,null,null,null,null,null,null,null,null,null,null,null,null,""," "]
[null,null,null,null,null,null,null,null,null,null,null,null,null,null,null,""," "]
[null,null,null,null,null,null,null,null,null,null,null,null,null,null,null,""," "]
[]
["Distribution:",null," 1 copy to","Materials Engineer",null,"1 copy to ","RCE"]
[null,null,null,null,null,null,null,null,null,null,null,null,null,null,null,"  Structures Inspector"]
[{"$f":"A1","v":"Rev 10/26/18"},null,null,null,null,null,null,"STRUCTURES WEEKLY GRADE REPORT",null,null,null,null,null,null,null,null,null,null,"E145"]
[null,null,null,null,null,null,null,null,null,null,null,null,null,null,null,null,null,"FORM 830242E"]
[null,null,null,null,null,null,null,null,"Contract ID:",{"$f":"$J$3","v":0}]
[null,"Contractor:",{"$f":"$C$4","v":0},null,null,null,null,null,null,null,null,null,null,null,"County:",{"$f":"$P$4","v":0}]
[null,"Date:",null,null,null,null,null,null,null,null,null,null,null,null,"Project No:",{"$f":"$P$5","v":0}]
[null,"Report No.:",{"$f":"$C$6+46","v":47},null,null,null,null,null,null,null,null,null,null,null,"Design No:",{"$f":"$P$6","v":0}]
[]
[null,null,null,null,null,null,null,null,null,null,"           Plan",null,"             Actual",null,"Plan",null,"Concrete","Air"]
[null,"Date","                 Mix",null,null,"Unit",null,null,"Plant",null,"           Today",null,"              Used",null,"Total",null,"Treatment","Content","Slump"]
[null,"Poured","                  No",null,null,"Poured",null,null,"Name",null,"            (CY)",null,"               (CY)",null,"(CY)",null,null,"%","In."]
[null,null,null,null,null,null,null,null,null,null,null,null,null,null,"This Report"]
[null,null,null,null,null,null,null,null,null,null,null,null,null,null,{"$f":"IF(K2133>0,K2133,\"\")","v":""}]
[null,null,null,null,null,null,null,null,null,null,null,null,null,null,{"$f":"IF(K2134>0,O2133+K2134,\"\")","v":""}]
[null,null,null,null,null,null,null,null,null,null,null,null,null,null,{"$f":"IF(K2135>0,O2134+K2135,\"\")","v":""}]
[null,null,null,null,null,null,null,null,null,null,null,null,null,null,""]
[null,null,null,null,null,null,null,null,null,null,null,null,null,null,""]
[null,null,null,null,null,null,null,null,null,null,null,null,null,null,""]
[null,null,null,null,null,null,null,null,null,null,null,null,null,null,""]
[null,null,null,null,null,null,null,null,null,null,null,null,null,null,""]
[]
[null,"Additional Slump Tests, Air Tests, Beam Numbers of Beams Made & Remarks"]
[null,null,null,null,null,null,null,null,null,null,null,null,null,null,null,null,"Total Plan CY to Date"]
[null,null,null,null,null,null,null,null,null,null,null,null,null,null,null,null,{"$f":"IF(Q2098=\"\",\"\",SUM(K2133:L2140,Q2098))","v":""}]
[]
[]
[]
[]
[]
[]
[null,"Note:","Concrete Treatments",null,null,1,"Heated water only with no protection",null,null,null,null,6,"Ice added"]
[null,null,null,null,null,2,"Heated materials with no protection",null,null,null,null,7,"Nitrogen added"]
[null,"Indicate Number/s of the Concrete Treatment/s",null,null,null,3,"Protected concrete but did not heat materials",null,null,null,null,8,"Superplasticizer added"]
[null,"in the Column Provided Above",null,null,null,4,"Heated materials and protected concrete",null,null,null,null,9,"Microsilica added"]
[null,null,null,null,null,5,"Retarder used in concrete"]
[null,"Date","Mix",null,"Beam","Time","Slump","%","Age","W/C","Depth","Width","*Length","Indicated","Actual","Comp","Mod of","Location"]
[null,"Made","Number",null,"Number",null,null,"Air","Days",null,"Inches","Inches","Inches","Load (lbs)","Load (lbs)","Factor","Rupture","Inches"]
[null,null,null,null,null,null,null,null,null,null,null,null,null,null,null,{"$f":"IF(AND(K2158>0,L2158>0),3*M2158/(2*L2158*(K2158*K2158)),\"\")","v":""},{"$f":"IF(O2158>0,O2158*P2158,\" \")","v":" "}]
[null,null,null,null,null,null,null,null,null,null,null,null,null,null,null,{"$f":"IF(AND(K2159>0,L2159>0),3*M2159/(2*L2159*(K2159*K2159)),\"\")","v":""},{"$f":"IF(O2159>0,O2159*P2159,\" \")","v":" "}]
[null,null,null,null,null,null,null,null,null,null,null,null,null,null,null,""," "]
[null,null,null,null,null,null,null,null,null,null,null,null,null,null,null,""," "]
[null,null,null,null,null,null,null,null,null,null,null,null,null,null,null,""," "]
[null,null,null,null,null,null,null,null,null,null,null,null,null,null,null,""," "]
[null,null,null,null,null,null,null,null,null,null,null,null,null,null,null,""," "]
[]
["Distribution:",null," 1 copy to","Materials Engineer",null,"1 copy to ","RCE"]
[null,null,null,null,null,null,null,null,null,null,null,null,null,null,null,"  Structures Inspector"]
[{"$f":"A1","v":"Rev 10/26/18"},null,null,null,null,null,null,"STRUCTURES WEEKLY GRADE REPORT",null,null,null,null,null,null,null,null,null,null,"E145"]
[null,null,null,null,null,null,null,null,null,null,null,null,null,null,null,null,null,"FORM 830242E"]
[null,null,null,null,null,null,null,null,"Contract ID:",{"$f":"$J$3","v":0}]
[null,"Contractor:",{"$f":"$C$4","v":0},null,null,null,null,null,null,null,null,null,null,null,"County:",{"$f":"$P$4","v":0}]
[null,"Date:",null,null,null,null,null,null,null,null,null,null,null,null,"Project No:",{"$f":"$P$5","v":0}]
[null,"Report No.:",{"$f":"$C$6+47","v":48},null,null,null,null,null,null,null,null,null,null,null,"Design No:",{"$f":"$P$6","v":0}]
[]
[null,null,null,null,null,null,null,null,null,null,"           Plan",null,"             Actual",null,"Plan",null,"Concrete","Air"]
[null,"Date","                 Mix",null,null,"Unit",null,null,"Plant",null,"           Today",null,"              Used",null,"Total",null,"Treatment","Content","Slump"]
[null,"Poured","                  No",null,null,"Poured",null,null,"Name",null,"            (CY)",null,"               (CY)",null,"(CY)",null,null,"%","In."]
[null,null,null,null,null,null,null,null,null,null,null,null,null,null,"This Report"]
[null,null,null,null,null,null,null,null,null,null,null,null,null,null,{"$f":"IF(K2179>0,K2179,\"\")","v":""}]
[null,null,null,null,null,null,null,null,null,null,null,null,null,null,{"$f":"IF(K2180>0,O2179+K2180,\"\")","v":""}]
[null,null,null,null,null,null,null,null,null,null,null,null,null,null,{"$f":"IF(K2181>0,O2180+K2181,\"\")","v":""}]
[null,null,null,null,null,null,null,null,null,null,null,null,null,null,""]
[null,null,null,null,null,null,null,null,null,null,null,null,null,null,""]
[null,null,null,null,null,null,null,null,null,null,null,null,null,null,""]
[null,null,null,null,null,null,null,null,null,null,null,null,null,null,""]
[null,null,null,null,null,null,null,null,null,null,null,null,null,null,""]
[]
[null,"Additional Slump Tests, Air Tests, Beam Numbers of Beams Made & Remarks"]
[null,null,null,null,null,null,null,null,null,null,null,null,null,null,null,null,"Total Plan CY to Date"]
[null,null,null,null,null,null,null,null,null,null,null,null,null,null,null,null,{"$f":"IF(Q2144=\"\",\"\",SUM(K2179:L2186,Q2144))","v":""}]
[]
[]
[]
[]
[]
[]
[null,"Note:","Concrete Treatments",null,null,1,"Heated water only with no protection",null,null,null,null,6,"Ice added"]
[null,null,null,null,null,2,"Heated materials with no protection",null,null,null,null,7,"Nitrogen added"]
[null,"Indicate Number/s of the Concrete Treatment/s",null,null,null,3,"Protected concrete but did not heat materials",null,null,null,null,8,"Superplasticizer added"]
[null,"in the Column Provided Above",null,null,null,4,"Heated materials and protected concrete",null,null,null,null,9,"Microsilica added"]
[null,null,null,null,null,5,"Retarder used in concrete"]
[null,"Date","Mix",null,"Beam","Time","Slump","%","Age","W/C","Depth","Width","*Length","Indicated","Actual","Comp","Mod of","Location"]
[null,"Made","Number",null,"Number",null,null,"Air","Days",null,"Inches","Inches","Inches","Load (lbs)","Load (lbs)","Factor","Rupture","Inches"]
[null,null,null,null,null,null,null,null,null,null,null,null,null,null,null,{"$f":"IF(AND(K2204>0,L2204>0),3*M2204/(2*L2204*(K2204*K2204)),\"\")","v":""},{"$f":"IF(O2204>0,O2204*P2204,\" \")","v":" "}]
[null,null,null,null,null,null,null,null,null,null,null,null,null,null,null,{"$f":"IF(AND(K2205>0,L2205>0),3*M2205/(2*L2205*(K2205*K2205)),\"\")","v":""},{"$f":"IF(O2205>0,O2205*P2205,\" \")","v":" "}]
[null,null,null,null,null,null,null,null,null,null,null,null,null,null,null,""," "]
[null,null,null,null,null,null,null,null,null,null,null,null,null,null,null,""," "]
[null,null,null,null,null,null,null,null,null,null,null,null,null,null,null,""," "]
[null,null,null,null,null,null,null,null,null,null,null,null,null,null,null,""," "]
[null,null,null,null,null,null,null,null,null,null,null,null,null,null,null,""," "]
[]
["Distribution:",null," 1 copy to","Materials Engineer",null,"1 copy to ","RCE"]
[null,null,null,null,null,null,null,null,null,null,null,null,null,null,null,"  Structures Inspector"]
[{"$f":"A1","v":"Rev 10/26/18"},null,null,null,null,null,null,"STRUCTURES WEEKLY GRADE REPORT",null,null,null,null,null,null,null,null,null,null,"E145"]
[null,null,null,null,null,null,null,null,null,null,null,null,null,null,null,null,null,"FORM 830242E"]
[null,null,null,null,null,null,null,null,"Contract ID:",{"$f":"$J$3","v":0}]
[null,"Contractor:",{"$f":"$C$4","v":0},null,null,null,null,null,null,null,null,null,null,null,"County:",{"$f":"$P$4","v":0}]
[null,"Date:",null,null,null,null,null,null,null,null,null,null,null,null,"Project No:",{"$f":"$P$5","v":0}]
[null,"Report No.:",{"$f":"$C$6+48","v":49},null,null,null,null,null,null,null,null,null,null,null,"Design No:",{"$f":"$P$6","v":0}]
[]
[null,null,null,null,null,null,null,null,null,null,"           Plan",null,"             Actual",null,"Plan",null,"Concrete","Air"]
[null,"Date","                 Mix",null,null,"Unit",null,null,"Plant",null,"           Today",null,"              Used",null,"Total",null,"Treatment","Content","Slump"]
[null,"Poured","                  No",null,null,"Poured",null,null,"Name",null,"            (CY)",null,"               (CY)",null,"(CY)",null,null,"%","In."]
[null,null,null,null,null,null,null,null,null,null,null,null,null,null,"This Report"]
[null,null,null,null,null,null,null,null,null,null,null,null,null,null,{"$f":"IF(K2225>0,K2225,\"\")","v":""}]
[null,null,null,null,null,null,null,null,null,null,null,null,null,null,{"$f":"IF(K2226>0,O2225+K2226,\"\")","v":""}]
[null,null,null,null,null,null,null,null,null,null,null,null,null,null,{"$f":"IF(K2227>0,O2226+K2227,\"\")","v":""}]
[null,null,null,null,null,null,null,null,null,null,null,null,null,null,""]
[null,null,null,null,null,null,null,null,null,null,null,null,null,null,""]
[null,null,null,null,null,null,null,null,null,null,null,null,null,null,""]
[null,null,null,null,null,null,null,null,null,null,null,null,null,null,""]
[null,null,null,null,null,null,null,null,null,null,null,null,null,null,""]
[]
[null,"Additional Slump Tests, Air Tests, Beam Numbers of Beams Made & Remarks"]
[null,null,null,null,null,null,null,null,null,null,null,null,null,null,null,null,"Total Plan CY to Date"]
[null,null,null,null,null,null,null,null,null,null,null,null,null,null,null,null,{"$f":"IF(Q2190=\"\",\"\",SUM(K2225:L2232,Q2190))","v":""}]
[]
[]
[]
[]
[]
[]
[null,"Note:","Concrete Treatments",null,null,1,"Heated water only with no protection",null,null,null,null,6,"Ice added"]
[null,null,null,null,null,2,"Heated materials with no protection",null,null,null,null,7,"Nitrogen added"]
[null,"Indicate Number/s of the Concrete Treatment/s",null,null,null,3,"Protected concrete but did not heat materials",null,null,null,null,8,"Superplasticizer added"]
[null,"in the Column Provided Above",null,null,null,4,"Heated materials and protected concrete",null,null,null,null,9,"Microsilica added"]
[null,null,null,null,null,5,"Retarder used in concrete"]
[null,"Date","Mix",null,"Beam","Time","Slump","%","Age","W/C","Depth","Width","*Length","Indicated","Actual","Comp","Mod of","Location"]
[null,"Made","Number",null,"Number",null,null,"Air","Days",null,"Inches","Inches","Inches","Load (lbs)","Load (lbs)","Factor","Rupture","Inches"]
[null,null,null,null,null,null,null,null,null,null,null,null,null,null,null,{"$f":"IF(AND(K2250>0,L2250>0),3*M2250/(2*L2250*(K2250*K2250)),\"\")","v":""},{"$f":"IF(O2250>0,O2250*P2250,\" \")","v":" "}]
[null,null,null,null,null,null,null,null,null,null,null,null,null,null,null,{"$f":"IF(AND(K2251>0,L2251>0),3*M2251/(2*L2251*(K2251*K2251)),\"\")","v":""},{"$f":"IF(O2251>0,O2251*P2251,\" \")","v":" "}]
[null,null,null,null,null,null,null,null,null,null,null,null,null,null,null,""," "]
[null,null,null,null,null,null,null,null,null,null,null,null,null,null,null,""," "]
[null,null,null,null,null,null,null,null,null,null,null,null,null,null,null,""," "]
[null,null,null,null,null,null,null,null,null,null,null,null,null,null,null,""," "]
[null,null,null,null,null,null,null,null,null,null,null,null,null,null,null,""," "]
[]
["Distribution:",null," 1 copy to","Materials Engineer",null,"1 copy to ","RCE"]
[null,null,null,null,null,null,null,null,null,null,null,null,null,null,null,"  Structures Inspector"]
[{"$f":"A1","v":"Rev 10/26/18"},null,null,null,null,null,null,"STRUCTURES WEEKLY GRADE REPORT",null,null,null,null,null,null,null,null,null,null,"E145"]
[null,null,null,null,null,null,null,null,null,null,null,null,null,null,null,null,null,"FORM 830242E"]
[null,null,null,null,null,null,null,null,"Contract ID:",{"$f":"$J$3","v":0}]
[null,"Contractor:",{"$f":"$C$4","v":0},null,null,null,null,null,null,null,null,null,null,null,"County:",{"$f":"$P$4","v":0}]
[null,"Date:",null,null,null,null,null,null,null,null,null,null,null,null,"Project No:",{"$f":"$P$5","v":0}]
[null,"Report No.:",{"$f":"$C$6+49","v":50},null,null,null,null,null,null,null,null,null,null,null,"Design No:",{"$f":"$P$6","v":0}]
[]
[null,null,null,null,null,null,null,null,null,null,"           Plan",null,"             Actual",null,"Plan",null,"Concrete","Air"]
[null,"Date","                 Mix",null,null,"Unit",null,null,"Plant",null,"           Today",null,"              Used",null,"Total",null,"Treatment","Content","Slump"]
[null,"Poured","                  No",null,null,"Poured",null,null,"Name",null,"            (CY)",null,"               (CY)",null,"(CY)",null,null,"%","In."]
[null,null,null,null,null,null,null,null,null,null,null,null,null,null,"This Report"]
[null,null,null,null,null,null,null,null,null,null,null,null,null,null,{"$f":"IF(K2271>0,K2271,\"\")","v":""}]
[null,null,null,null,null,null,null,null,null,null,null,null,null,null,{"$f":"IF(K2272>0,O2271+K2272,\"\")","v":""}]
[null,null,null,null,null,null,null,null,null,null,null,null,null,null,{"$f":"IF(K2273>0,O2272+K2273,\"\")","v":""}]
[null,null,null,null,null,null,null,null,null,null,null,null,null,null,""]
[null,null,null,null,null,null,null,null,null,null,null,null,null,null,""]
[null,null,null,null,null,null,null,null,null,null,null,null,null,null,""]
[null,null,null,null,null,null,null,null,null,null,null,null,null,null,""]
[null,null,null,null,null,null,null,null,null,null,null,null,null,null,""]
[]
[null,"Additional Slump Tests, Air Tests, Beam Numbers of Beams Made & Remarks"]
[null,null,null,null,null,null,null,null,null,null,null,null,null,null,null,null,"Total Plan CY to Date"]
[null,null,null,null,null,null,null,null,null,null,null,null,null,null,null,null,{"$f":"IF(Q2236=\"\",\"\",SUM(K2271:L2278,Q2236))","v":""}]
[]
[]
[]
[]
[]
[]
[null,"Note:","Concrete Treatments",null,null,1,"Heated water only with no protection",null,null,null,null,6,"Ice added"]
[null,null,null,null,null,2,"Heated materials with no protection",null,null,null,null,7,"Nitrogen added"]
[null,"Indicate Number/s of the Concrete Treatment/s",null,null,null,3,"Protected concrete but did not heat materials",null,null,null,null,8,"Superplasticizer added"]
[null,"in the Column Provided Above",null,null,null,4,"Heated materials and protected concrete",null,null,null,null,9,"Microsilica added"]
[null,null,null,null,null,5,"Retarder used in concrete"]
[null,"Date","Mix",null,"Beam","Time","Slump","%","Age","W/C","Depth","Width","*Length","Indicated","Actual","Comp","Mod of","Location"]
[null,"Made","Number",null,"Number",null,null,"Air","Days",null,"Inches","Inches","Inches","Load (lbs)","Load (lbs)","Factor","Rupture","Inches"]
[null,null,null,null,null,null,null,null,null,null,null,null,null,null,null,{"$f":"IF(AND(K2296>0,L2296>0),3*M2296/(2*L2296*(K2296*K2296)),\"\")","v":""},{"$f":"IF(O2296>0,O2296*P2296,\" \")","v":" "}]
[null,null,null,null,null,null,null,null,null,null,null,null,null,null,null,{"$f":"IF(AND(K2297>0,L2297>0),3*M2297/(2*L2297*(K2297*K2297)),\"\")","v":""},{"$f":"IF(O2297>0,O2297*P2297,\" \")","v":" "}]
[null,null,null,null,null,null,null,null,null,null,null,null,null,null,null,""," "]
[null,null,null,null,null,null,null,null,null,null,null,null,null,null,null,""," "]
[null,null,null,null,null,null,null,null,null,null,null,null,null,null,null,""," "]
[null,null,null,null,null,null,null,null,null,null,null,null,null,null,null,""," "]
[null,null,null,null,null,null,null,null,null,null,null,null,null,null,null,""," "]
[]
["Distribution:",null," 1 copy to","Materials Engineer",null,"1 copy to ","RCE"]
[null,null,null,null,null,null,null,null,null,null,null,null,null,null,null,"  Structures Inspector"]
[{"$f":"A1","v":"Rev 10/26/18"},null,null,null,null,null,null,"STRUCTURES WEEKLY GRADE REPORT",null,null,null,null,null,null,null,null,null,null,"E145"]
[null,null,null,null,null,null,null,null,null,null,null,null,null,null,null,null,null,"FORM 830242E"]
[null,null,null,null,null,null,null,null,"Contract ID:"]
[null,"Contractor:",null,null,null,null,null,null,null,null,null,null,null,null,"County:"]
[null,"Date:",null,null,null,null,null,null,null,null,null,null,null,null,"Project No:"]
[null,"Report No.:",null,null,null,null,null,null,null,null,null,null,null,null,"Design No:"]
[]
[null,null,null,null,null,null,null,null,null,null,"           Plan",null,"             Actual",null,"Plan",null,"Concrete","Air"]
[null,"Date","                 Mix",null,null,"Unit",null,null,"Plant",null,"           Today",null,"              Used",null,"Total",null,"Treatment","Content","Slump"]
[null,"Poured","                  No",null,null,"Poured",null,null,"Name",null,"            (CY)",null,"               (CY)",null,"(CY)",null,null,"%","In."]
[null,null,null,null,null,null,null,null,null,null,null,null,null,null,"This Report"]
[]
[]
[]
[]
[]
[]
[]
[]
[]
[null,"Additional Slump Tests, Air Tests, Beam Numbers of Beams Made & Remarks"]
[null,null,null,null,null,null,null,null,null,null,null,null,null,null,null,null,"Total Plan CY to Date"]
[null,null,null,null,null,null,null,null,null,null,null,null,null,null,null,null,{"$f":"IF(Q2282=\"\",\"\",SUM(K2317:L2324,Q2282))","v":""}]
[]
[]
[]
[]
[]
[]
[null,"Note:","Concrete Treatments",null,null,1,"Heated water only with no protection",null,null,null,null,6,"Ice added"]
[null,null,null,null,null,2,"Heated materials with no protection",null,null,null,null,7,"Nitrogen added"]
[null,"Indicate Number/s of the Concrete Treatment/s",null,null,null,3,"Protected concrete but did not heat materials",null,null,null,null,8,"Superplasticizer added"]
[null,"in the Column Provided Above",null,null,null,4,"Heated materials and protected concrete",null,null,null,null,9,"Microsilica added"]
[null,null,null,null,null,5,"Retarder used in concrete"]
[null,"Date","Mix",null,"Beam","Time","Slump","%","Age","W/C","Depth","Width","*Length","Indicated","Actual","Comp","Mod of","Location"]
[null,"Made","Number",null,"Number",null,null,"Air","Days",null,"Inches","Inches","Inches","Load (lbs)","Load (lbs)","Factor","Rupture","Inches"]
[]
[]
[]
[]
[]
[]
[]
[]
["Distribution:",null," 1 copy to","Materials Engineer",null,"1 copy to ","RCE"]
[null,null,null,null,null,null,null,null,null,null,null,null,null,null,null,"  Structures Inspector"]